Supplier ID,Invoice ID,Supplier Name,Paid Date,Subjective Code,Subjective Name,Service Area,Cost Centre Name,Invoiced
2655300,3387670,1env Solutions Ltd,02/04/2015,40605,Chemicals,Environmental Services,Activities and Operations,972.13
2655300,3399752,1env Solutions Ltd,20/04/2015,40605,Chemicals,Environmental Services,Activities and Operations,501.07
6807,3409299,2SIMPLE SOFTWARE LTD,30/04/2015,45433,ECDL Courseware Hosting,Childrens Services,Admin IT (Schools),"29,850.00"
2727381,3395445,3D Storage Systems Ltd,16/04/2015,40100,Operational Equipment Purchase,Environmental Services,Activities and Operations,"4,920.00"
2684316,3400359,4way Consulting Ltd,23/04/2015,Z1051,Work in Progress Additions,Highways,Stores,"1,909.20"
2109299,3389831,62 Wright Street#Mencap,07/04/2015,54301,Residential Provision,Adult Services,LD Purchaser Residential Care,"22,076.00"
2109302,3389833,7 Crawford Street#Mencap,07/04/2015,54301,Residential Provision,Adult Services,LD Purchaser Residential Care,"9,084.60"
2109302,3389832,7 Crawford Street#Mencap,07/04/2015,54301,Residential Provision,Adult Services,LD Purchaser Residential Care,"12,051.00"
6050,3390751,A E YATES LTD,09/04/2015,Z1051,Work in Progress Additions,Highways,Stores,"56,890.37"
6050,3390753,A E YATES LTD,09/04/2015,Z1051,Work in Progress Additions,Highways,Stores,"28,703.77"
6050,3387806,A E YATES LTD,02/04/2015,Z1051,Work in Progress Additions,Highways,Stores,"73,998.42"
6050,3387805,A E YATES LTD,02/04/2015,Z1051,Work in Progress Additions,Highways,Stores,"40,177.33"
6050,3390683,A E YATES LTD,09/04/2015,Z1051,Work in Progress Additions,Highways,Stores,"88,525.01"
6050,3399994,A E YATES LTD,20/04/2015,Z6011,Z6011 - CR Bal Hold A/c Exp,Environmental Services,Environmental Services Balance sheet,"43,927.39"
6050,3407971,A E YATES LTD,27/04/2015,Z1051,Work in Progress Additions,Highways,Stores,"8,272.33"
6050,3408866,A E YATES LTD,27/04/2015,20501,Engineering Work,Environmental Services,Lighting / Stores Billable Costs,"21,319.44"
135553,3409555,A P S (SPECIALIST CONTRACTORS) LTD,30/04/2015,Z6008,Expense AP Accrual,Bolton MBC Balance Sheet,Bolton MBC Balance Sheet,540.00
239811,3400632,A1 STEAM CLEANING & RECOVERY,23/04/2015,52200,Contracted Services,Environmental Services,Transport Support Service,"1,290.00"
6055,3389716,ABAFIELDS RESIDENTIAL HOME,07/04/2015,Z6011,Z6011 - CR Bal Hold A/c Exp,Adult Services,3rd Party Social Care Contributions,975.68
6055,3389716,ABAFIELDS RESIDENTIAL HOME,07/04/2015,54301,Residential Provision,Adult Services,LD Purchaser Residential Care,"1,596.96"
6055,3389716,ABAFIELDS RESIDENTIAL HOME,07/04/2015,54301,Residential Provision,Adult Services,OA  External Provision Residential,"25,959.56"
2348298,3389850,ABBEY HEALTHCARE (FARNWORTH) LIMITED,07/04/2015,Z6011,Z6011 - CR Bal Hold A/c Exp,Adult Services,Health - Funded Nursing Care,"4,459.60"
2348298,3389850,ABBEY HEALTHCARE (FARNWORTH) LIMITED,07/04/2015,54301,Residential Provision,Adult Services,MH Residential External Provision,"1,618.08"
2348298,3389850,ABBEY HEALTHCARE (FARNWORTH) LIMITED,07/04/2015,54301,Residential Provision,Adult Services,OA  External Provision Residential,"66,171.02"
2348298,3389850,ABBEY HEALTHCARE (FARNWORTH) LIMITED,07/04/2015,54302,Nursing Provision,Adult Services,OA  External Provision Residential,"17,976.46"
2348298,3389850,ABBEY HEALTHCARE (FARNWORTH) LIMITED,07/04/2015,54301,Residential Provision,Adult Services,PD Purchaser Residential Care,"1,618.08"
2348298,3389849,ABBEY HEALTHCARE (FARNWORTH) LIMITED,07/04/2015,54301,Residential Provision,Adult Services,OA  External Provision Residential,"3,121.40"
2348298,3389849,ABBEY HEALTHCARE (FARNWORTH) LIMITED,07/04/2015,54302,Nursing Provision,Adult Services,OA  External Provision Residential,"1,078.30"
2341303,3389847,ABBEYCLIFFE RESIDENTIAL CARE HOME,07/04/2015,54301,Residential Provision,Adult Services,OA  External Provision Residential,"6,735.04"
6894,3389767,ABBEYDALE RESIDENTIAL CARE HOME,07/04/2015,54301,Residential Provision,Adult Services,OA  External Provision Residential,"4,870.88"
6895,3389746,ABBEYWOOD TOTTINGTON LTD,07/04/2015,54301,Residential Provision,Adult Services,OA  External Provision Residential,"3,367.52"
2794304,3389710,Abermad Nursing Home Ltd,07/04/2015,54301,Residential Provision,Adult Services,OA  External Provision Residential,"1,932.00"
88943,3389942,ACCESS ENGINEERING,09/04/2015,52200,Contracted Services,Environmental Services,Transport Support Service,"2,983.98"
88943,3397358,ACCESS ENGINEERING,20/04/2015,52200,Contracted Services,Environmental Services,Transport Support Service,"3,150.78"
156135,3397371,ACCESS TO CARE LTD,20/04/2015,52000,Vol Assoc Grants  General,Childrens Services,Res Serv Agency Placements,850.00
156135,3397373,ACCESS TO CARE LTD,20/04/2015,52000,Vol Assoc Grants  General,Childrens Services,Res Serv Agency Placements,850.00
156135,3397375,ACCESS TO CARE LTD,20/04/2015,52000,Vol Assoc Grants  General,Childrens Services,Res Serv Agency Placements,850.00
156135,3397369,ACCESS TO CARE LTD,20/04/2015,52000,Vol Assoc Grants  General,Childrens Services,Res Serv Agency Placements,850.00
156135,3402740,ACCESS TO CARE LTD,23/04/2015,52000,Vol Assoc Grants  General,Childrens Services,Res Serv Agency Placements,850.00
156135,3402745,ACCESS TO CARE LTD,23/04/2015,52000,Vol Assoc Grants  General,Childrens Services,Res Serv Agency Placements,850.00
156135,3402741,ACCESS TO CARE LTD,23/04/2015,52000,Vol Assoc Grants  General,Childrens Services,Res Serv Agency Placements,850.00
156135,3402739,ACCESS TO CARE LTD,23/04/2015,52000,Vol Assoc Grants  General,Childrens Services,Res Serv Agency Placements,850.00
156135,3402743,ACCESS TO CARE LTD,23/04/2015,52000,Vol Assoc Grants  General,Childrens Services,Res Serv Agency Placements,850.00
156135,3408797,ACCESS TO CARE LTD,27/04/2015,52000,Vol Assoc Grants  General,Childrens Services,Res Serv Agency Placements,850.00
156135,3408801,ACCESS TO CARE LTD,27/04/2015,52000,Vol Assoc Grants  General,Childrens Services,Res Serv Agency Placements,850.00
156135,3408794,ACCESS TO CARE LTD,27/04/2015,52000,Vol Assoc Grants  General,Childrens Services,Res Serv Agency Placements,850.00
156135,3408792,ACCESS TO CARE LTD,27/04/2015,52000,Vol Assoc Grants  General,Childrens Services,Res Serv Agency Placements,850.00
156135,3408799,ACCESS TO CARE LTD,27/04/2015,52000,Vol Assoc Grants  General,Childrens Services,Res Serv Agency Placements,850.00
1951294,3408785,ACORN HOUSE FOSTERING SERVICES,27/04/2015,52000,Vol Assoc Grants  General,Childrens Services,Res Serv Agency Placements,"3,642.30"
1951294,3408787,ACORN HOUSE FOSTERING SERVICES,27/04/2015,52000,Vol Assoc Grants  General,Childrens Services,Res Serv Agency Placements,"3,685.80"
959,3389748,ACORNS CARE CENTRE,07/04/2015,54301,Residential Provision,Adult Services,OA  External Provision Residential,"1,684.00"
959,3389748,ACORNS CARE CENTRE,07/04/2015,54302,Nursing Provision,Adult Services,OA  External Provision Residential,"1,496.00"
42528,3394782,ADAM ROUILLY LIMITED,16/04/2015,19100,Training Exps Tuition Fees,Childrens Services,WPD Project Link,720.00
101393,3390672,ADAMS SELFSTORE,09/04/2015,22006,Rent of Storage Facilities,Housing GRF,Dispersed Properties,"3,153.63"
101393,3395847,ADAMS SELFSTORE,16/04/2015,22006,Rent of Storage Facilities,Development & Regeneration,Museum Premises,624.00
2221292,3389839,ADLINGTON MANOR,07/04/2015,54302,Nursing Provision,Adult Services,OA  External Provision Residential,"1,868.40"
245759,3392358,ADVANCED BUILDING (NW) LTD,13/04/2015,20100,Day To Day Maintenance,Chief Executives,Accomm Rationalisation Strategy,550.00
2290296,3409518,AGE UK BOLTON#WAS AGE CONCERN,30/04/2015,41101,Catering ProvisionsFood,Public Health,Get Active,"1,000.00"
2052291,3411794,AGGREGATE INDUSTRIES UK LIMITED,30/04/2015,Z6008,Expense AP Accrual,Bolton MBC Balance Sheet,Bolton MBC Balance Sheet,"1,304.80"
2052291,3400077,AGGREGATE INDUSTRIES UK LIMITED,23/04/2015,Z1051,Work in Progress Additions,Highways,Stores,692.34
871655,3392289,AGILISYS LIMITED,13/04/2015,48510,Consultancy Fees,Chief Executives,Kcom Unified Comms,"5,700.00"
871655,3392297,AGILISYS LIMITED,13/04/2015,Z5211,Z5211 - Debit Bal Holding A/c Exp,Chief Executives,Eclipse Broadband Suspense,"18,646.23"
871655,3400451,AGILISYS LIMITED,23/04/2015,45400,Computer Purchase,Chief Executives,Agilysis Refreshed Assets,"47,945.45"
871655,3400448,AGILISYS LIMITED,23/04/2015,52200,Contracted Services,Chief Executives,Kcom Unified Comms,"4,639.11"
1772297,3393680,AGR BUILDING & FENCING CONTRACTORS LIMITED,13/04/2015,20403,Travellers Site Clearance,Housing GRF,Access & Advice Caravan Sites,"3,936.00"
1772297,3390678,AGR BUILDING & FENCING CONTRACTORS LIMITED,09/04/2015,20403,Travellers Site Clearance,Housing GRF,Access & Advice Caravan Sites,"4,643.55"
6960,3391273,AIDAPT BATHROOMS LTD,09/04/2015,44051,Clients Aids & Adaptations,Adult Services,ICES,672.50
6960,3390090,AIDAPT BATHROOMS LTD,23/04/2015,44051,Clients Aids & Adaptations,Adult Services,ICES,718.00
6960,3388781,AIDAPT BATHROOMS LTD,09/04/2015,44051,Clients Aids & Adaptations,Adult Services,ICES,"1,210.20"
6960,3393812,AIDAPT BATHROOMS LTD,13/04/2015,44051,Clients Aids & Adaptations,Adult Services,ICES,924.00
6960,3396288,AIDAPT BATHROOMS LTD,20/04/2015,44051,Clients Aids & Adaptations,Adult Services,ICES,914.94
6960,3407782,AIDAPT BATHROOMS LTD,27/04/2015,44051,Clients Aids & Adaptations,Adult Services,ICES,"1,075.50"
6064,3389754,AINSWORTH NURSING HOME,07/04/2015,54301,Residential Provision,Adult Services,MH Residential External Provision,"5,051.28"
6064,3389754,AINSWORTH NURSING HOME,07/04/2015,54302,Nursing Provision,Adult Services,MH Residential External Provision,"3,367.52"
146502,3392587,ALLIANCE DISPOSABLES LTD,23/04/2015,26000,Cleaning Materials,Environmental Services,Building Cleaning,"2,912.71"
146502,3393802,ALLIANCE DISPOSABLES LTD,13/04/2015,26002,Other Materials,Environmental Services,Building Cleaning,"1,630.00"
146502,3395292,ALLIANCE DISPOSABLES LTD,16/04/2015,26001,Hygiene Requisite,Chief Executives,Admin Buildings Portfolio,708.15
146502,3400015,ALLIANCE DISPOSABLES LTD,27/04/2015,40601,General Materials,Environmental Services,Civic Cleaning,532.90
146502,3408778,ALLIANCE DISPOSABLES LTD,27/04/2015,40601,General Materials,Environmental Services,Civic Cleaning,647.70
125827,3403863,ALLIANCE DISPOSABLES LTD,29/04/2015,26000,Cleaning Materials,Environmental Services,Catering,"1,604.00"
125827,3403864,ALLIANCE DISPOSABLES LTD,29/04/2015,26000,Cleaning Materials,Environmental Services,Catering,870.00
110901,3391268,ALLPAY.NET LTD,09/04/2015,48509,Other Fees,Chief Executives,CSD Cashiers,656.56
110901,3391262,ALLPAY.NET LTD,09/04/2015,48509,Other Fees,Chief Executives,CSD Cashiers,"3,135.38"
110901,3391263,ALLPAY.NET LTD,09/04/2015,48509,Other Fees,Chief Executives,CSD Cashiers,"1,448.29"
1671329,3391283,ALLSTAR BUSINESS SOLUTIONS,09/04/2015,31301,Vehicle Fuel,Environmental Services,Activities and Operations,"6,917.36"
1671329,3391283,ALLSTAR BUSINESS SOLUTIONS,09/04/2015,31301,Vehicle Fuel,Environmental Services,Highway Services,"1,507.65"
1671329,3391283,ALLSTAR BUSINESS SOLUTIONS,09/04/2015,31301,Vehicle Fuel,Environmental Services,Highway Works  Unallocated Costs,"2,292.01"
1671329,3391283,ALLSTAR BUSINESS SOLUTIONS,09/04/2015,31301,Vehicle Fuel,Environmental Services,SNT Childrens Servs,"1,479.46"
1671329,3391283,ALLSTAR BUSINESS SOLUTIONS,09/04/2015,31301,Vehicle Fuel,Environmental Services,Vulnerable Persons Transport,"3,655.33"
1671329,3391283,ALLSTAR BUSINESS SOLUTIONS,09/04/2015,31301,Vehicle Fuel,Environmental Services,Waste,"18,986.31"
1671329,3400103,ALLSTAR BUSINESS SOLUTIONS,23/04/2015,31301,Vehicle Fuel,Environmental Services,Activities and Operations,"7,220.68"
1671329,3400103,ALLSTAR BUSINESS SOLUTIONS,23/04/2015,31301,Vehicle Fuel,Environmental Services,Highway Works  Unallocated Costs,"1,896.29"
1671329,3400103,ALLSTAR BUSINESS SOLUTIONS,23/04/2015,31301,Vehicle Fuel,Environmental Services,SNT Childrens Servs,633.29
1671329,3400103,ALLSTAR BUSINESS SOLUTIONS,23/04/2015,31301,Vehicle Fuel,Environmental Services,Vulnerable Persons Transport,"2,166.06"
1671329,3400103,ALLSTAR BUSINESS SOLUTIONS,23/04/2015,31301,Vehicle Fuel,Environmental Services,Waste,"20,337.94"
2564295,3389693,Almond Villas Ltd,07/04/2015,54301,Residential Provision,Adult Services,MH Residential External Provision,"5,040.00"
8115,3394806,ALPHATEC 2000 LTD,16/04/2015,40143,Office Equipment Leased Rental,Chief Executives,Printing Services,"1,795.00"
25274,3390034,ALSECURE GROUP LTD,09/04/2015,44401,Other Security Expenses,Housing GRF,Benjamin Court Accommodation,959.05
22972,3399745,AMBEROL LTD,20/04/2015,40609,Horticultural Materials,Environmental Services,Activities and Operations,596.60
2541304,3395372,Amion Consulting Limited,27/04/2015,48509,Other Fees,Development & Regeneration,REDD Divisional CPRI,"4,875.00"
2246414,3389841,ANSAR PROJECTS,07/04/2015,54301,Residential Provision,Adult Services,MH Residential External Provision,"4,536.00"
2794309,3408951,Antalis,30/04/2015,43032,Office Stationery,Chief Executives,Text & Reprographics,547.20
8407,3410704,APETITO LTD,30/04/2015,41101,Catering ProvisionsFood,Adult Services,OA  Community Meals,946.32
8407,3394915,APETITO LTD,16/04/2015,41101,Catering ProvisionsFood,Adult Services,OA  Community Meals,962.76
8407,3390264,APETITO LTD,09/04/2015,41101,Catering ProvisionsFood,Adult Services,OA  Community Meals,"1,031.99"
8407,3390259,APETITO LTD,09/04/2015,41101,Catering ProvisionsFood,Adult Services,OA  Community Meals,"1,190.99"
8407,3396105,APETITO LTD,20/04/2015,41101,Catering ProvisionsFood,Adult Services,OA  Community Meals,955.40
8407,3390591,APETITO LTD,09/04/2015,41101,Catering ProvisionsFood,Adult Services,OA  Community Meals,"1,061.76"
8407,3394922,APETITO LTD,16/04/2015,41101,Catering ProvisionsFood,Adult Services,OA  Community Meals,"1,209.35"
8407,3410703,APETITO LTD,30/04/2015,41101,Catering ProvisionsFood,Adult Services,OA  Community Meals,"1,127.42"
8407,3396180,APETITO LTD,20/04/2015,41101,Catering ProvisionsFood,Adult Services,OA  Community Meals,891.58
8407,3399900,APETITO LTD,20/04/2015,41101,Catering ProvisionsFood,Adult Services,OA  Community Meals,885.72
8407,3402178,APETITO LTD,27/04/2015,41101,Catering ProvisionsFood,Adult Services,OA  Community Meals,"1,249.60"
8407,3396292,APETITO LTD,20/04/2015,41101,Catering ProvisionsFood,Adult Services,OA  Community Meals,945.33
8407,3411606,APETITO LTD,30/04/2015,41101,Catering ProvisionsFood,Adult Services,OA  Community Meals,891.77
8407,3408989,APETITO LTD,30/04/2015,41101,Catering ProvisionsFood,Adult Services,OA  Community Meals,"1,187.95"
653573,3400047,APPLIED PSYCHOLOGY SERVICES,23/04/2015,48509,Other Fees,Childrens Services,Management Team,"1,491.20"
653573,3391246,APPLIED PSYCHOLOGY SERVICES,09/04/2015,48509,Other Fees,Childrens Services,Management Team,"1,789.44"
7138,3387835,AQUAJOY BATHLIFTS LTD,13/04/2015,44051,Clients Aids & Adaptations,Adult Services,ICES,614.00
259116,3389876,ARCH INITIATIVES,09/04/2015,52200,Contracted Services,Adult Services,Drugs Pooled Treatment Budget,"3,630.00"
6089,3390625,ARCO LIMITED,09/04/2015,Z6007,Z6007 - Inventory AP Accrual,Highways,Stores,684.00
6089,3411600,ARCO LIMITED,30/04/2015,Z6007,Z6007 - Inventory AP Accrual,Highways,Stores,655.65
6091,3387691,ARGOS BUSINESS SOLUTIONS,02/04/2015,52300,Client Support Costs,Adult Services,MH Residential Crisis & Short Term Breaks,949.92
223606,3389882,ASDA BUSINESS REWARDS,09/04/2015,47103,Miscellaneous Grants,Childrens Services,Corporate Parenting,500.00
236866,3390888,ASDA PHARMACY,09/04/2015,52200,Contracted Services,Public Health,Tobacco Control,554.89
236866,3394554,ASDA PHARMACY,16/04/2015,52200,Contracted Services,Public Health,Tobacco Control,569.49
2338498,3389846,ASHTREE HOUSE,07/04/2015,54301,Residential Provision,Adult Services,OA  External Provision Residential,"3,180.00"
6100,3394091,ASSOCIATED CLEANING CONTRACTORS,16/04/2015,26000,Cleaning Materials,Housing GRF,Access & Advice Housing Options Centre,751.60
6100,3387695,ASSOCIATED CLEANING CONTRACTORS,13/04/2015,Z6008,Expense AP Accrual,Bolton MBC Balance Sheet,Bolton MBC Balance Sheet,912.00
6100,3393826,ASSOCIATED CLEANING CONTRACTORS,13/04/2015,26101,Contract Cleaning,Childrens Services,Technical Innovation Centre,"2,108.75"
283501,3409562,ASTECH CONSULTANTS LIMITED,30/04/2015,45431,Computer Software Licences,Chief Executives,Democracy,"6,489.96"
2515336,3389865,ASTLEY GRANGE HOMES LIMITED,07/04/2015,Z6011,Z6011 - CR Bal Hold A/c Exp,Adult Services,Health - Funded Nursing Care,"3,129.39"
2515336,3389865,ASTLEY GRANGE HOMES LIMITED,07/04/2015,54302,Nursing Provision,Adult Services,OA  External Provision Residential,"11,068.10"
7213,3393992,ASTOR-BANNERMAN (MEDICAL) LTD,13/04/2015,44051,Clients Aids & Adaptations,Adult Services,ICES,"1,191.85"
2303291,3387863,AUTOCRAFT EQUIPMENT LTD,02/04/2015,40101,Operational Equipment Maint,Environmental Services,Transport Support Service,820.00
6104,3396041,AUTOMATIC ALARMS LIMITED,20/04/2015,Z6008,Expense AP Accrual,Bolton MBC Balance Sheet,Bolton MBC Balance Sheet,531.51
6104,3409353,AUTOMATIC ALARMS LIMITED,30/04/2015,Z6007,Z6007 - Inventory AP Accrual,Property Services,EAM Holding,"4,840.65"
6104,3395768,AUTOMATIC ALARMS LIMITED,16/04/2015,Z6008,Expense AP Accrual,Bolton MBC Balance Sheet,Bolton MBC Balance Sheet,"2,603.87"
6104,3395781,AUTOMATIC ALARMS LIMITED,16/04/2015,Z6008,Expense AP Accrual,Bolton MBC Balance Sheet,Bolton MBC Balance Sheet,"1,723.80"
6104,3395778,AUTOMATIC ALARMS LIMITED,16/04/2015,Z6008,Expense AP Accrual,Bolton MBC Balance Sheet,Bolton MBC Balance Sheet,"1,723.80"
14065,3409656,AUTOPAINT BOLTON,30/04/2015,31305,Vehicle Servicing,Environmental Services,Transport Support Service,"3,580.00"
6107,3390214,B & M DAVIES (PLANT HIRE) LTD,09/04/2015,33202,Plant Hire,Environmental Services,Bereavement Services,696.00
6107,3395780,B & M DAVIES (PLANT HIRE) LTD,16/04/2015,Z6008,Expense AP Accrual,Bolton MBC Balance Sheet,Bolton MBC Balance Sheet,684.50
6107,3390254,B & M DAVIES (PLANT HIRE) LTD,09/04/2015,33202,Plant Hire,Environmental Services,Bereavement Services,590.00
6107,3390231,B & M DAVIES (PLANT HIRE) LTD,09/04/2015,33202,Plant Hire,Environmental Services,Bereavement Services,696.00
6107,3395776,B & M DAVIES (PLANT HIRE) LTD,16/04/2015,Z6008,Expense AP Accrual,Bolton MBC Balance Sheet,Bolton MBC Balance Sheet,545.75
6107,3393752,B & M DAVIES (PLANT HIRE) LTD,13/04/2015,33202,Plant Hire,Environmental Services,Bereavement Services,"1,168.00"
6107,3401961,B & M DAVIES (PLANT HIRE) LTD,23/04/2015,Z6008,Expense AP Accrual,Bolton MBC Balance Sheet,Bolton MBC Balance Sheet,555.00
6107,3411792,B & M DAVIES (PLANT HIRE) LTD,30/04/2015,Z6008,Expense AP Accrual,Bolton MBC Balance Sheet,Bolton MBC Balance Sheet,545.75
6107,3402735,B & M DAVIES (PLANT HIRE) LTD,23/04/2015,33202,Plant Hire,Environmental Services,Bereavement Services,"1,130.50"
6107,3408877,B & M DAVIES (PLANT HIRE) LTD,27/04/2015,33202,Plant Hire,Environmental Services,Bereavement Services,935.50
2685299,3393918,BAE Systems Applied Intelligence Limited,13/04/2015,45431,Computer Software Licences,Childrens Services,ICS Revenue,"5,013.51"
7281,3392210,BALL COLEGRAVE LTD,20/04/2015,40609,Horticultural Materials,Environmental Services,Heaton Fold,"1,603.97"
7281,3388222,BALL COLEGRAVE LTD,02/04/2015,40609,Horticultural Materials,Environmental Services,Heaton Fold,983.91
7281,3392240,BALL COLEGRAVE LTD,13/04/2015,40609,Horticultural Materials,Environmental Services,Heaton Fold,"1,530.14"
1651311,3389823,BANKFIELD,07/04/2015,54301,Residential Provision,Adult Services,OA  External Provision Residential,"1,683.76"
2709325,3389704,Bannister Farm Cottage,07/04/2015,54301,Residential Provision,Adult Services,LD Purchaser Residential Care,"22,478.16"
2628330,3400083,REDACTED - PERSONAL DATA,23/04/2015,52300,Client Support Costs,Childrens Services,LAC Team South,"1,088.75"
7298,3397311,BARNARDOS,20/04/2015,52200,Contracted Services,Public Health,PH Commissioning,"3,000.00"
7298,3392468,BARNARDOS,13/04/2015,52000,Vol Assoc Grants  General,Childrens Services,Res Serv Agency Placements,"3,428.57"
7298,3392464,BARNARDOS,13/04/2015,52000,Vol Assoc Grants  General,Childrens Services,Res Serv Agency Placements,"3,380.86"
6122,3388720,BCL,09/04/2015,20101,Programmed Maint. Work,Chief Executives,Accomm Rationalisation Strategy,"2,232.00"
39733,3389790,BEDFORD RESIDENTIAL NURSING CARE HOME,07/04/2015,54301,Residential Provision,Adult Services,OA  External Provision Residential,"1,684.00"
39733,3389790,BEDFORD RESIDENTIAL NURSING CARE HOME,07/04/2015,54302,Nursing Provision,Adult Services,OA  External Provision Residential,"7,878.71"
1544379,3389819,BEECHFIELD LODGE#ANCHOR TRUST,07/04/2015,54301,Residential Provision,Adult Services,OA  External Provision Residential,"1,531.44"
247279,3389809,BEECHVILLE CARE HOME,07/04/2015,Z6011,Z6011 - CR Bal Hold A/c Exp,Adult Services,3rd Party Social Care Contributions,"1,188.84"
247279,3389809,BEECHVILLE CARE HOME,07/04/2015,54301,Residential Provision,Adult Services,OA  External Provision Residential,"6,913.22"
1552722,3389821,BELONG ATHERTON#EPH,07/04/2015,Z6011,Z6011 - CR Bal Hold A/c Exp,Adult Services,3rd Party Social Care Contributions,"1,360.44"
1552722,3389821,BELONG ATHERTON#EPH,07/04/2015,54302,Nursing Provision,Adult Services,MH Residential External Provision,"2,435.12"
1552722,3389821,BELONG ATHERTON#EPH,07/04/2015,54302,Nursing Provision,Adult Services,OA  External Provision Residential,"1,684.00"
2394295,3391164,BERENDSEN UK LTD#FORMERLY SUNLIGHT SERVICES GRP LTD,23/04/2015,40610,Direct Materials,Environmental Services,Depots,509.73
2387309,3389852,BERKELEY HOUSE,07/04/2015,54302,Nursing Provision,Adult Services,LD Purchaser Residential Care,"12,327.60"
66470,3402286,BERTRAM TRADING LTD#BERTRAM LIBRARY SERVICES,23/04/2015,40753,Book Fund Expenditure,Development & Regeneration,Libraries Info. Services,"1,799.67"
1493076,3396789,BES REHAB LTD,30/04/2015,44051,Clients Aids & Adaptations,Adult Services,ICES,778.00
2813341,3394555,Bestway National Chemist Limited#Well,16/04/2015,52200,Contracted Services,Public Health,Tobacco Control,"1,207.66"
6126,3387882,BETHELL CONSTRUCTION LTD,02/04/2015,Z1051,Work in Progress Additions,Highways,Stores,"50,331.80"
6126,3387875,BETHELL CONSTRUCTION LTD,02/04/2015,Z1051,Work in Progress Additions,Highways,Stores,"60,201.76"
6126,3387879,BETHELL CONSTRUCTION LTD,02/04/2015,Z1051,Work in Progress Additions,Highways,Stores,"34,702.24"
6126,3387883,BETHELL CONSTRUCTION LTD,02/04/2015,Z1051,Work in Progress Additions,Highways,Stores,"42,647.96"
6126,3387885,BETHELL CONSTRUCTION LTD,02/04/2015,Z1051,Work in Progress Additions,Highways,Stores,"58,290.71"
6126,3387894,BETHELL CONSTRUCTION LTD,02/04/2015,Z1051,Work in Progress Additions,Highways,Stores,"62,296.74"
6126,3387889,BETHELL CONSTRUCTION LTD,02/04/2015,Z1051,Work in Progress Additions,Highways,Stores,"14,870.35"
6126,3392593,BETHELL CONSTRUCTION LTD,13/04/2015,Z1051,Work in Progress Additions,Highways,Stores,788.54
6126,3387919,BETHELL CONSTRUCTION LTD,02/04/2015,Z1051,Work in Progress Additions,Highways,Stores,"33,887.14"
6126,3388810,BETHELL CONSTRUCTION LTD,09/04/2015,Z6008,Expense AP Accrual,Bolton MBC Balance Sheet,Bolton MBC Balance Sheet,779.38
6126,3408790,BETHELL CONSTRUCTION LTD,27/04/2015,Z1051,Work in Progress Additions,Highways,Stores,"89,395.30"
6126,3408789,BETHELL CONSTRUCTION LTD,27/04/2015,Z1051,Work in Progress Additions,Highways,Stores,"28,347.46"
6126,3408777,BETHELL CONSTRUCTION LTD,27/04/2015,Z1051,Work in Progress Additions,Highways,Stores,"121,550.99"
6126,3408780,BETHELL CONSTRUCTION LTD,27/04/2015,Z1051,Work in Progress Additions,Highways,Stores,"162,649.04"
6126,3394788,BETHELL CONSTRUCTION LTD,16/04/2015,Z1051,Work in Progress Additions,Environmental Services,Environmental Services Balance sheet,"30,304.00"
6126,3390681,BETHELL CONSTRUCTION LTD,09/04/2015,Z1051,Work in Progress Additions,Highways,Stores,"58,247.38"
6126,3387960,BETHELL CONSTRUCTION LTD,02/04/2015,Z6008,Expense AP Accrual,Bolton MBC Balance Sheet,Bolton MBC Balance Sheet,"70,000.00"
6126,3387955,BETHELL CONSTRUCTION LTD,02/04/2015,Z6008,Expense AP Accrual,Bolton MBC Balance Sheet,Bolton MBC Balance Sheet,"23,846.40"
6126,3387791,BETHELL CONSTRUCTION LTD,02/04/2015,20501,Engineering Work,Environmental Services,Highway Services,"2,799.36"
6126,3387790,BETHELL CONSTRUCTION LTD,02/04/2015,Z6008,Expense AP Accrual,Bolton MBC Balance Sheet,Bolton MBC Balance Sheet,"2,008.28"
6126,3409570,BETHELL CONSTRUCTION LTD,30/04/2015,Z6008,Expense AP Accrual,Bolton MBC Balance Sheet,Bolton MBC Balance Sheet,"2,008.28"
6126,3409654,BETHELL CONSTRUCTION LTD,30/04/2015,20501,Engineering Work,Environmental Services,Highway Services,"2,799.36"
6126,3394786,BETHELL CONSTRUCTION LTD,16/04/2015,Z1051,Work in Progress Additions,Highways,Stores,"75,240.01"
6126,3409315,BETHELL CONSTRUCTION LTD,30/04/2015,20501,Engineering Work,Environmental Services,Highway Services,"6,298.56"
6126,3400619,BETHELL CONSTRUCTION LTD,23/04/2015,Z1051,Work in Progress Additions,Highways,Stores,"1,219.15"
6126,3407981,BETHELL CONSTRUCTION LTD,27/04/2015,Z1051,Work in Progress Additions,Highways,Stores,"185,558.17"
2438298,3389858,Birch Hall Care Centre,07/04/2015,54302,Nursing Provision,Adult Services,OA  External Provision Residential,"1,954.00"
2438298,3389858,Birch Hall Care Centre,07/04/2015,54301,Residential Provision,Adult Services,PD Purchaser Residential Care,"2,236.00"
814638,3402797,BIRKDALE DESIGN LTD,23/04/2015,40150,Office Furniture Purchase,Housing GRF,Furnished Tenancies,760.00
814638,3395726,BIRKDALE DESIGN LTD,16/04/2015,40150,Office Furniture Purchase,Housing GRF,Local Welfare Provision Pilot,534.00
814638,3395602,BIRKDALE DESIGN LTD,16/04/2015,40150,Office Furniture Purchase,Housing GRF,Furnished Tenancies,844.00
814638,3393836,BIRKDALE DESIGN LTD,13/04/2015,40150,Office Furniture Purchase,Housing GRF,Local Welfare Provision Pilot,534.00
814638,3394076,BIRKDALE DESIGN LTD,16/04/2015,40150,Office Furniture Purchase,Housing GRF,Furnished Tenancies,667.00
814638,3394063,BIRKDALE DESIGN LTD,16/04/2015,40150,Office Furniture Purchase,Housing GRF,Furnished Tenancies,760.00
814638,3393827,BIRKDALE DESIGN LTD,13/04/2015,40150,Office Furniture Purchase,Housing GRF,Furnished Tenancies,667.00
814638,3410715,BIRKDALE DESIGN LTD,30/04/2015,40150,Office Furniture Purchase,Housing GRF,Furnished Tenancies,760.00
814638,3395587,BIRKDALE DESIGN LTD,23/04/2015,40150,Office Furniture Purchase,Housing GRF,Furnished Tenancies,665.00
814638,3395589,BIRKDALE DESIGN LTD,16/04/2015,40150,Office Furniture Purchase,Housing GRF,Furnished Tenancies,760.00
814638,3395609,BIRKDALE DESIGN LTD,16/04/2015,40150,Office Furniture Purchase,Housing GRF,Furnished Tenancies,667.00
814638,3395610,BIRKDALE DESIGN LTD,16/04/2015,40150,Office Furniture Purchase,Housing GRF,Furnished Tenancies,760.00
814638,3403754,BIRKDALE DESIGN LTD,27/04/2015,40150,Office Furniture Purchase,Housing GRF,Furnished Tenancies,844.00
814638,3402800,BIRKDALE DESIGN LTD,23/04/2015,40150,Office Furniture Purchase,Housing GRF,Furnished Tenancies,760.00
814638,3402803,BIRKDALE DESIGN LTD,23/04/2015,40150,Office Furniture Purchase,Housing GRF,Furnished Tenancies,665.00
814638,3402804,BIRKDALE DESIGN LTD,23/04/2015,40150,Office Furniture Purchase,Housing GRF,Furnished Tenancies,797.00
814638,3402810,BIRKDALE DESIGN LTD,23/04/2015,40150,Office Furniture Purchase,Housing GRF,Furnished Tenancies,667.00
814638,3402806,BIRKDALE DESIGN LTD,23/04/2015,40150,Office Furniture Purchase,Housing GRF,Furnished Tenancies,760.00
814638,3402830,BIRKDALE DESIGN LTD,23/04/2015,40150,Office Furniture Purchase,Housing GRF,Furnished Tenancies,760.00
814638,3410720,BIRKDALE DESIGN LTD,30/04/2015,40150,Office Furniture Purchase,Housing GRF,Local Welfare Provision Pilot,864.00
814638,3410712,BIRKDALE DESIGN LTD,30/04/2015,40150,Office Furniture Purchase,Housing GRF,Furnished Tenancies,760.00
7401,3394908,Blackburn with Darwen Borough Council,16/04/2015,48509,Other Fees,Childrens Services,Disability Serv Trackside Approach,"2,100.00"
7401,3400549,Blackburn with Darwen Borough Council,23/04/2015,48629,Miscellaneous Expenses,Childrens Services,Admin IT (Schools),640.00
7948,3389755,BLACKROD HOUSE,07/04/2015,Z6011,Z6011 - CR Bal Hold A/c Exp,Adult Services,3rd Party Social Care Contributions,"1,862.68"
7948,3389755,BLACKROD HOUSE,07/04/2015,54301,Residential Provision,Adult Services,MH Residential External Provision,"1,596.96"
7948,3389755,BLACKROD HOUSE,07/04/2015,54301,Residential Provision,Adult Services,OA  External Provision Residential,"32,570.19"
70707,3400214,BLITHE COMPUTER SYSTEMS,23/04/2015,45430,Computer Software,Childrens Services,Substance Misuse,"1,646.00"
70707,3400214,BLITHE COMPUTER SYSTEMS,23/04/2015,45431,Computer Software Licences,Childrens Services,Substance Misuse,"1,646.00"
2405395,3388172,BNP PARIBAS LEASING SOLUTIONS#2,02/04/2015,41101,Catering ProvisionsFood,Childrens Services,Admin IT (Schools),572.32
38557,3399829,BOLTON & DISTRICT CITIZENS ADVICE BUREAU LTD,20/04/2015,47103,Miscellaneous Grants,Chief Executives,Voluntary Sector Grants,"43,218.00"
43938,3395231,BOLTON AT HOME#137,16/04/2015,Z1051,Work in Progress Additions,Housing GRF,Capital  General Fund,"23,315.60"
43938,3387914,BOLTON AT HOME#137,02/04/2015,52200,Contracted Services,Chief Executives,Anti Poverty Measures,"12,020.98"
43938,3410809,BOLTON AT HOME#137,30/04/2015,44051,Clients Aids & Adaptations,Adult Services,ASC External Funded Schemes,"2,684.50"
43938,3403744,BOLTON AT HOME#137,27/04/2015,44051,Clients Aids & Adaptations,Adult Services,ASC External Funded Schemes,"3,321.50"
43938,3387708,BOLTON AT HOME#137,02/04/2015,40100,Operational Equipment Purchase,Housing GRF,Rogue Landlord Scheme,600.00
43938,3403751,BOLTON AT HOME#137,27/04/2015,44051,Clients Aids & Adaptations,Adult Services,ASC External Funded Schemes,"2,866.50"
43938,3395245,BOLTON AT HOME#137,16/04/2015,Z1051,Work in Progress Additions,Housing GRF,Capital  General Fund,"275,132.85"
43938,3408829,BOLTON AT HOME#137,27/04/2015,20002,R&M Maintenance Charges,Housing GRF,Access & Advice Caravan Sites,"4,786.67"
43938,3408832,BOLTON AT HOME#137,27/04/2015,20002,R&M Maintenance Charges,Housing GRF,Haulgh project,"38,710.15"
6141,3390180,BOLTON BUSINESS VENTURES LTD,09/04/2015,48501,Artistes Fees,Development & Regeneration,Art Projects,"1,440.00"
125827,3406740,BOLTON CAR/TRUCK DEALERS (USED),29/04/2015,52200,Contracted Services,Environmental Services,Transport Support Service,"2,396.99"
7434,3392399,BOLTON CARERS SUPPORT,27/04/2015,52200,Contracted Services,Adult Services,OA  Carers Grant,"12,500.00"
8990,3409500,BOLTON CARPET WAREHOUSE,30/04/2015,40150,Office Furniture Purchase,Housing GRF,Local Welfare Provision Pilot,531.03
8990,3409537,BOLTON CARPET WAREHOUSE,30/04/2015,40150,Office Furniture Purchase,Housing GRF,Local Welfare Provision Pilot,625.50
8990,3409495,BOLTON CARPET WAREHOUSE,30/04/2015,40150,Office Furniture Purchase,Housing GRF,Furnished Tenancies,625.50
8990,3400167,BOLTON CARPET WAREHOUSE,23/04/2015,40150,Office Furniture Purchase,Housing GRF,Furnished Tenancies,751.59
8990,3394107,BOLTON CARPET WAREHOUSE,16/04/2015,40150,Office Furniture Purchase,Housing GRF,Local Welfare Provision Pilot,634.98
8990,3388667,BOLTON CARPET WAREHOUSE,09/04/2015,40150,Office Furniture Purchase,Housing GRF,Furnished Tenancies,625.50
8990,3388657,BOLTON CARPET WAREHOUSE,02/04/2015,40150,Office Furniture Purchase,Housing GRF,Local Welfare Provision Pilot,625.50
8990,3388666,BOLTON CARPET WAREHOUSE,02/04/2015,40150,Office Furniture Purchase,Housing GRF,Local Welfare Provision Pilot,564.93
8990,3388649,BOLTON CARPET WAREHOUSE,02/04/2015,40150,Office Furniture Purchase,Housing GRF,Local Welfare Provision Pilot,751.59
8990,3388665,BOLTON CARPET WAREHOUSE,02/04/2015,40150,Office Furniture Purchase,Housing GRF,Local Welfare Provision Pilot,625.50
8990,3388671,BOLTON CARPET WAREHOUSE,02/04/2015,40150,Office Furniture Purchase,Housing GRF,Furnished Tenancies,508.89
8990,3388658,BOLTON CARPET WAREHOUSE,02/04/2015,40150,Office Furniture Purchase,Housing GRF,Local Welfare Provision Pilot,625.50
8990,3388659,BOLTON CARPET WAREHOUSE,02/04/2015,40150,Office Furniture Purchase,Housing GRF,Local Welfare Provision Pilot,625.50
8990,3388653,BOLTON CARPET WAREHOUSE,02/04/2015,40150,Office Furniture Purchase,Housing GRF,Local Welfare Provision Pilot,751.59
8990,3388662,BOLTON CARPET WAREHOUSE,02/04/2015,40150,Office Furniture Purchase,Housing GRF,Local Welfare Provision Pilot,625.50
8990,3388655,BOLTON CARPET WAREHOUSE,02/04/2015,40150,Office Furniture Purchase,Housing GRF,Local Welfare Provision Pilot,625.50
8990,3391679,BOLTON CARPET WAREHOUSE,13/04/2015,40150,Office Furniture Purchase,Housing GRF,Furnished Tenancies,899.82
8990,3391670,BOLTON CARPET WAREHOUSE,13/04/2015,40150,Office Furniture Purchase,Housing GRF,Local Welfare Provision Pilot,625.50
8990,3400160,BOLTON CARPET WAREHOUSE,27/04/2015,40150,Office Furniture Purchase,Housing GRF,Local Welfare Provision Pilot,578.94
8990,3400152,BOLTON CARPET WAREHOUSE,23/04/2015,40150,Office Furniture Purchase,Housing GRF,Local Welfare Provision Pilot,508.89
8990,3400164,BOLTON CARPET WAREHOUSE,23/04/2015,40150,Office Furniture Purchase,Housing GRF,Local Welfare Provision Pilot,625.50
8990,3400166,BOLTON CARPET WAREHOUSE,23/04/2015,40150,Office Furniture Purchase,Housing GRF,Local Welfare Provision Pilot,625.50
8990,3391674,BOLTON CARPET WAREHOUSE,13/04/2015,40150,Office Furniture Purchase,Housing GRF,Furnished Tenancies,625.50
8990,3394110,BOLTON CARPET WAREHOUSE,16/04/2015,40150,Office Furniture Purchase,Housing GRF,Local Welfare Provision Pilot,751.59
8990,3400156,BOLTON CARPET WAREHOUSE,23/04/2015,40150,Office Furniture Purchase,Housing GRF,Local Welfare Provision Pilot,625.50
8990,3400135,BOLTON CARPET WAREHOUSE,23/04/2015,40150,Office Furniture Purchase,Housing GRF,Furnished Tenancies,751.59
8990,3400035,BOLTON CARPET WAREHOUSE,23/04/2015,40150,Office Furniture Purchase,Housing GRF,Furnished Tenancies,821.64
8990,3400130,BOLTON CARPET WAREHOUSE,23/04/2015,40150,Office Furniture Purchase,Housing GRF,Furnished Tenancies,625.50
8990,3400127,BOLTON CARPET WAREHOUSE,23/04/2015,40150,Office Furniture Purchase,Housing GRF,Furnished Tenancies,508.89
8990,3400038,BOLTON CARPET WAREHOUSE,23/04/2015,40150,Office Furniture Purchase,Housing GRF,Local Welfare Provision Pilot,578.94
8990,3400142,BOLTON CARPET WAREHOUSE,23/04/2015,40150,Office Furniture Purchase,Housing GRF,Furnished Tenancies,508.89
8990,3409492,BOLTON CARPET WAREHOUSE,30/04/2015,40150,Office Furniture Purchase,Housing GRF,Furnished Tenancies,877.68
8990,3409531,BOLTON CARPET WAREHOUSE,30/04/2015,40150,Office Furniture Purchase,Housing GRF,Local Welfare Provision Pilot,564.93
7436,3407814,Bolton College#Was Community College,24/04/2015,52200,Contracted Services,Development & Regeneration,Adult Education,"35,159.04"
7436,3399937,Bolton College#Was Community College,23/04/2015,52200,Contracted Services,Development & Regeneration,Adult Education,"182,475.92"
43551,3392172,BOLTON COMMUNITY LEISURE LTD,10/04/2015,52200,Contracted Services,Development & Regeneration,D&R Business Change,"197,412.69"
213906,3392366,BOLTON COMMUNITY RADIO CIC#BOLTON FM CIC,13/04/2015,48206,Statutory Notices,Housing GRF,Communal Services Capital And Admin.,"1,406.00"
213906,3410730,BOLTON COMMUNITY RADIO CIC#BOLTON FM CIC,30/04/2015,48203,Marketing,Chief Executives,Marketing - Holding Code,500.00
16302,3399766,BOLTON COMMUNITY TRANSPORT & FURNITURE SERVICES#BCT & FS,20/04/2015,47103,Miscellaneous Grants,Chief Executives,Voluntary Sector Grants,"5,820.25"
59203,3399849,Bolton Interfaith Council,20/04/2015,47103,Miscellaneous Grants,Chief Executives,Voluntary Sector Grants,"7,500.00"
2838300,3400000,Bolton Local Pharmaceutical Comittee,20/04/2015,48202,General Publicity,Public Health,Public Health - Centralised Budgets,"10,000.00"
2838300,3390925,Bolton Local Pharmaceutical Comittee,20/04/2015,48202,General Publicity,Public Health,Public Health - Centralised Budgets,"3,000.00"
6149,3393920,BOLTON STONE RESTORATION LTD,13/04/2015,20401,Landscape Work,Environmental Services,Assets,"10,000.00"
7950,3410738,BOLTON TOY LIBRARY,30/04/2015,52000,Vol Assoc Grants  General,Childrens Services,Admin Commissioning,"6,250.00"
2052,3402352,Bolton Under Fives Forum#BUFF,23/04/2015,19100,Training Exps Tuition Fees,Childrens Services,WPD Project Link,625.00
2052,3409386,Bolton Under Fives Forum#BUFF,30/04/2015,19100,Training Exps Tuition Fees,Childrens Services,WPD Project Link,625.00
6152,3408848,BOLTON WALL & FLOORING LTD,27/04/2015,Z6008,Expense AP Accrual,Bolton MBC Balance Sheet,Bolton MBC Balance Sheet,516.50
344200,3388761,BOLTON WBL PROVIDER PARTNERSHIP#TRAINING FOR TODAY,09/04/2015,45915,Commissioning Skills,Development & Regeneration,"REDD Enterprise, Employment&Skills",679.43
7465,3400444,BOLTON YOUNG PERSONS HOUSING SCHEME#BYPHS,23/04/2015,44054,Other Clients Services,Childrens Services,Child Prot Leaving Care Team,"19,500.00"
2053,3397432,BOOTS THE CHEMIST,20/04/2015,52200,Contracted Services,Adult Services,Drugs Pooled Treatment Budget,809.60
2053,3397469,BOOTS THE CHEMIST,20/04/2015,52200,Contracted Services,Adult Services,Drugs Pooled Treatment Budget,"1,017.80"
2053,3397463,BOOTS THE CHEMIST,20/04/2015,52200,Contracted Services,Adult Services,Drugs Pooled Treatment Budget,784.20
2053,3390892,BOOTS THE CHEMIST,09/04/2015,52200,Contracted Services,Public Health,Sexual Health Improvement,665.00
2053,3394560,BOOTS THE CHEMIST,16/04/2015,52200,Contracted Services,Public Health,Sexual Health Improvement,832.82
2053,3394559,BOOTS THE CHEMIST,16/04/2015,52200,Contracted Services,Public Health,Sexual Health Improvement,519.01
125827,3406314,BRAKES BROTHERS LTD,29/04/2015,41101,Catering ProvisionsFood,Environmental Services,Pavillion Cafe,"1,023.11"
1548543,3389820,BRIDEOAKE CARE HOME,07/04/2015,54301,Residential Provision,Adult Services,OA  External Provision Residential,"1,684.00"
1475113,3395367,BRIGHT DIRECTION TRAINING LIMITED,16/04/2015,45914,Commissioning Worklessness,Development & Regeneration,The Work Programme,510.00
1475113,3408955,BRIGHT DIRECTION TRAINING LIMITED,30/04/2015,45914,Commissioning Worklessness,Development & Regeneration,The Work Programme,800.00
1475113,3408954,BRIGHT DIRECTION TRAINING LIMITED,30/04/2015,45914,Commissioning Worklessness,Development & Regeneration,The Work Programme,800.00
1475113,3408948,BRIGHT DIRECTION TRAINING LIMITED,30/04/2015,45914,Commissioning Worklessness,Development & Regeneration,The Work Programme,800.00
1475113,3408953,BRIGHT DIRECTION TRAINING LIMITED,30/04/2015,45914,Commissioning Worklessness,Development & Regeneration,The Work Programme,800.00
1475113,3408963,BRIGHT DIRECTION TRAINING LIMITED,30/04/2015,45914,Commissioning Worklessness,Development & Regeneration,The Work Programme,800.00
1475113,3408959,BRIGHT DIRECTION TRAINING LIMITED,30/04/2015,45914,Commissioning Worklessness,Development & Regeneration,The Work Programme,800.00
20980,3408727,BRITISH GAS BUSINESS,27/04/2015,21200,Gas  General,Environmental Services,Bereavement Services,"2,697.55"
20980,3408727,BRITISH GAS BUSINESS,27/04/2015,21200,Gas  General,Chief Executives,Land and Property Portfolios,937.54
20980,3408727,BRITISH GAS BUSINESS,27/04/2015,21200,Gas  General,Chief Executives,Admin Buildings Portfolio,"2,169.32"
20980,3408727,BRITISH GAS BUSINESS,27/04/2015,21200,Gas  General,Chief Executives,Adult Social Care Portfolio,"8,262.04"
20980,3408727,BRITISH GAS BUSINESS,27/04/2015,21200,Gas  General,Chief Executives,Castle Hill,"1,224.34"
20980,3408727,BRITISH GAS BUSINESS,27/04/2015,21200,Gas  General,Chief Executives,Energy Payments Account,525.50
20980,3408727,BRITISH GAS BUSINESS,27/04/2015,21200,Gas  General,Development & Regeneration,Smithills Hall Museum,647.20
20980,3394138,BRITISH GAS BUSINESS,16/04/2015,21200,Gas  General,Housing GRF,Access & Advice Housing Options Centre,787.54
20980,3394138,BRITISH GAS BUSINESS,16/04/2015,21200,Gas  General,Environmental Services,Assets,"1,183.26"
20980,3394138,BRITISH GAS BUSINESS,16/04/2015,21200,Gas  General,Environmental Services,Bereavement Services,"7,912.62"
20980,3394138,BRITISH GAS BUSINESS,16/04/2015,21200,Gas  General,Environmental Services,Cobden Street Community Centre,"1,421.66"
20980,3394138,BRITISH GAS BUSINESS,16/04/2015,21200,Gas  General,Chief Executives,Halliwell UCAN,659.73
20980,3394138,BRITISH GAS BUSINESS,16/04/2015,21200,Gas  General,Chief Executives,Land and Property Portfolios,"3,559.79"
20980,3394138,BRITISH GAS BUSINESS,16/04/2015,21200,Gas  General,Chief Executives,Admin Buildings Portfolio,"31,768.54"
20980,3394138,BRITISH GAS BUSINESS,16/04/2015,21200,Gas  General,Chief Executives,Other Buildings Portfolio,"1,062.82"
20980,3394138,BRITISH GAS BUSINESS,16/04/2015,21200,Gas  General,Chief Executives,Adult Social Care Portfolio,"42,075.51"
20980,3394138,BRITISH GAS BUSINESS,16/04/2015,21200,Gas  General,Chief Executives,Castle Hill,"5,262.63"
20980,3394138,BRITISH GAS BUSINESS,16/04/2015,21200,Gas  General,Chief Executives,Energy Payments Account,"1,694.11"
20980,3394138,BRITISH GAS BUSINESS,16/04/2015,21200,Gas  General,Chief Executives,Libraries - Farnworth,569.85
20980,3394138,BRITISH GAS BUSINESS,16/04/2015,21200,Gas  General,Environmental Services,Depots,"4,008.44"
20980,3394138,BRITISH GAS BUSINESS,16/04/2015,21200,Gas  General,Development & Regeneration,Libraries - Horwich,590.84
20980,3394138,BRITISH GAS BUSINESS,16/04/2015,21200,Gas  General,Development & Regeneration,Smithills Hall Museum,"2,551.42"
20980,3394138,BRITISH GAS BUSINESS,16/04/2015,21200,Gas  General,Childrens Services,Farnworth Youth Centre (Yth Srv),570.41
20980,3394138,BRITISH GAS BUSINESS,16/04/2015,21200,Gas  General,Childrens Services,Gt Lever CC,928.69
20980,3394138,BRITISH GAS BUSINESS,16/04/2015,21200,Gas  General,Childrens Services,Harvey CC,953.09
20980,3394138,BRITISH GAS BUSINESS,16/04/2015,21200,Gas  General,Childrens Services,Lord Street and Grosvenor CC,627.90
20980,3394138,BRITISH GAS BUSINESS,16/04/2015,21200,Gas  General,Environmental Services,Mngmnt & Admin Overhead,535.97
20980,3394138,BRITISH GAS BUSINESS,16/04/2015,21200,Gas  General,Childrens Services,Oxford Grove CC,707.18
20980,3394138,BRITISH GAS BUSINESS,16/04/2015,Z5211,Z5211 - Debit Bal Holding A/c Exp,Property Services,St Helens Road,572.65
20980,3394138,BRITISH GAS BUSINESS,16/04/2015,21200,Gas  General,Childrens Services,Technical Innovation Centre,839.56
20980,3394138,BRITISH GAS BUSINESS,16/04/2015,21200,Gas  General,Development & Regeneration,The Leverhulme Centre,661.91
20980,3394138,BRITISH GAS BUSINESS,16/04/2015,21200,Gas  General,Childrens Services,Tonge CC,862.84
20980,3399910,BRITISH GAS BUSINESS,20/04/2015,21200,Gas  General,Chief Executives,Admin Buildings Portfolio,"5,185.39"
20980,3399910,BRITISH GAS BUSINESS,20/04/2015,21200,Gas  General,Housing GRF,Dispersed Properties,"2,235.51"
2639301,3400002,Brook Young People,20/04/2015,52200,Contracted Services,Public Health,PH Commissioning,"16,955.00"
264233,3389812,BROOKFIELD RESIDENTIAL CARE HOME LTD,07/04/2015,54301,Residential Provision,Adult Services,MH Residential External Provision,"2,200.00"
2590306,3389695,Brookside Care Home#1,07/04/2015,54301,Residential Provision,Adult Services,OA  External Provision Residential,"1,712.00"
7524,3389775,BROOKVALE,07/04/2015,54301,Residential Provision,Adult Services,LD Purchaser Residential Care,"7,138.64"
6169,3389771,BROTHERS OF CHARITY SERVICES,07/04/2015,54302,Nursing Provision,Adult Services,LD Purchaser Residential Care,"3,617.20"
6169,3409711,BROTHERS OF CHARITY SERVICES,30/04/2015,52200,Contracted Services,Adult Services,LD Purchaser Day Services,801.16
6169,3409711,BROTHERS OF CHARITY SERVICES,30/04/2015,52200,Contracted Services,Adult Services,LD Purchaser Domiciliary Care,"2,007.84"
6169,3409708,BROTHERS OF CHARITY SERVICES,30/04/2015,52200,Contracted Services,Adult Services,LD Purchaser Domiciliary Care,"3,194.80"
7528,3389743,BROUGHTON HOUSE#EPH,07/04/2015,54301,Residential Provision,Adult Services,OA  External Provision Residential,"1,526.96"
7529,3389744,BROWFIELD RESIDENTIAL CARE HOME,07/04/2015,54301,Residential Provision,Adult Services,MH Residential External Provision,"5,191.48"
7530,3388779,BROXAP LIMITED,09/04/2015,Z6011,Z6011 - CR Bal Hold A/c Exp,Environmental Services,Environmental Services Balance sheet,"1,076.00"
2775307,3397377,Bryn Melyn Care Ltd,20/04/2015,52000,Vol Assoc Grants  General,Childrens Services,Res Serv Agency Placements,"20,108.57"
2118292,3399748,BS SUPPORT SERVICES LIMITED,20/04/2015,52200,Contracted Services,Childrens Services,Youth Offending Team,"2,811.35"
125827,3403834,BSI STANDARDS LONDON,29/04/2015,47200,General Subscriptions,Development & Regeneration,LMA Library Mgmt,"2,073.00"
7514,3395482,BSI#BRITISH STANDARDS INSTITUTE,16/04/2015,47200,General Subscriptions,Chief Executives,Corporate Asset Planning,725.00
7514,3402213,BSI#BRITISH STANDARDS INSTITUTE,23/04/2015,40753,Book Fund Expenditure,Development & Regeneration,Libraries Info. Services,"9,593.00"
2130290,3396271,BSM PRINT LTD,20/04/2015,48203,Marketing,Environmental Services,Catering,710.00
14681,3399776,BT GLOBAL SERVICES,20/04/2015,45100,Telephones Direct Rental,Adult Services,Independent,852.91
121368,3402215,BT OPENREACH,23/04/2015,Z1051,Work in Progress Additions,Highways,Stores,"1,021.78"
6172,3396782,BT PLC#NOT GLOBAL SERVICES,30/04/2015,25105,Other Security,Environmental Services,NCP CCTV,"5,734.90"
2152297,3393911,Building A New Direction#BAND,27/04/2015,52200,Contracted Services,Adult Services,MH Day Care External Provision,"18,750.00"
134558,3389949,Bupa Care Homes#Millview,13/04/2015,54301,Residential Provision,Adult Services,OA  Residential Services Miscellaneous,"8,250.00"
134558,3394784,Bupa Care Homes#Millview,16/04/2015,54301,Residential Provision,Adult Services,OA  Residential Services Miscellaneous,"26,478.57"
2794563,3389711,Burger Court,07/04/2015,54301,Residential Provision,Adult Services,MH Residential External Provision,"10,742.86"
6179,3395838,BURNT TREE GROUP,16/04/2015,33201,Transport Hire,Environmental Services,Transport Support Service,616.00
6179,3395835,BURNT TREE GROUP,16/04/2015,33201,Transport Hire,Environmental Services,Transport Support Service,"1,140.00"
6179,3395423,BURNT TREE GROUP,16/04/2015,33201,Transport Hire,Environmental Services,Transport Support Service,"1,140.00"
6179,3395840,BURNT TREE GROUP,16/04/2015,33201,Transport Hire,Environmental Services,Transport Support Service,677.60
1270916,3389818,BURRSWOOD HOUSE,07/04/2015,54302,Nursing Provision,Adult Services,OA  External Provision Residential,"1,683.76"
6180,3402288,Bury Council,23/04/2015,52200,Contracted Services,Childrens Services,Gtr Manchester Music Education Hub,"71,452.00"
1551594,3403816,BY THE BRIDGE NORTH WEST,27/04/2015,52000,Vol Assoc Grants  General,Childrens Services,Res Serv Agency Placements,"3,969.00"
1551594,3408782,BY THE BRIDGE NORTH WEST,27/04/2015,52000,Vol Assoc Grants  General,Childrens Services,Res Serv Agency Placements,"3,702.86"
163197,3395321,BYROM CLARK ROBERTS,16/04/2015,48509,Other Fees,Chief Executives,Corporate Property Revenue Project Transfers to Other Projects,893.09
6185,3400473,C P DAVIDSON & SONS LTD,23/04/2015,33203,Contract Hire,Environmental Services,Transport Support Service,"2,420.00"
6185,3400471,C P DAVIDSON & SONS LTD,23/04/2015,33203,Contract Hire,Environmental Services,Transport Support Service,"2,420.00"
6185,3400463,C P DAVIDSON & SONS LTD,23/04/2015,33203,Contract Hire,Environmental Services,Transport Support Service,"2,420.00"
217133,3390149,CADASSIST,09/04/2015,45431,Computer Software Licences,Chief Executives,Business Support,550.00
251988,3389933,CALIBRATION & CONSULTANCY SERVICES UK LTD,09/04/2015,40101,Operational Equipment Maint,Environmental Services,Transport Support Service,"1,418.00"
16410,3399919,CALLIGRAPHY UK LTD,20/04/2015,40610,Direct Materials,Environmental Services,Bereavement Services,"1,730.14"
2719307,3389705,Cambrian House,07/04/2015,54301,Residential Provision,Adult Services,OA  External Provision Residential,"1,632.00"
7612,3389768,CAMERON HOUSE CARE HOME,07/04/2015,54301,Residential Provision,Adult Services,OA  External Provision Residential,"1,683.76"
7619,3395298,Canon Slade School,16/04/2015,48509,Other Fees,Childrens Services,Balance and Service Redirection,"4,780.05"
6191,3389881,CAPITA BUSINESS SERVICES LTD,09/04/2015,45431,Computer Software Licences,Childrens Services,Admin Info Mgemnt Unit,"21,367.00"
6191,3389877,CAPITA BUSINESS SERVICES LTD,09/04/2015,45431,Computer Software Licences,Childrens Services,Admin Info Mgemnt Unit,"20,930.00"
6191,3388646,CAPITA BUSINESS SERVICES LTD,02/04/2015,45431,Computer Software Licences,Childrens Services,Admin Info Mgemnt Unit,"133,696.35"
6191,3388648,CAPITA BUSINESS SERVICES LTD,02/04/2015,45431,Computer Software Licences,Childrens Services,Admin Info Mgemnt Unit,"7,583.60"
6191,3390710,CAPITA BUSINESS SERVICES LTD,09/04/2015,48509,Other Fees,Chief Executives,Directorate,"44,892.81"
6191,3390709,CAPITA BUSINESS SERVICES LTD,09/04/2015,48509,Other Fees,Chief Executives,Directorate,"21,985.78"
6191,3388173,CAPITA BUSINESS SERVICES LTD,02/04/2015,48629,Miscellaneous Expenses,Childrens Services,Admin IT (Schools),"203,589.89"
6191,3395186,CAPITA BUSINESS SERVICES LTD,16/04/2015,48629,Miscellaneous Expenses,Childrens Services,Admin IT (Schools),890.00
2775312,3397362,Capstone Foster Care (North) Ltd,20/04/2015,52000,Vol Assoc Grants  General,Childrens Services,Res Serv Agency Placements,"5,357.10"
283495,3395960,CARE MONITORING 2000 LTD,20/04/2015,Z1051,Work in Progress Additions,Adult Services,Adult Services Balance Sheet,"3,074.50"
283495,3400224,CARE MONITORING 2000 LTD,23/04/2015,45409,Information and Communication Technology,Adult Services,Reablement,"3,106.75"
6196,3392235,CARE TODAY CHILDRENS SERVICE,13/04/2015,52000,Vol Assoc Grants  General,Childrens Services,Res Serv Agency Placements,"13,741.99"
6196,3393835,CARE TODAY CHILDRENS SERVICE,13/04/2015,52000,Vol Assoc Grants  General,Childrens Services,Res Serv Agency Placements,"2,772.84"
63390,3410753,CARE UK HOMECARE#CARE UK (BOLTON),30/04/2015,52200,Contracted Services,Adult Services,OA  Home Care Services external provision,"58,909.55"
229284,3387964,CAREERVISION LIMITED,02/04/2015,45431,Computer Software Licences,Childrens Services,Admin Info Mgemnt Unit,"18,545.86"
78906,3389991,CAREWATCH (BOLTON),09/04/2015,52200,Contracted Services,Adult Services,OA  Home Care Services external provision,"64,199.08"
78906,3389689,CAREWATCH (BOLTON),09/04/2015,52200,Contracted Services,Adult Services,OA  Home Care Services external provision,624.80
78906,3400232,CAREWATCH (BOLTON),23/04/2015,52200,Contracted Services,Adult Services,OA  Home Care Services external provision,"1,902.68"
566695,3409542,CARING ALTERNATIVES LIMITED,30/04/2015,52200,Contracted Services,Adult Services,MH Residential External Provision,"1,847.36"
566695,3409545,CARING ALTERNATIVES LIMITED,30/04/2015,52200,Contracted Services,Adult Services,MH Residential External Provision,"1,897.76"
566695,3409532,CARING ALTERNATIVES LIMITED,30/04/2015,52200,Contracted Services,Adult Services,MH Residential External Provision,"1,672.00"
566695,3409547,CARING ALTERNATIVES LIMITED,30/04/2015,52200,Contracted Services,Adult Services,MH Residential External Provision,"1,787.25"
566695,3409539,CARING ALTERNATIVES LIMITED,30/04/2015,52200,Contracted Services,Adult Services,MH Residential External Provision,"2,099.36"
566695,3409536,CARING ALTERNATIVES LIMITED,30/04/2015,52200,Contracted Services,Adult Services,MH Residential External Provision,"1,672.00"
566695,3409534,CARING ALTERNATIVES LIMITED,30/04/2015,52200,Contracted Services,Adult Services,MH Residential External Provision,"1,672.00"
266353,3388027,CARITAS CARE LIMITED T/A CATHOLIC CARING SERVICES,02/04/2015,52000,Vol Assoc Grants  General,Childrens Services,Res Serv Agency Placements,"1,214.28"
2441321,3393818,REDACTED - PERSONAL DATA,13/04/2015,53000,Private Contracted Services,Childrens Services,Educational Improvement - Sec,"1,000.00"
2441321,3393818,REDACTED - PERSONAL DATA,13/04/2015,48509,Other Fees,Childrens Services,Income – Teaching & Learning CPD,745.00
2475,3390727,REDACTED - PERSONAL DATA,09/04/2015,48516,Counselling,Chief Executives,Occ Health Holding Code,595.00
2299300,3403753,REDACTED - PERSONAL DATA,27/04/2015,48509,Other Fees,Childrens Services,Education Psychology Service,"2,250.00"
252578,3389810,CARR BANK HOUSE#PAULINE JONES,07/04/2015,54301,Residential Provision,Adult Services,MH Residential External Provision,"1,568.68"
15722,3389783,Carrington Court,07/04/2015,54302,Nursing Provision,Adult Services,OA  External Provision Residential,"1,496.00"
2070,3388832,CASH FRIDAY,09/04/2015,53102,Agency Staff  Other,Development & Regeneration,The Work Programme,"1,369.00"
2070,3399770,CASH FRIDAY,20/04/2015,53102,Agency Staff  Other,Development & Regeneration,The Work Programme,"1,369.00"
2070,3402801,CASH FRIDAY,23/04/2015,53102,Agency Staff  Other,Development & Regeneration,The Work Programme,"1,369.00"
2070,3408992,CASH FRIDAY,30/04/2015,53102,Agency Staff  Other,Development & Regeneration,The Work Programme,"1,369.00"
2620304,3389697,Castle Mount,07/04/2015,54301,Residential Provision,Adult Services,OA  External Provision Residential,"2,238.00"
482511,3395355,CATEREPAIR LTD,16/04/2015,41203,Catering  General,Chief Executives,Accomm Rationalisation Strategy,619.95
482511,3390168,CATEREPAIR LTD,09/04/2015,40100,Operational Equipment Purchase,Adult Services,OA  Community Meals,652.07
75516,3402363,CEMEX UK MATERIALS LTD,23/04/2015,Z6007,Z6007 - Inventory AP Accrual,Highways,Stores,807.59
75516,3401964,CEMEX UK MATERIALS LTD,23/04/2015,Z6008,Expense AP Accrual,Bolton MBC Balance Sheet,Bolton MBC Balance Sheet,834.40
75516,3388645,CEMEX UK MATERIALS LTD,02/04/2015,Z6007,Z6007 - Inventory AP Accrual,Highways,Stores,649.64
75516,3388642,CEMEX UK MATERIALS LTD,02/04/2015,Z6007,Z6007 - Inventory AP Accrual,Highways,Stores,830.84
75516,3395225,CEMEX UK MATERIALS LTD,16/04/2015,Z6007,Z6007 - Inventory AP Accrual,Highways,Stores,728.04
75516,3389975,CEMEX UK MATERIALS LTD,09/04/2015,Z6008,Expense AP Accrual,Bolton MBC Balance Sheet,Bolton MBC Balance Sheet,978.82
75516,3389896,CEMEX UK MATERIALS LTD,09/04/2015,Z6007,Z6007 - Inventory AP Accrual,Highways,Stores,947.53
75516,3389889,CEMEX UK MATERIALS LTD,09/04/2015,Z6007,Z6007 - Inventory AP Accrual,Highways,Stores,842.34
75516,3389904,CEMEX UK MATERIALS LTD,09/04/2015,Z6007,Z6007 - Inventory AP Accrual,Highways,Stores,"1,013.85"
75516,3389888,CEMEX UK MATERIALS LTD,09/04/2015,Z6007,Z6007 - Inventory AP Accrual,Highways,Stores,"1,495.44"
75516,3391995,CEMEX UK MATERIALS LTD,13/04/2015,Z6007,Z6007 - Inventory AP Accrual,Highways,Stores,"1,873.29"
75516,3395222,CEMEX UK MATERIALS LTD,16/04/2015,Z6007,Z6007 - Inventory AP Accrual,Highways,Stores,797.30
75516,3391820,CEMEX UK MATERIALS LTD,13/04/2015,Z6007,Z6007 - Inventory AP Accrual,Highways,Stores,"1,397.52"
75516,3396214,CEMEX UK MATERIALS LTD,20/04/2015,Z6007,Z6007 - Inventory AP Accrual,Highways,Stores,"1,043.86"
75516,3402362,CEMEX UK MATERIALS LTD,23/04/2015,Z6007,Z6007 - Inventory AP Accrual,Highways,Stores,956.72
75516,3396215,CEMEX UK MATERIALS LTD,20/04/2015,Z6007,Z6007 - Inventory AP Accrual,Highways,Stores,"2,483.99"
75516,3396209,CEMEX UK MATERIALS LTD,20/04/2015,Z6007,Z6007 - Inventory AP Accrual,Highways,Stores,"1,050.56"
75516,3409658,CEMEX UK MATERIALS LTD,30/04/2015,Z6007,Z6007 - Inventory AP Accrual,Highways,Stores,"1,780.76"
75516,3409509,CEMEX UK MATERIALS LTD,30/04/2015,Z6007,Z6007 - Inventory AP Accrual,Highways,Stores,929.23
75516,3409510,CEMEX UK MATERIALS LTD,30/04/2015,Z6007,Z6007 - Inventory AP Accrual,Highways,Stores,"1,051.90"
9175,3390654,CH Bolton Limited,13/04/2015,48511,Management Fees,Chief Executives,Castle Hill,"13,961.96"
2267473,3409379,CHANGE POINT LTD,30/04/2015,19100,Training Exps Tuition Fees,Childrens Services,WPD Project Link,753.00
6205,3403715,CHASSIS & CAB SPECIALISTS,27/04/2015,52200,Contracted Services,Environmental Services,Transport Support Service,"1,204.00"
2838305,3390940,Chavasse Court Chambers,09/04/2015,48509,Other Fees,Childrens Services,Management Team,750.00
2838305,3390942,Chavasse Court Chambers,09/04/2015,48509,Other Fees,Childrens Services,Management Team,"1,250.00"
2838305,3392288,Chavasse Court Chambers,13/04/2015,48509,Other Fees,Childrens Services,Management Team,975.00
2838305,3408699,Chavasse Court Chambers,27/04/2015,48502,Legal Fees,Childrens Services,Management Team,"2,750.00"
2838305,3408684,Chavasse Court Chambers,27/04/2015,48502,Legal Fees,Childrens Services,Management Team,500.00
16039,3400165,CHEMSEARCH#NCH (UK) LTD,23/04/2015,26001,Hygiene Requisite,Environmental Services,Markets  Rent Account,"1,640.00"
1048773,3407945,CHESHIRE CENTRE FOR INDEPENDENT LIVING,27/04/2015,52000,Vol Assoc Grants  General,Adult Services,STARS & ILS  North,"9,248.25"
1048773,3407947,CHESHIRE CENTRE FOR INDEPENDENT LIVING,27/04/2015,52000,Vol Assoc Grants  General,Adult Services,STARS & ILS  North,"9,174.50"
6131,3398670,CHILD ACTION NORTHWEST,20/04/2015,52000,Vol Assoc Grants  General,Childrens Services,Res Serv Agency Placements,"3,100.00"
6131,3398669,CHILD ACTION NORTHWEST,20/04/2015,52000,Vol Assoc Grants  General,Childrens Services,Res Serv Agency Placements,"4,448.19"
1870302,3399761,CHILDRENS FOOD TRUST,20/04/2015,45431,Computer Software Licences,Environmental Services,Catering,"2,000.00"
1646290,3407756,CHUBB FIRE & SECURITY LTD,27/04/2015,40101,Operational Equipment Maint,Childrens Services,Tonge CC,749.90
125827,3403927,CICELEY COMMERICAL BLACKBURN,29/04/2015,31305,Vehicle Servicing,Environmental Services,Transport Support Service,604.61
125827,3403940,CICELEY COMMERICAL BLACKBURN,29/04/2015,31305,Vehicle Servicing,Environmental Services,Transport Support Service,767.34
2621,3409333,CIPFA,30/04/2015,19100,Training Exps Tuition Fees,Childrens Services,WPD Project Link,"1,570.40"
337129,3399996,CIPFA BUSINESS LTD,20/04/2015,48629,Miscellaneous Expenses,Chief Executives,Financial Management,"5,450.00"
337129,3400625,CIPFA BUSINESS LTD,23/04/2015,47200,General Subscriptions,Chief Executives,Financial Management,"3,680.00"
126648,3388094,CIVICA UK LTD,02/04/2015,45400,Computer Purchase,Chief Executives,Libraries Info. Systems,"3,729.00"
2030290,3409626,CIVILS & LINTELS#COOPER CLARKE#HENDRICKS LOVELL,30/04/2015,Z6007,Z6007 - Inventory AP Accrual,Highways,Stores,"2,250.00"
2566295,3389694,Claremont Lodge,07/04/2015,54301,Residential Provision,Adult Services,OA  External Provision Residential,"1,526.96"
130480,3397472,COHENS CHEMIST#GORGEMEAD LTD,20/04/2015,52200,Contracted Services,Adult Services,Drugs Pooled Treatment Budget,970.10
130480,3397456,COHENS CHEMIST#GORGEMEAD LTD,20/04/2015,52200,Contracted Services,Adult Services,Drugs Pooled Treatment Budget,529.60
130480,3390867,COHENS CHEMIST#GORGEMEAD LTD,09/04/2015,52200,Contracted Services,Public Health,Tobacco Control,513.03
130480,3390864,COHENS CHEMIST#GORGEMEAD LTD,09/04/2015,52200,Contracted Services,Public Health,Tobacco Control,594.74
130480,3394565,COHENS CHEMIST#GORGEMEAD LTD,16/04/2015,52200,Contracted Services,Public Health,Tobacco Control,"1,882.45"
130480,3394562,COHENS CHEMIST#GORGEMEAD LTD,16/04/2015,52200,Contracted Services,Public Health,Tobacco Control,831.05
123269,3409667,COLE SECURITY SERVICES LTD#FACTOR BIBBY,30/04/2015,44401,Other Security Expenses,Chief Executives,C.R.M. Operations,742.10
123269,3396191,COLE SECURITY SERVICES LTD#FACTOR BIBBY,20/04/2015,44401,Other Security Expenses,Chief Executives,C.R.M. Operations,905.00
123269,3392038,COLE SECURITY SERVICES LTD#FACTOR BIBBY,13/04/2015,44401,Other Security Expenses,Chief Executives,C.R.M. Operations,905.00
123269,3392042,COLE SECURITY SERVICES LTD#FACTOR BIBBY,13/04/2015,44401,Other Security Expenses,Chief Executives,C.R.M. Operations,905.00
123269,3409666,COLE SECURITY SERVICES LTD#FACTOR BIBBY,30/04/2015,44401,Other Security Expenses,Chief Executives,C.R.M. Operations,742.10
2707,3390350,CONCEPT CARE,09/04/2015,44054,Other Clients Services,Adult Services,LD Provider  Supported Housing,590.00
2637314,3399920,Confidential Direct#Atruva Limited#The Confidentials#Confidential Publishing,20/04/2015,48203,Marketing,Chief Executives,Marketing - Holding Code,"4,000.00"
1862301,3389826,CONISTON HOUSE CARE HOME,07/04/2015,54301,Residential Provision,Adult Services,OA  External Provision Residential,"3,232.00"
21285,3388789,CONSERVATION CONTRACTS NORTH WEST LTD,09/04/2015,52200,Contracted Services,Environmental Services,Assets,"9,043.91"
6227,3389772,CORNERSTONE TRUST,07/04/2015,54301,Residential Provision,Adult Services,LD Purchaser Residential Care,"23,679.20"
125827,3406134,COUNTY COURT MANCHESTER,29/04/2015,48509,Other Fees,Childrens Services,Management Team,"4,315.00"
125827,3406135,COUNTY COURT MANCHESTER,29/04/2015,48509,Other Fees,Childrens Services,Management Team,"2,510.00"
419294,3388609,CRAVEN ROOFING CONTRACTORS,02/04/2015,20101,Programmed Maint. Work,Property Services,Merehall,896.20
419294,3388607,CRAVEN ROOFING CONTRACTORS,02/04/2015,20101,Programmed Maint. Work,Property Services,Marsden Road(BASE),701.00
6233,3400338,CREATIVE SUPPORT LTD#3,23/04/2015,52200,Contracted Services,Adult Services,MH Residential External Provision,"2,100.00"
6233,3399958,CREATIVE SUPPORT LTD#3,20/04/2015,52200,Contracted Services,Adult Services,OA Extra Care Housing External Provision,"14,236.32"
6233,3399959,CREATIVE SUPPORT LTD#3,20/04/2015,52200,Contracted Services,Adult Services,OA Extra Care Housing External Provision,"10,610.41"
6233,3399961,CREATIVE SUPPORT LTD#3,20/04/2015,52200,Contracted Services,Adult Services,OA Extra Care Housing External Provision,"10,118.64"
6233,3399957,CREATIVE SUPPORT LTD#3,20/04/2015,52200,Contracted Services,Adult Services,OA Extra Care Housing External Provision,"8,761.04"
6233,3399960,CREATIVE SUPPORT LTD#3,20/04/2015,52200,Contracted Services,Adult Services,OA Extra Care Housing External Provision,"10,237.34"
2511617,3407957,CRG Limited#Homecare,27/04/2015,52200,Contracted Services,Adult Services,OA  Home Care Services external provision,"19,890.16"
2511617,3407965,CRG Limited#Homecare,27/04/2015,52200,Contracted Services,Adult Services,OA  Home Care Services external provision,"20,467.53"
2788,3394006,CROMWELL POLYTHENE LTD,27/04/2015,40601,General Materials,Environmental Services,Activities and Operations,"3,127.34"
2788,3397154,CROMWELL POLYTHENE LTD,20/04/2015,40100,Operational Equipment Purchase,Environmental Services,Trade Waste,"2,755.68"
125827,3407743,CRONER CCH PRODUCT,29/04/2015,40703,Other Publications,Environmental Services,SNT Other,782.66
6557,3397156,CU Phosco Lighting Ltd,30/04/2015,Z6007,Z6007 - Inventory AP Accrual,Highways,Stores,"4,955.50"
2600350,3409566,Cypad Ltd,30/04/2015,45431,Computer Software Licences,Environmental Services,Catering,"52,383.00"
1115807,3393937,DALEFIELD SURGERY#P82010,13/04/2015,52200,Contracted Services,Public Health,Sexual Health Improvement,"1,135.00"
1115807,3393899,DALEFIELD SURGERY#P82010,13/04/2015,52200,Contracted Services,Public Health,Sexual Health Improvement,"1,200.00"
302830,3395374,DATASPACE,16/04/2015,48506,Records Storage,Chief Executives,Legal Services Trading Account,888.86
139082,3397433,DEANE PHARMACY#WILKINSON PHARMACY LTD,20/04/2015,52200,Contracted Services,Adult Services,Drugs Pooled Treatment Budget,985.60
139082,3397470,DEANE PHARMACY#WILKINSON PHARMACY LTD,20/04/2015,52200,Contracted Services,Adult Services,Drugs Pooled Treatment Budget,566.20
6257,3390124,DEANE SECURITY#NOT DEANE ALARMS,09/04/2015,25104,Locks,Environmental Services,Assets,751.45
1645336,3388123,DEFENSIVE DRIVER TRAINING LTD,02/04/2015,19100,Training Exps Tuition Fees,Environmental Services,Transport Support Service,745.00
1645336,3394949,DEFENSIVE DRIVER TRAINING LTD,16/04/2015,19100,Training Exps Tuition Fees,Environmental Services,Transport Support Service,745.00
1645336,3394952,DEFENSIVE DRIVER TRAINING LTD,16/04/2015,19100,Training Exps Tuition Fees,Environmental Services,Transport Support Service,745.00
6259,3400550,DELL CORPORATION LTD,23/04/2015,45400,Computer Purchase,Childrens Services,Admin IT (Schools),"15,708.50"
6259,3400551,DELL CORPORATION LTD,23/04/2015,45400,Computer Purchase,Childrens Services,Admin IT (Schools),"7,519.95"
6259,3402113,DELL CORPORATION LTD,23/04/2015,45400,Computer Purchase,Childrens Services,Admin IT (Schools),"20,293.50"
6259,3409300,DELL CORPORATION LTD,30/04/2015,45400,Computer Purchase,Childrens Services,Admin IT (Schools),517.73
2245290,3389840,DERBYSHIRE HAVEN CARE HOME,07/04/2015,54301,Residential Provision,Adult Services,OA  External Provision Residential,"1,784.32"
398011,3402302,DESIGN SURVEYING PARTNERSHIP LTD,23/04/2015,Z1051,Work in Progress Additions,Property Services,EAM Holding,"3,245.00"
2991,3411506,DESTITUTE ANIMAL SHELTER,30/04/2015,52200,Contracted Services,Environmental Services,Activities and Operations,640.50
2855303,3399901,Dexters Enterprises Ltd,20/04/2015,93120,Refunds,Environmental Services,Trade Waste,561.56
192525,3397444,DIAMOND HEALTHCARE (NW) LTD#DERBY STREET PHARMACY,20/04/2015,52200,Contracted Services,Adult Services,Drugs Pooled Treatment Budget,997.20
1569182,3396026,DISABLED LIVING (TRAINING EXHIBITIONS) LTD,20/04/2015,44051,Clients Aids & Adaptations,Adult Services,ICES,800.00
2218304,3394799,DISCLOSURE AND BARRING SERVICE,16/04/2015,19400,Disclosure Monitoring,Chief Executives,HR - Corporate,"12,522.00"
2218304,3394088,DISCLOSURE AND BARRING SERVICE,16/04/2015,48528,CRB Checks  External,Environmental Services,Regulatory Services Licensing,"1,628.00"
241487,3389808,DOUGLAS BANK NURSING HOME#TUDOR BANK LTD,07/04/2015,54302,Nursing Provision,Adult Services,OA  External Provision Residential,"1,906.60"
72100,3389792,DOVE COURT RESIDENTIAL & NURSING HOME,07/04/2015,54301,Residential Provision,Adult Services,OA  External Provision Residential,"1,484.00"
231808,3389806,DOWNSHAW LODGE,07/04/2015,54302,Nursing Provision,Adult Services,OA  External Provision Residential,"1,960.92"
231808,3389805,DOWNSHAW LODGE,07/04/2015,54302,Nursing Provision,Adult Services,OA  External Provision Residential,"2,451.15"
16610,3392272,DR ANDREW CRANK,13/04/2015,55711,Medical Referees Fees,Environmental Services,Bereavement Services,"5,456.00"
216277,3400066,DR FRANK MARGISON,23/04/2015,48509,Other Fees,Childrens Services,Management Team,888.25
2649301,3393939,Dr Greenhalgh & Partners,13/04/2015,52200,Contracted Services,Public Health,Sexual Health Improvement,"1,418.00"
2164296,3409423,DR LOWE & PARTNERS#P82011,30/04/2015,52200,Contracted Services,Public Health,Sexual Health Improvement,"1,590.00"
2647474,3392270,Dr Surinder Singh#NOT SURGERY WORK,13/04/2015,55711,Medical Referees Fees,Environmental Services,Bereavement Services,"5,456.00"
125827,3406795,DRIKOFAX INC,29/04/2015,45430,Computer Software,Chief Executives,Mayoralty,"2,508.00"
125827,3403914,DRIVER AND VEHICLE STANDARDS AGENCY (DVSA),29/04/2015,48509,Other Fees,Environmental Services,Transport Support Service,500.00
2427304,3393889,DRS AGARWAL CHARIDEMOU & GEORGE#P82037,13/04/2015,52200,Contracted Services,Public Health,Sexual Health Improvement,527.00
2318330,3408733,DRS ARIF CHOWDHURY PATEL#P82018,27/04/2015,52200,Contracted Services,Public Health,Sexual Health Improvement,"1,120.00"
2678499,3408984,DSL Comms Limited,30/04/2015,40101,Operational Equipment Maint,Childrens Services,Admin IT (Schools),677.00
6265,3388830,DTZ DEBENHAM TIE LEUNG,27/04/2015,48510,Consultancy Fees,Chief Executives,Castle Hill Training Rooms,"3,210.10"
195955,3402324,DUE NORTH LIMITED,23/04/2015,45430,Computer Software,Chief Executives,Finance Dept Procurement Team,"2,630.52"
245548,3394943,DURABLE LTD,16/04/2015,20106,Glazing,Chief Executives,Annual Charge Holding Account,965.00
1164807,3390209,DUTTON TECH CONSULTING#REDACTED - PERSONAL DATA,09/04/2015,48509,Other Fees,Childrens Services,Technical Innovation Centre,"1,022.00"
3209,3402360,E N COXHEAD LTD,23/04/2015,40609,Horticultural Materials,Environmental Services,Heaton Fold,648.40
6273,3395320,E SMITH & SON,16/04/2015,20100,Day To Day Maintenance,Chief Executives,Corporate Property Revenue Project Transfers to Other Projects,"12,007.03"
2011291,3403082,Eagley School House Nursery 2,23/04/2015,44054,Other Clients Services,Childrens Services,Safeguarding Team North,537.50
1926290,3403729,Eastern Leadership Centre,27/04/2015,47200,General Subscriptions,Childrens Services,CWPD Governors,"3,125.00"
183862,3399762,EASYLINK UK,30/04/2015,44051,Clients Aids & Adaptations,Adult Services,ASC External Funded Schemes,"1,071.25"
9564,3389778,ECCLESHOLME,07/04/2015,54301,Residential Provision,Adult Services,OA  External Provision Residential,"1,506.04"
10232,3390224,ECE CONSULTANCY LTD,09/04/2015,20500,R & M Cremators,Environmental Services,Bereavement Services,875.00
10232,3390227,ECE CONSULTANCY LTD,09/04/2015,20500,R & M Cremators,Environmental Services,Bereavement Services,"1,623.80"
15089,3395407,ECON ENGINEERING LIMITED,16/04/2015,33203,Contract Hire,Environmental Services,Transport Support Service,"2,745.67"
15089,3395410,ECON ENGINEERING LIMITED,16/04/2015,33203,Contract Hire,Environmental Services,Transport Support Service,"2,745.67"
15089,3395412,ECON ENGINEERING LIMITED,16/04/2015,33203,Contract Hire,Environmental Services,Transport Support Service,"2,745.67"
15089,3395408,ECON ENGINEERING LIMITED,16/04/2015,33203,Contract Hire,Environmental Services,Transport Support Service,"2,745.67"
15089,3395406,ECON ENGINEERING LIMITED,16/04/2015,33203,Contract Hire,Environmental Services,Transport Support Service,"2,745.67"
15089,3395413,ECON ENGINEERING LIMITED,16/04/2015,33203,Contract Hire,Environmental Services,Transport Support Service,"2,745.67"
798634,3389076,EDUCATION SUPPORT PROFESSIONALS,09/04/2015,53000,Private Contracted Services,Childrens Services,Admin IT (Schools),"3,015.00"
798634,3409301,EDUCATION SUPPORT PROFESSIONALS,30/04/2015,53000,Private Contracted Services,Childrens Services,Admin IT (Schools),"1,170.00"
40924,3390773,ELECTORAL REFORM SERVICES,09/04/2015,79001,Survey Fees,Chief Executives,Individual Electoral Registration,"6,285.38"
17616,3409330,ELKLAN#ELKLAN TRAINING LIMITED,30/04/2015,19100,Training Exps Tuition Fees,Childrens Services,WPD Project Link,945.00
6635,3389761,ELLERSHAW HOUSE LTD,07/04/2015,54301,Residential Provision,Adult Services,LD Purchaser Residential Care,"9,098.36"
186816,3389802,ELLERSLIE COURT#VITALISE,07/04/2015,54301,Residential Provision,Adult Services,PD Purchaser Residential Care,"2,722.32"
8412,3394993,EMO OIL LTD#WAS SHELL OIL,16/04/2015,21203,Fuel Oil  General,Environmental Services,Heaton Fold,"1,380.60"
8412,3394996,EMO OIL LTD#WAS SHELL OIL,16/04/2015,21203,Fuel Oil  General,Environmental Services,Heaton Fold,832.42
8412,3394130,EMO OIL LTD#WAS SHELL OIL,16/04/2015,Z6007,Z6007 - Inventory AP Accrual,Highways,Stores,878.94
8412,3402791,EMO OIL LTD#WAS SHELL OIL,23/04/2015,21203,Fuel Oil  General,Development & Regeneration,Libraries - Bromley Cross,787.18
8412,3409690,EMO OIL LTD#WAS SHELL OIL,30/04/2015,21203,Fuel Oil  General,Environmental Services,Heaton Fold,"1,831.60"
15897,3402195,ENCYCLOPAEDIA BRITANNICA (UK) LTD,23/04/2015,40753,Book Fund Expenditure,Development & Regeneration,Libraries Info. Services,"2,339.00"
56251,3389951,ENFORCE TECHNOLOGY LIMITED,09/04/2015,45401,Computer Maintenance,Chief Executives,Corporate I.C.T.,"9,150.60"
56251,3395739,ENFORCE TECHNOLOGY LIMITED,27/04/2015,45431,Computer Software Licences,Chief Executives,IMACS Infrastructure Investment,"1,330.00"
2655304,3395393,Enviromontel Ltd,16/04/2015,Z6011,Z6011 - CR Bal Hold A/c Exp,Environmental Services,Environmental Services Balance sheet,"5,724.00"
21664,3402193,ENVIRONMENTAL WATER SERVICES LTD,23/04/2015,20100,Day To Day Maintenance,Environmental Services,Depots,537.50
362467,3408835,ERIC WRIGHT FACILITIES MANAGEMENT,27/04/2015,21100,Electricity  General,Development & Regeneration,BoltonOne Leisure,"20,841.33"
362467,3408835,ERIC WRIGHT FACILITIES MANAGEMENT,27/04/2015,21200,Gas  General,Development & Regeneration,BoltonOne Leisure,"15,864.77"
362467,3408835,ERIC WRIGHT FACILITIES MANAGEMENT,27/04/2015,22200,Water Charges  Metered,Development & Regeneration,BoltonOne Leisure,"6,384.02"
362467,3408854,ERIC WRIGHT FACILITIES MANAGEMENT,27/04/2015,40613,Goods for Resale,Development & Regeneration,BoltonOne Leisure,"14,375.64"
266886,3391284,ERICA CARLETON,09/04/2015,48502,Legal Fees,Childrens Services,Management Team,"1,380.00"
266886,3400010,ERICA CARLETON,20/04/2015,48502,Legal Fees,Childrens Services,Management Team,500.00
434409,3392318,EURO LABEL PRINTERS,13/04/2015,48203,Marketing,Chief Executives,Marketing - Holding Code,"9,887.00"
76021,3396770,EXCHANGE SUPPLIES LTD,20/04/2015,52200,Contracted Services,Adult Services,Drugs Pooled Treatment Budget,"7,256.00"
215795,3390151,Experience Science Ltd T/A Mad Science,09/04/2015,48509,Other Fees,Development & Regeneration,LMA External Funded Projects,500.00
1330970,3391247,EXPRESS ELECTRICAL DISTRIBUTORS LTD#NEW COMPANY,09/04/2015,Z6007,Z6007 - Inventory AP Accrual,Highways,Stores,790.00
356286,3392008,EXPRESS ELEVATORS LTD,13/04/2015,Z6007,Z6007 - Inventory AP Accrual,Property Services,EAM Holding,"2,495.00"
356286,3397483,EXPRESS ELEVATORS LTD,27/04/2015,Z6007,Z6007 - Inventory AP Accrual,Property Services,EAM Holding,759.00
356286,3400629,EXPRESS ELEVATORS LTD,23/04/2015,Z6008,Expense AP Accrual,Bolton MBC Balance Sheet,Bolton MBC Balance Sheet,998.00
356286,3400633,EXPRESS ELEVATORS LTD,23/04/2015,Z6008,Expense AP Accrual,Bolton MBC Balance Sheet,Bolton MBC Balance Sheet,998.00
356286,3400636,EXPRESS ELEVATORS LTD,23/04/2015,Z6008,Expense AP Accrual,Bolton MBC Balance Sheet,Bolton MBC Balance Sheet,903.43
3376,3411654,F R SHARROCK LTD#SHARROCKS,30/04/2015,40100,Operational Equipment Purchase,Environmental Services,Activities and Operations,"14,656.80"
3376,3411654,F R SHARROCK LTD#SHARROCKS,30/04/2015,40100,Operational Equipment Purchase,Environmental Services,Assets,510.00
3376,3411654,F R SHARROCK LTD#SHARROCKS,30/04/2015,40100,Operational Equipment Purchase,Environmental Services,Bereavement Services,"6,855.20"
3376,3410741,F R SHARROCK LTD#SHARROCKS,30/04/2015,40102,Operational Equipment Rental,Environmental Services,Activities and Operations,"7,397.09"
2822422,3396776,Fast Hire & Sales Ltd,20/04/2015,Z6008,Expense AP Accrual,Bolton MBC Balance Sheet,Bolton MBC Balance Sheet,880.00
2822422,3396771,Fast Hire & Sales Ltd,20/04/2015,Z6008,Expense AP Accrual,Bolton MBC Balance Sheet,Bolton MBC Balance Sheet,660.00
1555984,3402730,FAUN ZOELLER (UK) LTD,23/04/2015,31305,Vehicle Servicing,Environmental Services,Transport Support Service,577.28
1555984,3389965,FAUN ZOELLER (UK) LTD,09/04/2015,31305,Vehicle Servicing,Environmental Services,Transport Support Service,615.74
1555984,3389968,FAUN ZOELLER (UK) LTD,09/04/2015,31305,Vehicle Servicing,Environmental Services,Transport Support Service,615.74
1555984,3392249,FAUN ZOELLER (UK) LTD,13/04/2015,Z1051,Work in Progress Additions,Environmental Services,Environmental Services Balance sheet,"383,838.55"
1555984,3392237,FAUN ZOELLER (UK) LTD,13/04/2015,Z1051,Work in Progress Additions,Environmental Services,Environmental Services Balance sheet,"383,838.55"
1555984,3392254,FAUN ZOELLER (UK) LTD,13/04/2015,Z1051,Work in Progress Additions,Environmental Services,Environmental Services Balance sheet,"383,838.54"
1555984,3392258,FAUN ZOELLER (UK) LTD,13/04/2015,Z1051,Work in Progress Additions,Environmental Services,Environmental Services Balance sheet,"383,838.55"
1555984,3397363,FAUN ZOELLER (UK) LTD,20/04/2015,31306,MOT Test Certificate,Environmental Services,Transport Support Service,586.96
1555984,3409309,FAUN ZOELLER (UK) LTD,30/04/2015,Z1051,Work in Progress Additions,Environmental Services,Environmental Services Balance sheet,"191,919.28"
1555984,3409311,FAUN ZOELLER (UK) LTD,30/04/2015,Z1051,Work in Progress Additions,Environmental Services,Environmental Services Balance sheet,"383,838.54"
2320291,3410742,FFT EDUCATION LTD,30/04/2015,45431,Computer Software Licences,Childrens Services,Admin Strategy&Performance,"20,080.00"
75884,3399999,FIRST CALL COMMUNITY SYSTEMS LTD T/A SURECARE,20/04/2015,52200,Contracted Services,Adult Services,OA  Home Care Services external provision,"25,913.23"
3436,3391271,FISHERS TEXTILES,09/04/2015,40107,Kitchen Equipment,Housing GRF,Benjamin Court Accommodation,"1,662.75"
2156362,3392015,FLOORSTOCK LTD,13/04/2015,26000,Cleaning Materials,Environmental Services,Building Cleaning,683.20
2615318,3392200,Focus Print & Marketing,23/04/2015,48629,Miscellaneous Expenses,Chief Executives,Accounts Payable Shared Service Centre,"1,148.00"
261782,3388047,FORTALICE LTD#BOLTON WOMENS AID,02/04/2015,52000,Vol Assoc Grants  General,Housing GRF,Strat. Housing Unit Other Funding,"10,000.00"
261782,3397367,FORTALICE LTD#BOLTON WOMENS AID,20/04/2015,55700,Grant Funded Expenditure,Environmental Services,Community Safety,"10,000.00"
2278295,3389842,FOSSE BANK HOUSE,07/04/2015,54301,Residential Provision,Adult Services,MH Residential External Provision,"4,545.88"
3463,3403664,FOSTER CARE ASSOCIATES LTD,27/04/2015,52000,Vol Assoc Grants  General,Childrens Services,Res Serv Agency Placements,"4,239.00"
2679341,3402751,Fostering People Ltd,23/04/2015,52000,Vol Assoc Grants  General,Childrens Services,Res Serv Agency Placements,"3,330.00"
2679341,3402749,Fostering People Ltd,23/04/2015,52000,Vol Assoc Grants  General,Childrens Services,Res Serv Agency Placements,"3,330.00"
6320,3389719,FOUR SEASONS NURSING HOME,07/04/2015,Z6011,Z6011 - CR Bal Hold A/c Exp,Adult Services,Health - Funded Nursing Care,"6,606.82"
6320,3389719,FOUR SEASONS NURSING HOME,07/04/2015,54301,Residential Provision,Adult Services,OA  External Provision Residential,"27,507.36"
6320,3389719,FOUR SEASONS NURSING HOME,07/04/2015,54302,Nursing Provision,Adult Services,OA  External Provision Residential,"25,835.36"
6320,3389719,FOUR SEASONS NURSING HOME,07/04/2015,54301,Residential Provision,Adult Services,PD Purchaser Residential Care,"4,854.24"
101614,3388758,Freestyle Skateparks Limited,09/04/2015,Z1051,Work in Progress Additions,Environmental Services,Environmental Services Balance sheet,"13,715.33"
16096,3387878,FUCHS LUBRICANTS (UK) PLC,02/04/2015,40601,General Materials,Environmental Services,Transport Support Service,"1,199.00"
8038,3394676,G & G CARPETS,16/04/2015,52300,Client Support Costs,Adult Services,LD Provider  Supported Housing,"1,385.00"
8038,3394771,G & G CARPETS,16/04/2015,52300,Client Support Costs,Adult Services,LD Provider  ShortTerm Breaks,"1,075.00"
6326,3402211,G & K REFRACTORIES LTD,27/04/2015,20500,R & M Cremators,Environmental Services,Bereavement Services,"7,294.00"
1100818,3394800,G4S CASH SOLUTIONS,16/04/2015,44402,Security Cash Collection,Chief Executives,CSD Cashiers,"7,756.36"
2451338,3390650,GALA LIGHTS,27/04/2015,Z1051,Work in Progress Additions,Development & Regeneration,Development & Regeneration Capital,"4,478.00"
2451338,3390652,GALA LIGHTS,23/04/2015,Z1051,Work in Progress Additions,Development & Regeneration,Development & Regeneration Capital,"6,989.50"
155974,3391699,GEM ARBORICULTURAL SERVICES,13/04/2015,52200,Contracted Services,Environmental Services,Assets,"4,780.00"
155974,3391725,GEM ARBORICULTURAL SERVICES,13/04/2015,52200,Contracted Services,Environmental Services,Assets,600.00
155974,3391729,GEM ARBORICULTURAL SERVICES,13/04/2015,52200,Contracted Services,Environmental Services,Assets,"2,700.00"
155974,3391723,GEM ARBORICULTURAL SERVICES,13/04/2015,52200,Contracted Services,Environmental Services,Assets,950.00
1600337,3400690,GENERATION HIRE & SALE STOCKPORT,23/04/2015,Z1051,Work in Progress Additions,Environmental Services,Environmental Services Balance sheet,"1,176.70"
3561,3409462,GEORGE HOUSE TRUST,30/04/2015,52200,Contracted Services,Public Health,Public Health - Centralised Budgets,"1,084.62"
1779291,3389825,GHS BROOKDALE,07/04/2015,54301,Residential Provision,Adult Services,OA  External Provision Residential,"1,503.36"
1952293,3394781,GL EDUCATION GROUP LTD,16/04/2015,40100,Operational Equipment Purchase,Childrens Services,Quality & inclusion,"27,296.47"
1937290,3389827,GLEN ROSA & KITWOOD HOUSE,07/04/2015,54301,Residential Provision,Adult Services,OA  External Provision Residential,"1,720.32"
6338,3389721,GLENBANK CARE HOME LTD,07/04/2015,Z6011,Z6011 - CR Bal Hold A/c Exp,Adult Services,3rd Party Social Care Contributions,"1,262.08"
6338,3389721,GLENBANK CARE HOME LTD,07/04/2015,54301,Residential Provision,Adult Services,OA  External Provision Residential,"22,225.44"
6242,3389756,GLENHOMES REST HOME,07/04/2015,Z6011,Z6011 - CR Bal Hold A/c Exp,Adult Services,3rd Party Social Care Contributions,584.80
6242,3389756,GLENHOMES REST HOME,07/04/2015,54301,Residential Provision,Adult Services,OA  External Provision Residential,"14,414.88"
2212300,3389838,GLENROYD CARE HOME,07/04/2015,54302,Nursing Provision,Adult Services,OA  External Provision Residential,"1,613.92"
3603,3398664,G-MAP SERVICES LTD,20/04/2015,52000,Vol Assoc Grants  General,Childrens Services,Res Serv Agency Placements,"2,420.00"
186916,3400315,GMS SERVICES LIMITED,23/04/2015,Z6008,Expense AP Accrual,Bolton MBC Balance Sheet,Bolton MBC Balance Sheet,817.26
38071,3367150,GORDON MOON PROPERTIES#1,16/04/2015,22003,Ground Rent,Environmental Services,Assets,550.00
6342,3389722,GORSEY CLOUGH NURSING HOME LTD,07/04/2015,54301,Residential Provision,Adult Services,OA  External Provision Residential,541.21
6342,3389722,GORSEY CLOUGH NURSING HOME LTD,07/04/2015,54302,Nursing Provision,Adult Services,OA  External Provision Residential,"1,503.36"
6342,3389723,GORSEY CLOUGH NURSING HOME LTD,07/04/2015,54301,Residential Provision,Adult Services,OA  External Provision Residential,"1,683.76"
6342,3389723,GORSEY CLOUGH NURSING HOME LTD,07/04/2015,54302,Nursing Provision,Adult Services,OA  External Provision Residential,"5,051.28"
2036308,3400212,GOVDELIVERY,23/04/2015,45401,Computer Maintenance,Chief Executives,Web Team,"1,932.00"
2287325,3392049,GRAHAM ASSET MANAGEMENT LTD,27/04/2015,Z6007,Z6007 - Inventory AP Accrual,Property Services,EAM Holding,"6,240.00"
2287325,3401941,GRAHAM ASSET MANAGEMENT LTD,23/04/2015,52208,Contracted Services PAT Testing,Chief Executives,Operational Facilities Management,"2,088.34"
2287325,3400517,GRAHAM ASSET MANAGEMENT LTD,23/04/2015,52208,Contracted Services PAT Testing,Chief Executives,Operational Facilities Management,"2,067.18"
2287325,3400514,GRAHAM ASSET MANAGEMENT LTD,23/04/2015,52208,Contracted Services PAT Testing,Chief Executives,Operational Facilities Management,"1,099.42"
2287325,3400211,GRAHAM ASSET MANAGEMENT LTD,23/04/2015,Z6008,Expense AP Accrual,Bolton MBC Balance Sheet,Bolton MBC Balance Sheet,616.07
2287325,3390637,GRAHAM ASSET MANAGEMENT LTD,13/04/2015,Z5608,Inv Invoice Price Variance,Property Services,EAM Holding,"5,946.98"
2287325,3390637,GRAHAM ASSET MANAGEMENT LTD,13/04/2015,Z6007,Z6007 - Inventory AP Accrual,Property Services,EAM Holding,"13,850.80"
2287325,3391223,GRAHAM ASSET MANAGEMENT LTD,23/04/2015,Z6008,Expense AP Accrual,Bolton MBC Balance Sheet,Bolton MBC Balance Sheet,"1,574.43"
2287325,3391187,GRAHAM ASSET MANAGEMENT LTD,23/04/2015,Z6008,Expense AP Accrual,Bolton MBC Balance Sheet,Bolton MBC Balance Sheet,898.70
2287325,3391182,GRAHAM ASSET MANAGEMENT LTD,23/04/2015,Z6008,Expense AP Accrual,Bolton MBC Balance Sheet,Bolton MBC Balance Sheet,544.92
2287325,3391186,GRAHAM ASSET MANAGEMENT LTD,23/04/2015,Z6008,Expense AP Accrual,Bolton MBC Balance Sheet,Bolton MBC Balance Sheet,"1,134.10"
2287325,3391219,GRAHAM ASSET MANAGEMENT LTD,13/04/2015,Z6008,Expense AP Accrual,Bolton MBC Balance Sheet,Bolton MBC Balance Sheet,693.00
2287325,3392167,GRAHAM ASSET MANAGEMENT LTD,13/04/2015,Z6008,Expense AP Accrual,Bolton MBC Balance Sheet,Bolton MBC Balance Sheet,583.00
2287325,3392168,GRAHAM ASSET MANAGEMENT LTD,13/04/2015,Z6008,Expense AP Accrual,Bolton MBC Balance Sheet,Bolton MBC Balance Sheet,734.77
2287325,3392173,GRAHAM ASSET MANAGEMENT LTD,13/04/2015,Z6008,Expense AP Accrual,Bolton MBC Balance Sheet,Bolton MBC Balance Sheet,"1,144.00"
2287325,3392164,GRAHAM ASSET MANAGEMENT LTD,13/04/2015,Z6008,Expense AP Accrual,Bolton MBC Balance Sheet,Bolton MBC Balance Sheet,"2,200.00"
2287325,3392021,GRAHAM ASSET MANAGEMENT LTD,13/04/2015,Z6008,Expense AP Accrual,Bolton MBC Balance Sheet,Bolton MBC Balance Sheet,506.00
2287325,3392156,GRAHAM ASSET MANAGEMENT LTD,13/04/2015,Z6008,Expense AP Accrual,Bolton MBC Balance Sheet,Bolton MBC Balance Sheet,"1,374.40"
2287325,3392030,GRAHAM ASSET MANAGEMENT LTD,13/04/2015,Z6008,Expense AP Accrual,Bolton MBC Balance Sheet,Bolton MBC Balance Sheet,"1,837.00"
2287325,3391213,GRAHAM ASSET MANAGEMENT LTD,13/04/2015,Z6008,Expense AP Accrual,Bolton MBC Balance Sheet,Bolton MBC Balance Sheet,640.17
2287325,3388700,GRAHAM ASSET MANAGEMENT LTD,02/04/2015,Z6008,Expense AP Accrual,Bolton MBC Balance Sheet,Bolton MBC Balance Sheet,"1,353.00"
2287325,3388698,GRAHAM ASSET MANAGEMENT LTD,02/04/2015,Z6008,Expense AP Accrual,Bolton MBC Balance Sheet,Bolton MBC Balance Sheet,"1,285.18"
2287325,3410774,GRAHAM ASSET MANAGEMENT LTD,30/04/2015,Z6008,Expense AP Accrual,Bolton MBC Balance Sheet,Bolton MBC Balance Sheet,595.63
2287325,3393734,GRAHAM ASSET MANAGEMENT LTD,30/04/2015,Z6008,Expense AP Accrual,Bolton MBC Balance Sheet,Bolton MBC Balance Sheet,618.10
2287325,3408876,GRAHAM ASSET MANAGEMENT LTD,30/04/2015,Z5608,Inv Invoice Price Variance,Property Services,EAM Holding,"6,552.12"
2287325,3408876,GRAHAM ASSET MANAGEMENT LTD,30/04/2015,Z6007,Z6007 - Inventory AP Accrual,Property Services,EAM Holding,"30,041.56"
2287325,3394913,GRAHAM ASSET MANAGEMENT LTD,30/04/2015,Z6008,Expense AP Accrual,Bolton MBC Balance Sheet,Bolton MBC Balance Sheet,834.00
2287325,3402299,GRAHAM ASSET MANAGEMENT LTD,23/04/2015,Z6008,Expense AP Accrual,Bolton MBC Balance Sheet,Bolton MBC Balance Sheet,608.00
2287325,3400416,GRAHAM ASSET MANAGEMENT LTD,23/04/2015,Z6007,Z6007 - Inventory AP Accrual,Property Services,EAM Holding,"1,391.05"
2287325,3397353,GRAHAM ASSET MANAGEMENT LTD,20/04/2015,Z6008,Expense AP Accrual,Bolton MBC Balance Sheet,Bolton MBC Balance Sheet,715.00
2287325,3393750,GRAHAM ASSET MANAGEMENT LTD,13/04/2015,Z6008,Expense AP Accrual,Bolton MBC Balance Sheet,Bolton MBC Balance Sheet,693.00
2287325,3393731,GRAHAM ASSET MANAGEMENT LTD,13/04/2015,Z6008,Expense AP Accrual,Bolton MBC Balance Sheet,Bolton MBC Balance Sheet,605.00
6344,3389724,GRANGE LEA RESIDENTIAL CARE HOME LTD,07/04/2015,54301,Residential Provision,Adult Services,OA  External Provision Residential,"30,176.32"
178961,3393867,GREAT PLACES HOUSING ASSOCIATION,13/04/2015,52200,Contracted Services,Adult Services,Supporting People  Capital Financing,"43,886.69"
7799,3399778,Greater Manchester Sports Partnership,20/04/2015,19104,Training Exp  Ext Seminars,Childrens Services,"Sport, Health & Inclusion General",700.00
2194290,3389836,GREENLANDS RESIDENTIAL HOME LTD,07/04/2015,54301,Residential Provision,Adult Services,OA  External Provision Residential,"1,004.57"
2194290,3389837,GREENLANDS RESIDENTIAL HOME LTD,07/04/2015,54301,Residential Provision,Adult Services,OA  External Provision Residential,"24,736.80"
75660,3391237,Grosvenor Estate Residents Association#GERA,09/04/2015,47103,Miscellaneous Grants,Environmental Services,Neighbourhood Management Programme,"1,000.00"
15577,3400708,GROUNDWORK LANDSCAPES LIMITED,23/04/2015,Z6008,Expense AP Accrual,Bolton MBC Balance Sheet,Bolton MBC Balance Sheet,615.00
2345384,3389848,GROVE HOUSE,07/04/2015,54301,Residential Provision,Adult Services,OA  External Provision Residential,"2,062.20"
17887,3390130,GVA GRIMLEY LLP,09/04/2015,22100,Rating Charges,Chief Executives,CPS Shared Costs,"72,350.00"
3674,3395755,H & C (Plant Hire) Ltd,16/04/2015,Z6008,Expense AP Accrual,Bolton MBC Balance Sheet,Bolton MBC Balance Sheet,684.50
3674,3395753,H & C (Plant Hire) Ltd,16/04/2015,Z6008,Expense AP Accrual,Bolton MBC Balance Sheet,Bolton MBC Balance Sheet,884.50
3674,3395751,H & C (Plant Hire) Ltd,16/04/2015,Z6008,Expense AP Accrual,Bolton MBC Balance Sheet,Bolton MBC Balance Sheet,666.00
3674,3388808,H & C (Plant Hire) Ltd,09/04/2015,Z6008,Expense AP Accrual,Bolton MBC Balance Sheet,Bolton MBC Balance Sheet,934.50
3674,3396779,H & C (Plant Hire) Ltd,20/04/2015,Z6008,Expense AP Accrual,Bolton MBC Balance Sheet,Bolton MBC Balance Sheet,684.50
3674,3396780,H & C (Plant Hire) Ltd,20/04/2015,Z6008,Expense AP Accrual,Bolton MBC Balance Sheet,Bolton MBC Balance Sheet,516.25
3674,3396783,H & C (Plant Hire) Ltd,20/04/2015,Z6008,Expense AP Accrual,Bolton MBC Balance Sheet,Bolton MBC Balance Sheet,684.50
3674,3395233,H & C (Plant Hire) Ltd,16/04/2015,40610,Direct Materials,Environmental Services,Depots,"1,012.00"
2284378,3394002,H TIMMINS GROUP LTD,13/04/2015,Z6008,Expense AP Accrual,Bolton MBC Balance Sheet,Bolton MBC Balance Sheet,"2,056.00"
2284378,3390657,H TIMMINS GROUP LTD,23/04/2015,Z6008,Expense AP Accrual,Bolton MBC Balance Sheet,Bolton MBC Balance Sheet,"20,030.00"
2299326,3392196,HAGS-SMP LTD,13/04/2015,40601,General Materials,Environmental Services,Activities and Operations,"1,011.45"
38584,3389788,HALF ACRE CARE HOME,07/04/2015,54301,Residential Provision,Adult Services,OA  External Provision Residential,"6,915.44"
6357,3393892,HALLIWELL BEFRIENDING SERVICE,13/04/2015,52200,Contracted Services,Adult Services,OA  Day Care Provision  external,"4,000.00"
760627,3397460,HALLIWELL LATE NIGHT PHARMACY,20/04/2015,52200,Contracted Services,Adult Services,Drugs Pooled Treatment Budget,777.80
10419,3403746,HALTON CONTAINER SERVICES LTD,27/04/2015,53000,Private Contracted Services,Environmental Services,Trade Waste,"2,891.30"
10419,3403747,HALTON CONTAINER SERVICES LTD,27/04/2015,53000,Private Contracted Services,Environmental Services,Trade Waste,"2,633.30"
10419,3402214,HALTON CONTAINER SERVICES LTD,23/04/2015,53000,Private Contracted Services,Environmental Services,Trade Waste,"5,063.40"
10419,3402370,HALTON CONTAINER SERVICES LTD,23/04/2015,53000,Private Contracted Services,Environmental Services,Waste,594.20
14645,3392589,HANNA INSTRUMENTS LTD,13/04/2015,48203,Marketing,Environmental Services,Catering,"3,948.20"
148023,3389798,HARBOUR CLOSE,07/04/2015,54301,Residential Provision,Adult Services,PD Purchaser Residential Care,"3,877.88"
867656,3390127,HAYS SPECIALIST RECRUITMENT,09/04/2015,53102,Agency Staff  Other,Housing GRF,Access & Advice Caravan Sites,534.24
867656,3390127,HAYS SPECIALIST RECRUITMENT,09/04/2015,53102,Agency Staff  Other,Adult Services,ACM  North,886.69
867656,3390127,HAYS SPECIALIST RECRUITMENT,09/04/2015,53102,Agency Staff  Other,Adult Services,ACM  South,919.49
867656,3390127,HAYS SPECIALIST RECRUITMENT,09/04/2015,53102,Agency Staff  Other,Environmental Services,Activities and Operations,559.44
867656,3390127,HAYS SPECIALIST RECRUITMENT,09/04/2015,53102,Agency Staff  Other,Adult Services,Darley Court,"1,331.84"
867656,3390127,HAYS SPECIALIST RECRUITMENT,09/04/2015,53102,Agency Staff  Other,Adult Services,Laburnum Lodge,"2,035.50"
867656,3390127,HAYS SPECIALIST RECRUITMENT,09/04/2015,53102,Agency Staff  Other,Adult Services,Reablement,"1,774.02"
867656,3390127,HAYS SPECIALIST RECRUITMENT,09/04/2015,53102,Agency Staff  Other,Childrens Services,Admin Info Mgemnt Unit,611.98
867656,3390127,HAYS SPECIALIST RECRUITMENT,09/04/2015,53102,Agency Staff  Other,Environmental Services,Bereavement Services,925.92
867656,3390127,HAYS SPECIALIST RECRUITMENT,09/04/2015,53102,Agency Staff  Other,Childrens Services,Business Support    South District,"4,296.28"
867656,3390127,HAYS SPECIALIST RECRUITMENT,09/04/2015,53102,Agency Staff  Other,Childrens Services,Business Support    West District,"2,218.50"
867656,3390127,HAYS SPECIALIST RECRUITMENT,09/04/2015,53102,Agency Staff  Other,Childrens Services,Business Support  Children Social Care,"2,513.46"
867656,3390127,HAYS SPECIALIST RECRUITMENT,09/04/2015,53102,Agency Staff  Other,Childrens Services,Business Support  Directorate,"1,573.27"
867656,3390127,HAYS SPECIALIST RECRUITMENT,09/04/2015,53102,Agency Staff  Other,Childrens Services,Business Support  Education Services,846.39
867656,3390127,HAYS SPECIALIST RECRUITMENT,09/04/2015,53102,Agency Staff  Other,Childrens Services,CH41006 - Business Support - Provider Services,"1,557.47"
867656,3390127,HAYS SPECIALIST RECRUITMENT,09/04/2015,53102,Agency Staff  Other,Childrens Services,CH43661 - FIAT,947.99
867656,3390127,HAYS SPECIALIST RECRUITMENT,09/04/2015,53102,Agency Staff  Other,Childrens Services,CH43662 - Direct Payments,816.70
867656,3390127,HAYS SPECIALIST RECRUITMENT,09/04/2015,53102,Agency Staff  Other,Childrens Services,CH43692 - Integrated Commissioning,675.60
867656,3390127,HAYS SPECIALIST RECRUITMENT,09/04/2015,53102,Agency Staff  Other,Childrens Services,Child Prot CAHMS Grant,872.11
867656,3390127,HAYS SPECIALIST RECRUITMENT,09/04/2015,53102,Agency Staff  Other,Childrens Services,Child Prot Leaving Care Team,773.64
867656,3390127,HAYS SPECIALIST RECRUITMENT,09/04/2015,53102,Agency Staff  Other,Childrens Services,Children and Family Supp Svs North,"1,176.00"
867656,3390127,HAYS SPECIALIST RECRUITMENT,09/04/2015,53102,Agency Staff  Other,Childrens Services,Children and Family Supp Svs South,"2,699.76"
867656,3390127,HAYS SPECIALIST RECRUITMENT,09/04/2015,53102,Agency Staff  Other,Childrens Services,Children and Family Supp Svs West,"2,567.43"
867656,3390127,HAYS SPECIALIST RECRUITMENT,09/04/2015,53102,Agency Staff  Other,Environmental Services,Civic Cleaning,"2,533.70"
867656,3390127,HAYS SPECIALIST RECRUITMENT,09/04/2015,53102,Agency Staff  Other,Childrens Services,Conference and Reviewing,"3,197.25"
867656,3390127,HAYS SPECIALIST RECRUITMENT,09/04/2015,53102,Agency Staff  Other,Chief Executives,Legal Services Trading Account,"6,699.79"
867656,3390127,HAYS SPECIALIST RECRUITMENT,09/04/2015,53102,Agency Staff  Other,Chief Executives,Corporate Asset Planning,"1,274.59"
867656,3390127,HAYS SPECIALIST RECRUITMENT,09/04/2015,53102,Agency Staff  Other,Chief Executives,Estates & Property Management,"2,277.48"
867656,3390127,HAYS SPECIALIST RECRUITMENT,09/04/2015,53102,Agency Staff  Other,Chief Executives,CPS Shared Costs,903.29
867656,3390127,HAYS SPECIALIST RECRUITMENT,09/04/2015,53102,Agency Staff  Other,Chief Executives,Financial Management,754.05
867656,3390127,HAYS SPECIALIST RECRUITMENT,09/04/2015,53102,Agency Staff  Other,Chief Executives,Accounts Payable Shared Service Centre,773.50
867656,3390127,HAYS SPECIALIST RECRUITMENT,09/04/2015,53102,Agency Staff  Other,Chief Executives,Finance Dept Procurement Team,"1,258.48"
867656,3390127,HAYS SPECIALIST RECRUITMENT,09/04/2015,53102,Agency Staff  Other,Chief Executives,Corporate I.C.T.,508.88
867656,3390127,HAYS SPECIALIST RECRUITMENT,09/04/2015,53102,Agency Staff  Other,Chief Executives,C.R.M. Operations,"4,849.66"
867656,3390127,HAYS SPECIALIST RECRUITMENT,09/04/2015,53102,Agency Staff  Other,Development & Regeneration,Customer Services,"1,676.93"
867656,3390127,HAYS SPECIALIST RECRUITMENT,09/04/2015,53102,Agency Staff  Other,Housing GRF,Haulgh project,529.20
867656,3390127,HAYS SPECIALIST RECRUITMENT,09/04/2015,53102,Agency Staff  Other,Adult Services,ICES,934.17
867656,3390127,HAYS SPECIALIST RECRUITMENT,09/04/2015,53102,Agency Staff  Other,Adult Services,LD Provider  Supported Housing,"1,540.00"
867656,3390127,HAYS SPECIALIST RECRUITMENT,09/04/2015,53102,Agency Staff  Other,Environmental Services,Markets  Rent Account,"1,500.51"
867656,3390127,HAYS SPECIALIST RECRUITMENT,09/04/2015,53102,Agency Staff  Other,Housing GRF,Mediation,"1,015.93"
867656,3390127,HAYS SPECIALIST RECRUITMENT,09/04/2015,53102,Agency Staff  Other,Adult Services,MH Dementia and Complex Care Fieldwork Team,923.60
867656,3390127,HAYS SPECIALIST RECRUITMENT,09/04/2015,53102,Agency Staff  Other,Adult Services,MH North Fieldwork Team,"1,022.29"
867656,3390127,HAYS SPECIALIST RECRUITMENT,09/04/2015,53102,Agency Staff  Other,Environmental Services,Neighbourhood Management Support,906.10
867656,3390127,HAYS SPECIALIST RECRUITMENT,09/04/2015,53102,Agency Staff  Other,Adult Services,OA  Laburnum Lodge  Residential,644.35
867656,3390127,HAYS SPECIALIST RECRUITMENT,09/04/2015,53102,Agency Staff  Other,Childrens Services,Referral & Assmt Team North,"1,033.43"
867656,3390127,HAYS SPECIALIST RECRUITMENT,09/04/2015,53102,Agency Staff  Other,Childrens Services,Referral & Assmt Team South,"1,022.31"
867656,3390127,HAYS SPECIALIST RECRUITMENT,09/04/2015,53102,Agency Staff  Other,Environmental Services,Regulatory Services,781.44
867656,3390127,HAYS SPECIALIST RECRUITMENT,09/04/2015,53102,Agency Staff  Other,Childrens Services,Safeguarding Team North,"2,918.62"
867656,3390127,HAYS SPECIALIST RECRUITMENT,09/04/2015,53102,Agency Staff  Other,Childrens Services,Safeguarding Team South,"1,022.30"
867656,3390127,HAYS SPECIALIST RECRUITMENT,09/04/2015,53102,Agency Staff  Other,Childrens Services,Safeguarding Team West,"2,269.02"
867656,3390127,HAYS SPECIALIST RECRUITMENT,09/04/2015,53102,Agency Staff  Other,Environmental Services,Strategy & Service Development,"1,861.45"
867656,3390127,HAYS SPECIALIST RECRUITMENT,09/04/2015,53102,Agency Staff  Other,Childrens Services,Substance Misuse,673.01
867656,3390127,HAYS SPECIALIST RECRUITMENT,09/04/2015,53102,Agency Staff  Other,Childrens Services,Targeted Youth Support,"1,391.93"
867656,3390127,HAYS SPECIALIST RECRUITMENT,09/04/2015,53102,Agency Staff  Other,Adult Services,Urgent Care,"1,692.24"
867656,3390127,HAYS SPECIALIST RECRUITMENT,09/04/2015,53102,Agency Staff  Other,Environmental Services,Waste,"19,169.50"
867656,3390127,HAYS SPECIALIST RECRUITMENT,09/04/2015,53102,Agency Staff  Other,Childrens Services,Youth Offending Team,"1,909.20"
867656,3390763,HAYS SPECIALIST RECRUITMENT,09/04/2015,53102,Agency Staff  Other,Adult Services,ACM  North,761.53
867656,3390763,HAYS SPECIALIST RECRUITMENT,09/04/2015,53102,Agency Staff  Other,Environmental Services,Activities and Operations,"1,257.76"
867656,3390763,HAYS SPECIALIST RECRUITMENT,09/04/2015,53102,Agency Staff  Other,Adult Services,Darley Court,"9,876.12"
867656,3390763,HAYS SPECIALIST RECRUITMENT,09/04/2015,53102,Agency Staff  Other,Adult Services,Laburnum Lodge,"1,382.47"
867656,3390763,HAYS SPECIALIST RECRUITMENT,09/04/2015,53102,Agency Staff  Other,Adult Services,Reablement,"1,140.72"
867656,3390763,HAYS SPECIALIST RECRUITMENT,09/04/2015,53102,Agency Staff  Other,Environmental Services,Bereavement Services,"3,752.16"
867656,3390763,HAYS SPECIALIST RECRUITMENT,09/04/2015,53102,Agency Staff  Other,Childrens Services,Business Support    South District,"1,852.67"
867656,3390763,HAYS SPECIALIST RECRUITMENT,09/04/2015,53102,Agency Staff  Other,Childrens Services,Business Support    West District,"1,591.37"
867656,3390763,HAYS SPECIALIST RECRUITMENT,09/04/2015,53102,Agency Staff  Other,Childrens Services,Business Support  Children Social Care,"2,012.94"
867656,3390763,HAYS SPECIALIST RECRUITMENT,09/04/2015,53102,Agency Staff  Other,Childrens Services,Business Support  Directorate,"1,063.60"
867656,3390763,HAYS SPECIALIST RECRUITMENT,09/04/2015,53102,Agency Staff  Other,Childrens Services,Business Support  Education Services,775.89
867656,3390763,HAYS SPECIALIST RECRUITMENT,09/04/2015,53102,Agency Staff  Other,Childrens Services,CH43692 - Integrated Commissioning,540.48
867656,3390763,HAYS SPECIALIST RECRUITMENT,09/04/2015,53102,Agency Staff  Other,Childrens Services,Children and Family Supp Svs North,"1,580.72"
867656,3390763,HAYS SPECIALIST RECRUITMENT,09/04/2015,53102,Agency Staff  Other,Childrens Services,Children and Family Supp Svs South,898.79
867656,3390763,HAYS SPECIALIST RECRUITMENT,09/04/2015,53102,Agency Staff  Other,Childrens Services,Children and Family Supp Svs West,529.28
867656,3390763,HAYS SPECIALIST RECRUITMENT,09/04/2015,53102,Agency Staff  Other,Childrens Services,Conference and Reviewing,"1,577.31"
867656,3390763,HAYS SPECIALIST RECRUITMENT,09/04/2015,53102,Agency Staff  Other,Chief Executives,Legal Services Trading Account,"6,195.14"
867656,3390763,HAYS SPECIALIST RECRUITMENT,09/04/2015,53102,Agency Staff  Other,Chief Executives,Corporate Asset Planning,"1,142.64"
867656,3390763,HAYS SPECIALIST RECRUITMENT,09/04/2015,53102,Agency Staff  Other,Chief Executives,Estates & Property Management,"1,398.51"
867656,3390763,HAYS SPECIALIST RECRUITMENT,09/04/2015,53102,Agency Staff  Other,Chief Executives,CPS Shared Costs,858.82
867656,3390763,HAYS SPECIALIST RECRUITMENT,09/04/2015,53102,Agency Staff  Other,Chief Executives,Financial Management,603.24
867656,3390763,HAYS SPECIALIST RECRUITMENT,09/04/2015,53102,Agency Staff  Other,Chief Executives,Accounts Payable Shared Service Centre,618.80
867656,3390763,HAYS SPECIALIST RECRUITMENT,09/04/2015,53102,Agency Staff  Other,Chief Executives,C.R.M. Operations,"2,932.47"
867656,3390763,HAYS SPECIALIST RECRUITMENT,09/04/2015,53102,Agency Staff  Other,Development & Regeneration,Customer Services,992.60
867656,3390763,HAYS SPECIALIST RECRUITMENT,09/04/2015,53102,Agency Staff  Other,Housing GRF,Furnished Tenancy Staff Costs,"1,513.76"
867656,3390763,HAYS SPECIALIST RECRUITMENT,09/04/2015,53102,Agency Staff  Other,Environmental Services,Markets  Rent Account,"1,424.40"
867656,3390763,HAYS SPECIALIST RECRUITMENT,09/04/2015,53102,Agency Staff  Other,Environmental Services,Neighbourhood Management Support,856.34
867656,3390763,HAYS SPECIALIST RECRUITMENT,09/04/2015,53102,Agency Staff  Other,Adult Services,OA  Laburnum Lodge  Residential,804.60
867656,3390763,HAYS SPECIALIST RECRUITMENT,09/04/2015,53102,Agency Staff  Other,Childrens Services,Referral & Assmt Team North,851.12
867656,3390763,HAYS SPECIALIST RECRUITMENT,09/04/2015,53102,Agency Staff  Other,Childrens Services,Referral & Assmt Team South,828.90
867656,3390763,HAYS SPECIALIST RECRUITMENT,09/04/2015,53102,Agency Staff  Other,Childrens Services,Referral & Assmt Team West,639.66
867656,3390763,HAYS SPECIALIST RECRUITMENT,09/04/2015,53102,Agency Staff  Other,Environmental Services,Regulatory Services,781.44
867656,3390763,HAYS SPECIALIST RECRUITMENT,09/04/2015,53102,Agency Staff  Other,Childrens Services,Safeguarding Team North,"2,720.48"
867656,3390763,HAYS SPECIALIST RECRUITMENT,09/04/2015,53102,Agency Staff  Other,Childrens Services,Safeguarding Team West,"2,799.10"
867656,3390763,HAYS SPECIALIST RECRUITMENT,09/04/2015,53102,Agency Staff  Other,Childrens Services,Special Needs Unit,687.68
867656,3390763,HAYS SPECIALIST RECRUITMENT,09/04/2015,53102,Agency Staff  Other,Environmental Services,Strategy & Service Development,"1,489.16"
867656,3390763,HAYS SPECIALIST RECRUITMENT,09/04/2015,53102,Agency Staff  Other,Childrens Services,Targeted Youth Support,778.85
867656,3390763,HAYS SPECIALIST RECRUITMENT,09/04/2015,53102,Agency Staff  Other,Adult Services,Urgent Care,592.37
867656,3397352,HAYS SPECIALIST RECRUITMENT,20/04/2015,53102,Agency Staff  Other,Housing GRF,Access & Advice Caravan Sites,552.80
867656,3397352,HAYS SPECIALIST RECRUITMENT,20/04/2015,53102,Agency Staff  Other,Adult Services,ACM  South,"1,461.76"
867656,3397352,HAYS SPECIALIST RECRUITMENT,20/04/2015,53102,Agency Staff  Other,Environmental Services,Activities and Operations,"9,369.19"
867656,3397352,HAYS SPECIALIST RECRUITMENT,20/04/2015,53102,Agency Staff  Other,Adult Services,MH Early Intervention Team,"1,657.77"
867656,3397352,HAYS SPECIALIST RECRUITMENT,20/04/2015,53102,Agency Staff  Other,Adult Services,Darley Court,"9,283.40"
867656,3397352,HAYS SPECIALIST RECRUITMENT,20/04/2015,53102,Agency Staff  Other,Adult Services,Laburnum Lodge,"1,818.96"
867656,3397352,HAYS SPECIALIST RECRUITMENT,20/04/2015,53102,Agency Staff  Other,Adult Services,Reablement,532.80
867656,3397352,HAYS SPECIALIST RECRUITMENT,20/04/2015,53102,Agency Staff  Other,Childrens Services,Business Support    South District,"4,819.96"
867656,3397352,HAYS SPECIALIST RECRUITMENT,20/04/2015,53102,Agency Staff  Other,Childrens Services,Business Support    West District,"1,591.94"
867656,3397352,HAYS SPECIALIST RECRUITMENT,20/04/2015,53102,Agency Staff  Other,Childrens Services,Business Support  Children Social Care,"1,680.24"
867656,3397352,HAYS SPECIALIST RECRUITMENT,20/04/2015,53102,Agency Staff  Other,Childrens Services,Business Support  Directorate,"1,067.48"
867656,3397352,HAYS SPECIALIST RECRUITMENT,20/04/2015,53102,Agency Staff  Other,Childrens Services,Business Support  Education Services,812.08
867656,3397352,HAYS SPECIALIST RECRUITMENT,20/04/2015,53102,Agency Staff  Other,Childrens Services,Business Support - Provider Services,"1,851.06"
867656,3397352,HAYS SPECIALIST RECRUITMENT,20/04/2015,53102,Agency Staff  Other,Childrens Services,FIAT,846.81
867656,3397352,HAYS SPECIALIST RECRUITMENT,20/04/2015,53102,Agency Staff  Other,Childrens Services,Direct Payments,810.50
867656,3397352,HAYS SPECIALIST RECRUITMENT,20/04/2015,53102,Agency Staff  Other,Childrens Services,Integrated Commissioning,562.40
867656,3397352,HAYS SPECIALIST RECRUITMENT,20/04/2015,53102,Agency Staff  Other,Childrens Services,Child Prot CAHMS Grant,"1,159.31"
867656,3397352,HAYS SPECIALIST RECRUITMENT,20/04/2015,53102,Agency Staff  Other,Childrens Services,Child Prot Leaving Care Team,587.14
867656,3397352,HAYS SPECIALIST RECRUITMENT,20/04/2015,53102,Agency Staff  Other,Childrens Services,Children and Family Supp Svs North,"1,781.08"
867656,3397352,HAYS SPECIALIST RECRUITMENT,20/04/2015,53102,Agency Staff  Other,Childrens Services,Children and Family Supp Svs South,"2,564.02"
867656,3397352,HAYS SPECIALIST RECRUITMENT,20/04/2015,53102,Agency Staff  Other,Childrens Services,Children and Family Supp Svs West,"2,404.22"
867656,3397352,HAYS SPECIALIST RECRUITMENT,20/04/2015,53102,Agency Staff  Other,Chief Executives,Legal Services Trading Account,"4,684.65"
867656,3397352,HAYS SPECIALIST RECRUITMENT,20/04/2015,53102,Agency Staff  Other,Chief Executives,Occupational Health Unit,587.67
867656,3397352,HAYS SPECIALIST RECRUITMENT,20/04/2015,53102,Agency Staff  Other,Chief Executives,Corporate Asset Planning,"1,113.54"
867656,3397352,HAYS SPECIALIST RECRUITMENT,20/04/2015,53102,Agency Staff  Other,Chief Executives,Estates & Property Management,"2,363.38"
867656,3397352,HAYS SPECIALIST RECRUITMENT,20/04/2015,53102,Agency Staff  Other,Chief Executives,CPS Shared Costs,936.57
867656,3397352,HAYS SPECIALIST RECRUITMENT,20/04/2015,53102,Agency Staff  Other,Chief Executives,Financial Management,603.24
867656,3397352,HAYS SPECIALIST RECRUITMENT,20/04/2015,53102,Agency Staff  Other,Chief Executives,Accounts Payable Shared Service Centre,541.45
867656,3397352,HAYS SPECIALIST RECRUITMENT,20/04/2015,53102,Agency Staff  Other,Chief Executives,Finance Dept Procurement Team,"2,178.96"
867656,3397352,HAYS SPECIALIST RECRUITMENT,20/04/2015,53102,Agency Staff  Other,Chief Executives,C.R.M. Operations,"3,002.96"
867656,3397352,HAYS SPECIALIST RECRUITMENT,20/04/2015,53102,Agency Staff  Other,Development & Regeneration,Divisional Development,613.08
867656,3397352,HAYS SPECIALIST RECRUITMENT,20/04/2015,53102,Agency Staff  Other,Development & Regeneration,Customer Services,"1,352.66"
867656,3397352,HAYS SPECIALIST RECRUITMENT,20/04/2015,53102,Agency Staff  Other,Housing GRF,Homes for You,578.58
867656,3397352,HAYS SPECIALIST RECRUITMENT,20/04/2015,53102,Agency Staff  Other,Adult Services,LD Provider  Supported Housing,"2,164.10"
867656,3397352,HAYS SPECIALIST RECRUITMENT,20/04/2015,53102,Agency Staff  Other,Environmental Services,Markets  Rent Account,"1,470.78"
867656,3397352,HAYS SPECIALIST RECRUITMENT,20/04/2015,53102,Agency Staff  Other,Housing GRF,Mediation,"1,218.28"
867656,3397352,HAYS SPECIALIST RECRUITMENT,20/04/2015,53102,Agency Staff  Other,Adult Services,MH North Fieldwork Team,"2,410.88"
867656,3397352,HAYS SPECIALIST RECRUITMENT,20/04/2015,53102,Agency Staff  Other,Environmental Services,Neighbourhood Management Support,823.21
867656,3397352,HAYS SPECIALIST RECRUITMENT,20/04/2015,53102,Agency Staff  Other,Childrens Services,Referral & Assmt Team North,692.44
867656,3397352,HAYS SPECIALIST RECRUITMENT,20/04/2015,53102,Agency Staff  Other,Childrens Services,Referral & Assmt Team West,828.88
867656,3397352,HAYS SPECIALIST RECRUITMENT,20/04/2015,53102,Agency Staff  Other,Childrens Services,Safeguarding Team North,"2,277.51"
867656,3397352,HAYS SPECIALIST RECRUITMENT,20/04/2015,53102,Agency Staff  Other,Childrens Services,Safeguarding Team South,"1,650.86"
867656,3397352,HAYS SPECIALIST RECRUITMENT,20/04/2015,53102,Agency Staff  Other,Childrens Services,Safeguarding Team West,"2,592.24"
867656,3397352,HAYS SPECIALIST RECRUITMENT,20/04/2015,53102,Agency Staff  Other,Environmental Services,Strategy & Service Development,948.08
867656,3397352,HAYS SPECIALIST RECRUITMENT,20/04/2015,53102,Agency Staff  Other,Childrens Services,Targeted Youth Support,"2,368.71"
867656,3397352,HAYS SPECIALIST RECRUITMENT,20/04/2015,53102,Agency Staff  Other,Adult Services,Urgent Care,"1,898.52"
867656,3397352,HAYS SPECIALIST RECRUITMENT,20/04/2015,53102,Agency Staff  Other,Environmental Services,Waste,"21,038.27"
867656,3397352,HAYS SPECIALIST RECRUITMENT,20/04/2015,53102,Agency Staff  Other,Childrens Services,Youth Offending Team,"1,909.20"
867656,3402216,HAYS SPECIALIST RECRUITMENT,23/04/2015,53102,Agency Staff  Other,Housing GRF,Access & Advice Caravan Sites,687.20
867656,3402216,HAYS SPECIALIST RECRUITMENT,23/04/2015,53102,Agency Staff  Other,Adult Services,ACM  North,"1,629.24"
867656,3402216,HAYS SPECIALIST RECRUITMENT,23/04/2015,53102,Agency Staff  Other,Environmental Services,Activities and Operations,641.15
867656,3402216,HAYS SPECIALIST RECRUITMENT,23/04/2015,53102,Agency Staff  Other,Adult Services,Wilfred Geere (2),"2,912.58"
867656,3402216,HAYS SPECIALIST RECRUITMENT,23/04/2015,53102,Agency Staff  Other,Adult Services,MH Early Intervention Team,"1,022.29"
867656,3402216,HAYS SPECIALIST RECRUITMENT,23/04/2015,53102,Agency Staff  Other,Adult Services,Darley Court,"9,057.30"
867656,3402216,HAYS SPECIALIST RECRUITMENT,23/04/2015,53102,Agency Staff  Other,Adult Services,Laburnum Lodge,"2,255.03"
867656,3402216,HAYS SPECIALIST RECRUITMENT,23/04/2015,53102,Agency Staff  Other,Adult Services,Reablement,"1,422.64"
867656,3402216,HAYS SPECIALIST RECRUITMENT,23/04/2015,53102,Agency Staff  Other,Childrens Services,Business Support    South District,"4,509.33"
867656,3402216,HAYS SPECIALIST RECRUITMENT,23/04/2015,53102,Agency Staff  Other,Childrens Services,Business Support    West District,"2,243.28"
867656,3402216,HAYS SPECIALIST RECRUITMENT,23/04/2015,53102,Agency Staff  Other,Childrens Services,Business Support  Children Social Care,"3,265.16"
867656,3402216,HAYS SPECIALIST RECRUITMENT,23/04/2015,53102,Agency Staff  Other,Childrens Services,Business Support  Directorate,652.03
867656,3402216,HAYS SPECIALIST RECRUITMENT,23/04/2015,53102,Agency Staff  Other,Childrens Services,Business Support  Education Services,"1,119.88"
867656,3402216,HAYS SPECIALIST RECRUITMENT,23/04/2015,53102,Agency Staff  Other,Childrens Services,Business Support - Provider Services,921.93
867656,3402216,HAYS SPECIALIST RECRUITMENT,23/04/2015,53102,Agency Staff  Other,Childrens Services,FIAT,709.67
867656,3402216,HAYS SPECIALIST RECRUITMENT,23/04/2015,53102,Agency Staff  Other,Childrens Services,Direct Payments,807.43
867656,3402216,HAYS SPECIALIST RECRUITMENT,23/04/2015,53102,Agency Staff  Other,Childrens Services,Integrated Commissioning,675.60
867656,3402216,HAYS SPECIALIST RECRUITMENT,23/04/2015,53102,Agency Staff  Other,Childrens Services,Child Prot CAHMS Grant,"1,744.22"
867656,3402216,HAYS SPECIALIST RECRUITMENT,23/04/2015,53102,Agency Staff  Other,Childrens Services,Child Prot Leaving Care Team,"1,685.43"
867656,3402216,HAYS SPECIALIST RECRUITMENT,23/04/2015,53102,Agency Staff  Other,Childrens Services,Children and Family Supp Svs North,"1,214.80"
867656,3402216,HAYS SPECIALIST RECRUITMENT,23/04/2015,53102,Agency Staff  Other,Childrens Services,Children and Family Supp Svs South,"2,589.49"
867656,3402216,HAYS SPECIALIST RECRUITMENT,23/04/2015,53102,Agency Staff  Other,Childrens Services,Children and Family Supp Svs West,"1,837.33"
867656,3402216,HAYS SPECIALIST RECRUITMENT,23/04/2015,53102,Agency Staff  Other,Environmental Services,Civic Cleaning,"1,606.16"
867656,3402216,HAYS SPECIALIST RECRUITMENT,23/04/2015,53102,Agency Staff  Other,Childrens Services,Conference and Reviewing,"1,278.90"
867656,3402216,HAYS SPECIALIST RECRUITMENT,23/04/2015,53102,Agency Staff  Other,Chief Executives,Legal Services Trading Account,"5,675.44"
867656,3402216,HAYS SPECIALIST RECRUITMENT,23/04/2015,53102,Agency Staff  Other,Chief Executives,Corporate Asset Planning,"1,339.28"
867656,3402216,HAYS SPECIALIST RECRUITMENT,23/04/2015,53102,Agency Staff  Other,Chief Executives,Estates & Property Management,"2,795.21"
867656,3402216,HAYS SPECIALIST RECRUITMENT,23/04/2015,53102,Agency Staff  Other,Chief Executives,CPS Shared Costs,"1,058.80"
867656,3402216,HAYS SPECIALIST RECRUITMENT,23/04/2015,53102,Agency Staff  Other,Chief Executives,Financial Management,754.05
867656,3402216,HAYS SPECIALIST RECRUITMENT,23/04/2015,53102,Agency Staff  Other,Chief Executives,Accounts Payable Shared Service Centre,773.50
867656,3402216,HAYS SPECIALIST RECRUITMENT,23/04/2015,53102,Agency Staff  Other,Chief Executives,Finance Dept Procurement Team,"1,354.42"
867656,3402216,HAYS SPECIALIST RECRUITMENT,23/04/2015,53102,Agency Staff  Other,Chief Executives,C.R.M. Operations,"3,607.39"
867656,3402216,HAYS SPECIALIST RECRUITMENT,23/04/2015,53102,Agency Staff  Other,Development & Regeneration,Customer Services,687.24
867656,3402216,HAYS SPECIALIST RECRUITMENT,23/04/2015,53102,Agency Staff  Other,Housing GRF,Haulgh project,543.90
867656,3402216,HAYS SPECIALIST RECRUITMENT,23/04/2015,53102,Agency Staff  Other,Housing GRF,Homes for You,782.39
867656,3402216,HAYS SPECIALIST RECRUITMENT,23/04/2015,53102,Agency Staff  Other,Adult Services,LD Provider  Supported Housing,"1,078.00"
867656,3402216,HAYS SPECIALIST RECRUITMENT,23/04/2015,53102,Agency Staff  Other,Environmental Services,Markets  Rent Account,614.88
867656,3402216,HAYS SPECIALIST RECRUITMENT,23/04/2015,53102,Agency Staff  Other,Housing GRF,Mediation,527.27
867656,3402216,HAYS SPECIALIST RECRUITMENT,23/04/2015,53102,Agency Staff  Other,Environmental Services,Neighbourhood Management Support,740.34
867656,3402216,HAYS SPECIALIST RECRUITMENT,23/04/2015,53102,Agency Staff  Other,Adult Services,OA  Wilfred Geere  Residential,"2,937.28"
867656,3402216,HAYS SPECIALIST RECRUITMENT,23/04/2015,53102,Agency Staff  Other,Childrens Services,Referral & Assmt Team North,"1,051.83"
867656,3402216,HAYS SPECIALIST RECRUITMENT,23/04/2015,53102,Agency Staff  Other,Childrens Services,Referral & Assmt Team South,"1,851.21"
867656,3402216,HAYS SPECIALIST RECRUITMENT,23/04/2015,53102,Agency Staff  Other,Childrens Services,Referral & Assmt Team West,"1,061.89"
867656,3402216,HAYS SPECIALIST RECRUITMENT,23/04/2015,53102,Agency Staff  Other,Childrens Services,Safeguarding Team North,"3,139.72"
867656,3402216,HAYS SPECIALIST RECRUITMENT,23/04/2015,53102,Agency Staff  Other,Childrens Services,Safeguarding Team South,"1,022.30"
867656,3402216,HAYS SPECIALIST RECRUITMENT,23/04/2015,53102,Agency Staff  Other,Childrens Services,Safeguarding Team West,"3,608.92"
867656,3402216,HAYS SPECIALIST RECRUITMENT,23/04/2015,53102,Agency Staff  Other,Environmental Services,Strategy & Service Development,"2,402.53"
867656,3402216,HAYS SPECIALIST RECRUITMENT,23/04/2015,53102,Agency Staff  Other,Childrens Services,Substance Misuse,658.21
867656,3402216,HAYS SPECIALIST RECRUITMENT,23/04/2015,53102,Agency Staff  Other,Childrens Services,Targeted Youth Support,"2,546.63"
867656,3402216,HAYS SPECIALIST RECRUITMENT,23/04/2015,53102,Agency Staff  Other,Adult Services,Urgent Care,"1,494.99"
867656,3402216,HAYS SPECIALIST RECRUITMENT,23/04/2015,53102,Agency Staff  Other,Environmental Services,Waste,"30,646.54"
867656,3402216,HAYS SPECIALIST RECRUITMENT,23/04/2015,53102,Agency Staff  Other,Childrens Services,Youth Offending Team,"1,254.20"
6367,3389758,HAZELBROOK CHRISTIAN NURSING HOME,07/04/2015,Z6011,Z6011 - CR Bal Hold A/c Exp,Adult Services,Health - Funded Nursing Care,911.12
6367,3389758,HAZELBROOK CHRISTIAN NURSING HOME,07/04/2015,54301,Residential Provision,Adult Services,OA  External Provision Residential,"3,894.33"
6367,3389758,HAZELBROOK CHRISTIAN NURSING HOME,07/04/2015,54302,Nursing Provision,Adult Services,OA  External Provision Residential,"3,289.12"
73073,3394882,HEARING PRODUCTS INTERNATIONAL LIMITED,16/04/2015,44051,Clients Aids & Adaptations,Adult Services,ICES,"1,853.00"
146379,3394153,HEARTLIFT#ANDREA WOOD,16/04/2015,48509,Other Fees,Childrens Services,Early Intervention Team,"1,400.00"
3776,3409355,HEATON MEDICAL CENTRE#P82031,30/04/2015,52200,Contracted Services,Public Health,Sexual Health Improvement,"2,890.00"
2284374,3388595,HELENA PARTNERSHIPS#HELENA COMMERCIAL SERVICES,02/04/2015,Z6008,Expense AP Accrual,Bolton MBC Balance Sheet,Bolton MBC Balance Sheet,532.40
3786,3396063,HELPING HAND CO (LEDBURY) LTD,20/04/2015,44051,Clients Aids & Adaptations,Adult Services,ICES,530.00
6369,3389725,HENSHAWS SOCIETY FOR THE BLIND,07/04/2015,54301,Residential Provision,Adult Services,PD Purchaser Residential Care,"2,946.72"
2729316,3397356,Hexagon Care Services Ltd,20/04/2015,52000,Vol Assoc Grants  General,Childrens Services,Res Serv Agency Placements,"10,692.86"
2729316,3397374,Hexagon Care Services Ltd,20/04/2015,52000,Vol Assoc Grants  General,Childrens Services,Res Serv Agency Placements,"10,521.43"
2729316,3409450,Hexagon Care Services Ltd,30/04/2015,52000,Vol Assoc Grants  General,Childrens Services,Res Serv Agency Placements,"11,977.85"
2754301,3389708,Heywood Court Care Home,07/04/2015,54301,Residential Provision,Adult Services,OA  External Provision Residential,"1,750.72"
2278335,3411030,HIBU (UK) LIMITED,30/04/2015,47200,General Subscriptions,Environmental Services,Security Services,"1,164.40"
220505,3390181,HICOM BUSINESS SOLUTIONS,09/04/2015,45431,Computer Software Licences,Development & Regeneration,TC Leadership Board Projects,"1,250.00"
2544302,3389867,High Brake House,07/04/2015,54301,Residential Provision,Adult Services,OA  External Provision Residential,"1,712.00"
258947,3389811,HIGHCLIFFE RESIDENTIAL HOME#TEAMCARE LTD,07/04/2015,54301,Residential Provision,Adult Services,OA  External Provision Residential,"1,712.00"
2732390,3393890,Highways & Groundworks NVQ Assessment Centre Ltd,13/04/2015,19002,Medical Examination Fees,Environmental Services,Activities and Operations,900.00
236248,3389807,HILLCREST VERNON,07/04/2015,54301,Residential Provision,Adult Services,LD Purchaser Residential Care,"4,870.72"
2013321,3389829,HILLVIEW CARE HOME,07/04/2015,54301,Residential Provision,Adult Services,OA  External Provision Residential,"1,712.00"
125827,3403849,HM COURTS SERVICE,29/04/2015,48509,Other Fees,Chief Executives,Housing Benefits,"1,920.00"
125827,3403851,HM COURTS SERVICE,29/04/2015,48509,Other Fees,Chief Executives,Housing Benefits,"1,275.00"
6454,3389729,HOLLANDS NURSING HOME,07/04/2015,Z6011,Z6011 - CR Bal Hold A/c Exp,Adult Services,Health - Funded Nursing Care,"3,596.48"
6454,3389729,HOLLANDS NURSING HOME,07/04/2015,54301,Residential Provision,Adult Services,LD Purchaser Residential Care,"5,600.19"
6454,3389729,HOLLANDS NURSING HOME,07/04/2015,54301,Residential Provision,Adult Services,MH Residential External Provision,"12,305.14"
6454,3389729,HOLLANDS NURSING HOME,07/04/2015,54302,Nursing Provision,Adult Services,MH Residential External Provision,"8,846.72"
6454,3389729,HOLLANDS NURSING HOME,07/04/2015,54301,Residential Provision,Adult Services,PD Purchaser Residential Care,"5,457.16"
6454,3389729,HOLLANDS NURSING HOME,07/04/2015,54302,Nursing Provision,Adult Services,PD Purchaser Residential Care,"7,674.28"
125827,3403952,HOMEBASE.CO.UK,29/04/2015,40110,Op Equip Furniture Purchase,Childrens Services,Admin Strategic Finance Unit,853.94
128732,3396170,HOMECARE FOR YOU LTD#BLACKBURN,20/04/2015,52200,Contracted Services,Adult Services,OA  Home Care Services external provision,"45,895.23"
1617292,3389993,HOMECARE SUPPORT,09/04/2015,52200,Contracted Services,Adult Services,OA  Home Care Services external provision,"67,827.27"
1617292,3390000,HOMECARE SUPPORT,09/04/2015,52200,Contracted Services,Adult Services,OA  Home Care Services external provision,"44,506.77"
217235,3389803,HOURIGAN HOUSE#BOROUGH CARE SERVICES,07/04/2015,54301,Residential Provision,Adult Services,OA  External Provision Residential,"1,496.00"
1861291,3403707,HULLEYS GROUP,27/04/2015,41101,Catering ProvisionsFood,Environmental Services,Pavillion Cafe,793.71
1861291,3400168,HULLEYS GROUP,23/04/2015,41101,Catering ProvisionsFood,Environmental Services,Moss Bank Park Pavilion,528.71
1861291,3403758,HULLEYS GROUP,27/04/2015,41101,Catering ProvisionsFood,Environmental Services,Pavillion Cafe,520.31
6138,3389718,HYDE  LEA,07/04/2015,Z6011,Z6011 - CR Bal Hold A/c Exp,Adult Services,3rd Party Social Care Contributions,528.04
6138,3389718,HYDE  LEA,07/04/2015,54301,Residential Provision,Adult Services,OA  External Provision Residential,"17,808.76"
6138,3389717,HYDE  LEA,07/04/2015,54301,Residential Provision,Adult Services,OA  External Provision Residential,"1,244.48"
2823301,3402206,ICT Revolutions Ltd,23/04/2015,Z1051,Work in Progress Additions,Adult Services,Adult Services Balance Sheet,"2,700.00"
302829,3390756,IDOX SOFTWARE LTD,09/04/2015,45401,Computer Maintenance,Development & Regeneration,Development Management,"11,138.40"
1582048,3407950,IDS LAND SURVEY,27/04/2015,Z1051,Work in Progress Additions,Highways,Stores,"7,900.00"
1578309,3390039,IFLOURISH LTD,09/04/2015,40100,Operational Equipment Purchase,Childrens Services,CWPD Governors,705.00
1578309,3410754,IFLOURISH LTD,30/04/2015,48509,Other Fees,Childrens Services,CE Funding  Intervention  Primary,"6,900.00"
244568,3390755,IHS (GLOBAL) LIMITED,09/04/2015,47200,General Subscriptions,Development & Regeneration,D&R Building Control (Trading),"4,333.14"
22994,3408700,IKEN BUSINESS LTD,27/04/2015,45431,Computer Software Licences,Chief Executives,Legal Services Trading Account,"11,674.56"
1194842,3394640,IMPRESSION (BOLTON) LIMITED#1,23/04/2015,48203,Marketing,Chief Executives,Marketing - Holding Code,648.00
1194842,3394192,IMPRESSION (BOLTON) LIMITED#1,23/04/2015,48602,Exhibit Hire,Development & Regeneration,Collections Access MUS,970.00
1194842,3394190,IMPRESSION (BOLTON) LIMITED#1,23/04/2015,48203,Marketing,Chief Executives,Marketing - Holding Code,500.00
1194842,3407935,IMPRESSION (BOLTON) LIMITED#1,27/04/2015,48203,Marketing,Chief Executives,Marketing - Holding Code,"7,220.00"
1194842,3400220,IMPRESSION (BOLTON) LIMITED#1,23/04/2015,48203,Marketing,Chief Executives,Marketing - Holding Code,850.00
8734,3400607,IMPROVEMENT & DEVELOPMENT AGENCY FOR LOCAL GOVERNMENT,23/04/2015,48629,Miscellaneous Expenses,Chief Executives,Corporate Information Team,"2,260.00"
1581897,3388826,INDEPENDENT BUSINESS SERVICES LTD,09/04/2015,48509,Other Fees,Childrens Services,Special Needs Unit,"2,691.50"
1581305,3402361,Independent Choices,23/04/2015,48202,General Publicity,Environmental Services,Community Safety,500.00
3909,3394493,INFORMATION & DATA NETWORK SUPPLIES LTD#IDN,16/04/2015,45400,Computer Purchase,Childrens Services,Admin IT (Schools),"1,177.50"
3909,3389074,INFORMATION & DATA NETWORK SUPPLIES LTD#IDN,09/04/2015,45400,Computer Purchase,Childrens Services,Admin IT (Schools),"5,281.10"
3909,3407191,INFORMATION & DATA NETWORK SUPPLIES LTD#IDN,27/04/2015,40140,Office Equipment Purchase,Childrens Services,Admin IT (Schools),"4,367.10"
34422,3389784,Ingleborough Nursing Home LLP,07/04/2015,54301,Residential Provision,Adult Services,OA  External Provision Residential,"1,831.76"
34422,3389784,Ingleborough Nursing Home LLP,07/04/2015,54302,Nursing Provision,Adult Services,OA  External Provision Residential,"1,688.12"
2778298,3389994,Inmind Childrens Services,09/04/2015,52000,Vol Assoc Grants  General,Childrens Services,Res Serv Agency Placements,"18,240.04"
2778298,3390001,Inmind Childrens Services,09/04/2015,52000,Vol Assoc Grants  General,Childrens Services,Res Serv Agency Placements,"20,194.33"
2778298,3389990,Inmind Childrens Services,09/04/2015,52000,Vol Assoc Grants  General,Childrens Services,Res Serv Agency Placements,"15,634.32"
2778298,3390694,Inmind Childrens Services,09/04/2015,52000,Vol Assoc Grants  General,Childrens Services,Res Serv Agency Placements,"13,382.89"
2854299,3397334,Inspire Childrens Services,23/04/2015,52000,Vol Assoc Grants  General,Childrens Services,Res Serv Agency Placements,"5,390.00"
2854299,3407985,Inspire Childrens Services,27/04/2015,52000,Vol Assoc Grants  General,Childrens Services,Res Serv Agency Placements,"5,775.00"
2822310,3400126,Inspire Community Services Ltd,23/04/2015,52000,Vol Assoc Grants  General,Childrens Services,Res Serv Agency Placements,"2,588.67"
2822310,3397360,Inspire Community Services Ltd,20/04/2015,52000,Vol Assoc Grants  General,Childrens Services,Res Serv Agency Placements,"5,742.00"
6391,3390138,INSTARMAC GROUP PLC,09/04/2015,Z6008,Expense AP Accrual,Bolton MBC Balance Sheet,Bolton MBC Balance Sheet,674.96
6391,3400209,INSTARMAC GROUP PLC,23/04/2015,Z6007,Z6007 - Inventory AP Accrual,Highways,Stores,"1,646.40"
2841301,3402742,Integrity Enterprises Ltd,23/04/2015,20501,Engineering Work,Environmental Services,Highway Services,"2,999.00"
2178306,3410761,ISG CONSTRUCTION LTD,30/04/2015,Z1051,Work in Progress Additions,Property Services,Property Services Balance Sheet,"178,491.00"
267154,3400664,J A TYRE SERVICE LTD,23/04/2015,31303,Tyres,Environmental Services,Transport Support Service,"1,160.50"
267154,3400652,J A TYRE SERVICE LTD,23/04/2015,31303,Tyres,Environmental Services,Transport Support Service,800.00
267154,3400667,J A TYRE SERVICE LTD,23/04/2015,31303,Tyres,Environmental Services,Transport Support Service,765.95
267154,3400624,J A TYRE SERVICE LTD,23/04/2015,31303,Tyres,Environmental Services,Transport Support Service,"1,276.25"
267154,3400621,J A TYRE SERVICE LTD,23/04/2015,31303,Tyres,Environmental Services,Transport Support Service,"1,118.45"
267154,3400616,J A TYRE SERVICE LTD,23/04/2015,31303,Tyres,Environmental Services,Transport Support Service,717.40
6399,3389909,J DICKINSON & SONS (HORWICH) LTD#2,09/04/2015,20101,Programmed Maint. Work,Environmental Services,Highways Managers,"2,356.93"
6399,3388775,J DICKINSON & SONS (HORWICH) LTD#2,09/04/2015,26106,Refuse Collection,Environmental Services,Bereavement Services,540.00
6399,3387710,J DICKINSON & SONS (HORWICH) LTD#2,02/04/2015,Z6008,Expense AP Accrual,Bolton MBC Balance Sheet,Bolton MBC Balance Sheet,"1,339.85"
6399,3409660,J DICKINSON & SONS (HORWICH) LTD#2,30/04/2015,40610,Direct Materials,Environmental Services,Highway Services,"1,023.33"
6399,3409582,J DICKINSON & SONS (HORWICH) LTD#2,30/04/2015,26106,Refuse Collection,Environmental Services,Markets  Rent Account,"1,228.28"
6399,3409785,J DICKINSON & SONS (HORWICH) LTD#2,30/04/2015,20101,Programmed Maint. Work,Environmental Services,Highways Managers,"1,504.70"
6399,3391814,J DICKINSON & SONS (HORWICH) LTD#2,13/04/2015,20101,Programmed Maint. Work,Environmental Services,Highways Managers,779.59
6399,3392600,J DICKINSON & SONS (HORWICH) LTD#2,13/04/2015,26106,Refuse Collection,Environmental Services,Markets  Rent Account,"1,408.48"
6399,3387742,J DICKINSON & SONS (HORWICH) LTD#2,02/04/2015,Z6008,Expense AP Accrual,Bolton MBC Balance Sheet,Bolton MBC Balance Sheet,604.95
6399,3387713,J DICKINSON & SONS (HORWICH) LTD#2,02/04/2015,40610,Direct Materials,Environmental Services,Highway Services,745.00
6399,3391818,J DICKINSON & SONS (HORWICH) LTD#2,13/04/2015,20101,Programmed Maint. Work,Environmental Services,Highways Managers,504.62
6399,3392387,J DICKINSON & SONS (HORWICH) LTD#2,13/04/2015,26106,Refuse Collection,Environmental Services,Markets  Rent Account,661.84
6399,3387735,J DICKINSON & SONS (HORWICH) LTD#2,02/04/2015,Z6008,Expense AP Accrual,Bolton MBC Balance Sheet,Bolton MBC Balance Sheet,623.25
6399,3392398,J DICKINSON & SONS (HORWICH) LTD#2,13/04/2015,26106,Refuse Collection,Environmental Services,Activities and Operations,639.18
6399,3387738,J DICKINSON & SONS (HORWICH) LTD#2,02/04/2015,Z6008,Expense AP Accrual,Bolton MBC Balance Sheet,Bolton MBC Balance Sheet,"1,490.70"
6399,3387715,J DICKINSON & SONS (HORWICH) LTD#2,02/04/2015,40610,Direct Materials,Environmental Services,Highway Services,797.26
6399,3387747,J DICKINSON & SONS (HORWICH) LTD#2,02/04/2015,Z6008,Expense AP Accrual,Bolton MBC Balance Sheet,Bolton MBC Balance Sheet,996.72
6399,3395219,J DICKINSON & SONS (HORWICH) LTD#2,27/04/2015,40610,Direct Materials,Environmental Services,Depots,"2,077.57"
6399,3395757,J DICKINSON & SONS (HORWICH) LTD#2,16/04/2015,40610,Direct Materials,Environmental Services,Highway Services,867.43
6399,3396769,J DICKINSON & SONS (HORWICH) LTD#2,30/04/2015,40610,Direct Materials,Environmental Services,Depots,779.48
6399,3408961,J DICKINSON & SONS (HORWICH) LTD#2,30/04/2015,26106,Refuse Collection,Environmental Services,Markets  Rent Account,"1,510.24"
6399,3397158,J DICKINSON & SONS (HORWICH) LTD#2,20/04/2015,40610,Direct Materials,Environmental Services,Highway Services,600.19
6399,3409661,J DICKINSON & SONS (HORWICH) LTD#2,30/04/2015,40610,Direct Materials,Environmental Services,Highway Services,"1,509.25"
6399,3409781,J DICKINSON & SONS (HORWICH) LTD#2,30/04/2015,20101,Programmed Maint. Work,Environmental Services,Highways Managers,761.81
6399,3408958,J DICKINSON & SONS (HORWICH) LTD#2,30/04/2015,26106,Refuse Collection,Environmental Services,Markets  Rent Account,"1,412.72"
6399,3408725,J DICKINSON & SONS (HORWICH) LTD#2,27/04/2015,20101,Programmed Maint. Work,Environmental Services,Highways Managers,830.12
6399,3402332,J DICKINSON & SONS (HORWICH) LTD#2,23/04/2015,26106,Refuse Collection,Environmental Services,Activities and Operations,586.43
7896,3390024,J G REDFORD LTD,07/04/2015,52200,Contracted Services,Housing GRF,Benjamin Court Accommodation,"1,435.00"
7896,3390757,J G REDFORD LTD,09/04/2015,Z1051,Work in Progress Additions,Housing GRF,Capital  General Fund,"25,000.00"
6401,3401946,J HOPKINS (CONTRACTORS) LTD,23/04/2015,20501,Engineering Work,Environmental Services,Highways Works Non Billable,"10,080.00"
6401,3388812,J HOPKINS (CONTRACTORS) LTD,09/04/2015,Z6008,Expense AP Accrual,Bolton MBC Balance Sheet,Bolton MBC Balance Sheet,"12,600.00"
6401,3407955,J HOPKINS (CONTRACTORS) LTD,27/04/2015,Z6008,Expense AP Accrual,Bolton MBC Balance Sheet,Bolton MBC Balance Sheet,"8,820.00"
6401,3394732,J HOPKINS (CONTRACTORS) LTD,16/04/2015,Z1051,Work in Progress Additions,Highways,Stores,"29,700.00"
6401,3394754,J HOPKINS (CONTRACTORS) LTD,16/04/2015,Z1051,Work in Progress Additions,Highways,Stores,"148,500.00"
6401,3394736,J HOPKINS (CONTRACTORS) LTD,16/04/2015,Z1051,Work in Progress Additions,Highways,Stores,"89,100.00"
6401,3394744,J HOPKINS (CONTRACTORS) LTD,16/04/2015,Z1051,Work in Progress Additions,Highways,Stores,"69,300.00"
6401,3394752,J HOPKINS (CONTRACTORS) LTD,16/04/2015,Z1051,Work in Progress Additions,Highways,Stores,"24,750.00"
6401,3394747,J HOPKINS (CONTRACTORS) LTD,16/04/2015,Z1051,Work in Progress Additions,Highways,Stores,"79,200.00"
6401,3394741,J HOPKINS (CONTRACTORS) LTD,16/04/2015,Z1051,Work in Progress Additions,Highways,Stores,"17,820.00"
6401,3394749,J HOPKINS (CONTRACTORS) LTD,16/04/2015,Z1051,Work in Progress Additions,Highways,Stores,"19,800.00"
6401,3407954,J HOPKINS (CONTRACTORS) LTD,27/04/2015,Z6008,Expense AP Accrual,Bolton MBC Balance Sheet,Bolton MBC Balance Sheet,"12,600.00"
4021,3388767,J MAHER LIMITED,09/04/2015,40609,Horticultural Materials,Environmental Services,Heaton Fold,691.87
6403,3393781,J PHILLIPS & SONS LTD#1,23/04/2015,Z6008,Expense AP Accrual,Bolton MBC Balance Sheet,Bolton MBC Balance Sheet,"9,130.00"
4036,3394899,J W WHITTLE LIMITED#STORE-AWAY ARCHIVE FACILITIES,16/04/2015,22006,Rent of Storage Facilities,Development & Regeneration,Museum Premises,720.00
2112387,3388619,J W YOUNG (BUTCHERS) LIMITED,02/04/2015,41101,Catering ProvisionsFood,Environmental Services,Catering,"3,009.38"
2112387,3396866,J W YOUNG (BUTCHERS) LIMITED,20/04/2015,41101,Catering ProvisionsFood,Environmental Services,Catering,"2,548.50"
2112387,3407793,J W YOUNG (BUTCHERS) LIMITED,27/04/2015,41101,Catering ProvisionsFood,Environmental Services,Catering,"2,661.31"
2284291,3393792,JACKSON JACKSON & SONS LTD,13/04/2015,Z6008,Expense AP Accrual,Bolton MBC Balance Sheet,Bolton MBC Balance Sheet,504.60
2284291,3391295,JACKSON JACKSON & SONS LTD,09/04/2015,Z6008,Expense AP Accrual,Bolton MBC Balance Sheet,Bolton MBC Balance Sheet,693.60
2284291,3391297,JACKSON JACKSON & SONS LTD,09/04/2015,Z6008,Expense AP Accrual,Bolton MBC Balance Sheet,Bolton MBC Balance Sheet,"1,397.40"
4060,3389769,JAH-JIREH (BLACKPOOL),07/04/2015,54301,Residential Provision,Adult Services,OA  External Provision Residential,"3,268.00"
210247,3387813,James Coles & Sons (Nurseries) Ltd,02/04/2015,52200,Contracted Services,Environmental Services,Assets,"5,606.00"
58799,3403801,JAY FOSTERING LIMITED,27/04/2015,52000,Vol Assoc Grants  General,Childrens Services,Res Serv Agency Placements,"3,387.90"
241124,3389894,JD SPORTS FASHION PLC,09/04/2015,47103,Miscellaneous Grants,Childrens Services,Corporate Parenting,500.00
14562,3389891,JDC COMMUNICATIONS LIMITED,09/04/2015,48203,Marketing,Environmental Services,Catering,"2,500.00"
215200,3390094,JEFF TOWNSLEY LTD,09/04/2015,40100,Operational Equipment Purchase,Childrens Services,Youth Service Outdoor Education,874.70
2706298,3394962,Jeremy Benn Associates Limited T/A JBA Consulting,16/04/2015,Z6011,Z6011 - CR Bal Hold A/c Exp,Environmental Services,Environmental Services Balance sheet,"7,121.00"
74839,3396760,JETCHEM SYSTEMS LTD,20/04/2015,Z6008,Expense AP Accrual,Bolton MBC Balance Sheet,Bolton MBC Balance Sheet,"1,500.00"
213806,3397391,JO HOSSLE-STANDRING T/A JORCHID,20/04/2015,55711,Medical Referees Fees,Chief Executives,Occ Health Holding Code,"1,965.82"
2807310,3389913,Johnson & Broughton#J & B Ltd,09/04/2015,20501,Engineering Work,Environmental Services,Highway Services,"3,600.00"
22137,3390207,Johnson Fold Primary School,09/04/2015,21100,Electricity  General,Childrens Services,Yth Srv Johnsn Fold All Wthr,"1,551.03"
1122809,3395064,JONES LIGHTING LTD,16/04/2015,Z1051,Work in Progress Additions,Highways,Stores,"6,290.77"
1122809,3389978,JONES LIGHTING LTD,09/04/2015,Z1051,Work in Progress Additions,Highways,Stores,"4,000.88"
1122809,3389977,JONES LIGHTING LTD,09/04/2015,Z6011,Z6011 - CR Bal Hold A/c Exp,Environmental Services,Environmental Services Balance sheet,550.13
1122809,3389948,JONES LIGHTING LTD,09/04/2015,Z1051,Work in Progress Additions,Highways,Stores,"1,049.98"
1122809,3395434,JONES LIGHTING LTD,16/04/2015,Z1051,Work in Progress Additions,Highways,Stores,"2,796.53"
1122809,3395299,JONES LIGHTING LTD,27/04/2015,48509,Other Fees,Environmental Services,Neighbourhood Management Programme,616.58
1122809,3392281,JONES LIGHTING LTD,13/04/2015,Z1051,Work in Progress Additions,Highways,Stores,"4,420.54"
1122809,3390338,JONES LIGHTING LTD,09/04/2015,20501,Engineering Work,Environmental Services,Highway Services,500.11
1122809,3395296,JONES LIGHTING LTD,16/04/2015,20501,Engineering Work,Environmental Services,Neighbourhood Management Programme,"2,260.03"
219394,3402317,JUST CHECKING LTD,23/04/2015,44051,Clients Aids & Adaptations,Adult Services,ASC External Funded Schemes,"5,596.00"
18212,3393925,KAROMED LIMITED,13/04/2015,44051,Clients Aids & Adaptations,Adult Services,ICES,"1,540.00"
115484,3389931,KAYS TRAFFIC MANAGEMENT SYSTEMS LTD,09/04/2015,52200,Contracted Services,Environmental Services,Activities and Operations,"4,224.00"
115484,3388945,KAYS TRAFFIC MANAGEMENT SYSTEMS LTD,09/04/2015,52200,Contracted Services,Environmental Services,Activities and Operations,"2,237.00"
2813351,3395063,KBA Solutions Limited,23/04/2015,45250,Mobile Telephone Purchase,Environmental Services,Waste,"3,695.00"
78997,3399823,KEARSLEY CRICKET CLUB#1,20/04/2015,47103,Miscellaneous Grants,Environmental Services,Neighbourhood Management Programme,"1,000.00"
120894,3396050,Kearsley Mount Methodist Church,20/04/2015,22004,Room Hire,Childrens Services,Gtr Manchester Music Education Hub,670.00
10144,3395360,KENSITE SERVICES LTD,16/04/2015,48203,Marketing,Chief Executives,Marketing - Holding Code,980.00
7747,3389753,KENYON LODGE,07/04/2015,54301,Residential Provision,Adult Services,OA  External Provision Residential,"4,518.12"
7747,3389752,KENYON LODGE,07/04/2015,54301,Residential Provision,Adult Services,OA  External Provision Residential,699.23
2503295,3399984,KIER FPS LIMITED,23/04/2015,33203,Contract Hire,Environmental Services,Transport Support Service,"6,215.82"
2740303,3407694,Kinder Castle Day Nursery,27/04/2015,44054,Other Clients Services,Childrens Services,LAC Team North,"2,199.50"
1692310,3388541,KINDERKEY HEALTHCARE LIMITED,02/04/2015,44051,Clients Aids & Adaptations,Adult Services,ICES,530.00
1989355,3389828,KINGARTH,07/04/2015,54301,Residential Provision,Adult Services,LD Purchaser Residential Care,"33,575.20"
2740305,3389706,Kingdom House,07/04/2015,54301,Residential Provision,Adult Services,PD Purchaser Residential Care,"7,501.77"
2740305,3389707,Kingdom House,07/04/2015,54301,Residential Provision,Adult Services,PD Purchaser Residential Care,"10,002.36"
6434,3389759,KNIGHTSWOOD RESIDENTIAL HOME,07/04/2015,Z6011,Z6011 - CR Bal Hold A/c Exp,Adult Services,3rd Party Social Care Contributions,"3,103.16"
6434,3389759,KNIGHTSWOOD RESIDENTIAL HOME,07/04/2015,54301,Residential Provision,Adult Services,OA  External Provision Residential,"15,902.56"
2433402,3411043,LAFARGE TARMAC TRADING LIMITED,30/04/2015,Z6008,Expense AP Accrual,Bolton MBC Balance Sheet,Bolton MBC Balance Sheet,"1,111.21"
2433402,3411060,LAFARGE TARMAC TRADING LIMITED,30/04/2015,Z6008,Expense AP Accrual,Bolton MBC Balance Sheet,Bolton MBC Balance Sheet,"1,205.44"
2433402,3411063,LAFARGE TARMAC TRADING LIMITED,30/04/2015,Z6008,Expense AP Accrual,Bolton MBC Balance Sheet,Bolton MBC Balance Sheet,724.52
2433402,3411058,LAFARGE TARMAC TRADING LIMITED,30/04/2015,Z6008,Expense AP Accrual,Bolton MBC Balance Sheet,Bolton MBC Balance Sheet,745.45
2433402,3388800,LAFARGE TARMAC TRADING LIMITED,09/04/2015,40601,General Materials,Environmental Services,Activities and Operations,"1,020.12"
2433402,3392197,LAFARGE TARMAC TRADING LIMITED,13/04/2015,40601,General Materials,Environmental Services,Activities and Operations,753.66
2433402,3411047,LAFARGE TARMAC TRADING LIMITED,30/04/2015,Z6008,Expense AP Accrual,Bolton MBC Balance Sheet,Bolton MBC Balance Sheet,"1,430.75"
2433402,3387775,LAFARGE TARMAC TRADING LIMITED,02/04/2015,Z6008,Expense AP Accrual,Bolton MBC Balance Sheet,Bolton MBC Balance Sheet,628.84
2433402,3387758,LAFARGE TARMAC TRADING LIMITED,02/04/2015,Z6008,Expense AP Accrual,Bolton MBC Balance Sheet,Bolton MBC Balance Sheet,882.97
2433402,3387773,LAFARGE TARMAC TRADING LIMITED,02/04/2015,Z6008,Expense AP Accrual,Bolton MBC Balance Sheet,Bolton MBC Balance Sheet,"1,119.59"
2433402,3411054,LAFARGE TARMAC TRADING LIMITED,30/04/2015,Z6008,Expense AP Accrual,Bolton MBC Balance Sheet,Bolton MBC Balance Sheet,632.02
2433402,3411793,LAFARGE TARMAC TRADING LIMITED,30/04/2015,Z6008,Expense AP Accrual,Bolton MBC Balance Sheet,Bolton MBC Balance Sheet,"1,614.69"
4457,3389776,LAKESIDE CARE HOME,07/04/2015,54301,Residential Provision,Adult Services,OA  External Provision Residential,"1,496.00"
2265311,3400074,LAMB & SWIFT COMMERCIAL#2,23/04/2015,48509,Other Fees,Development & Regeneration,REDD Divisional CPRI,500.00
6442,3388791,LANDSCAPE ENGINEERING LTD,09/04/2015,Z1051,Work in Progress Additions,Environmental Services,Environmental Services Balance sheet,"2,690.00"
6442,3392333,LANDSCAPE ENGINEERING LTD,13/04/2015,Z1051,Work in Progress Additions,Environmental Services,Environmental Services Balance sheet,"6,825.28"
6442,3392332,LANDSCAPE ENGINEERING LTD,13/04/2015,Z1051,Work in Progress Additions,Environmental Services,Environmental Services Balance sheet,"8,500.00"
36518,3399772,LANGHAM,20/04/2015,44051,Clients Aids & Adaptations,Adult Services,ICES,888.80
1919290,3402373,LEEDS COMMERCIAL LIMITED,23/04/2015,33201,Transport Hire,Environmental Services,Transport Support Service,770.00
257679,3400207,Leigh Dogs and Cats Home Ltd,23/04/2015,52200,Contracted Services,Environmental Services,Activities and Operations,"1,420.00"
257679,3400203,Leigh Dogs and Cats Home Ltd,23/04/2015,52200,Contracted Services,Environmental Services,Activities and Operations,530.40
1015735,3389817,LEVER EDGE CARE HOME,07/04/2015,54301,Residential Provision,Adult Services,MH Residential External Provision,"1,618.08"
1015735,3389817,LEVER EDGE CARE HOME,07/04/2015,54301,Residential Provision,Adult Services,OA  External Provision Residential,"93,960.68"
1104799,3393776,LIAM TRIPPIER SCHOOL IMPROVEMENT LTD,13/04/2015,53000,Private Contracted Services,Childrens Services,SIPs,"1,188.00"
63440,3393882,RECATED - PERSONAL DATA#Interpreting & Translating Services,13/04/2015,48509,Other Fees,Adult Services,ACM  North,"2,205.00"
363536,3389813,LITTLE SISTERS OF THE POOR,07/04/2015,54301,Residential Provision,Adult Services,OA  External Provision Residential,"1,127.57"
2794579,3389713,Littleover Nursing Home,07/04/2015,54302,Nursing Provision,Adult Services,OA  External Provision Residential,"1,743.64"
130483,3397452,LLOYDS PHARMACY,20/04/2015,52200,Contracted Services,Adult Services,Drugs Pooled Treatment Budget,502.10
7977,3394775,LOCAL GOVERNMENT ASSOCIATION,16/04/2015,55013,Subscription to Local Gvt Assoc,Chief Executives,LGA & Provincial Council,"44,966.72"
24498,3394766,Lost Art Ltd,16/04/2015,Z1051,Work in Progress Additions,Environmental Services,Environmental Services Balance sheet,820.00
24498,3394837,Lost Art Ltd,16/04/2015,Z1051,Work in Progress Additions,Environmental Services,Environmental Services Balance sheet,"1,835.00"
524532,3409625,LPW (EUROPE) LTD,30/04/2015,40601,General Materials,Environmental Services,Transport Support Service,"1,134.00"
1483102,3388706,LUCAS TRAINING & CONSULTANCY LIMITED,02/04/2015,19100,Training Exps Tuition Fees,Childrens Services,Quality & inclusion,600.00
1483102,3392317,LUCAS TRAINING & CONSULTANCY LIMITED,13/04/2015,19100,Training Exps Tuition Fees,Childrens Services,Income – Teaching & Learning CPD,950.00
6449,3389727,LYNGATE RESIDENTIAL HOME,07/04/2015,54301,Residential Provision,Adult Services,OA  External Provision Residential,794.54
6449,3389728,LYNGATE RESIDENTIAL HOME,07/04/2015,54301,Residential Provision,Adult Services,OA  External Provision Residential,"32,529.39"
6456,3387664,M C COOTE,02/04/2015,20501,Engineering Work,Environmental Services,Highway Services,590.00
2672328,3389701,Madison Court,07/04/2015,54301,Residential Provision,Adult Services,OA  External Provision Residential,"1,772.00"
66765,3390906,MAG:NET SOLUTIONS LTD,09/04/2015,48631,Office Expenses  General,Chief Executives,Housing Benefits,"1,550.00"
66765,3390906,MAG:NET SOLUTIONS LTD,09/04/2015,48631,Office Expenses  General,Chief Executives,Council Tax,"1,550.00"
7903,3400092,MALCOLM NICHOLSON & SON,23/04/2015,36200,Uninsured Losses  Vehicles,Environmental Services,Transport Support Service,"1,043.90"
6467,3387811,Manchester City Council,02/04/2015,79001,Survey Fees,Chief Executives,Individual Electoral Registration,"28,001.13"
6467,3395382,Manchester City Council,16/04/2015,52200,Contracted Services,Chief Executives,Internal Audit,"16,562.29"
17968,3396282,MANGAR INTERNATIONAL,20/04/2015,44051,Clients Aids & Adaptations,Adult Services,ICES,"1,650.00"
17968,3399758,MANGAR INTERNATIONAL,20/04/2015,44051,Clients Aids & Adaptations,Adult Services,ICES,"1,650.00"
130485,3397461,MANOR PHARMACY#VARIOUS CHEMISTS,20/04/2015,52200,Contracted Services,Adult Services,Drugs Pooled Treatment Budget,914.40
2754298,3393787,REDACTED - PERSONAL DATA,13/04/2015,53000,Private Contracted Services,Childrens Services,Educational Improvement - Sec,"4,801.50"
68,3390041,MARK EDUCATION LTD T/A ITN MARK EDUCATION,09/04/2015,53100,Agency Staff  Fulltime,Childrens Services,Connexions PAs,725.00
68,3393894,MARK EDUCATION LTD T/A ITN MARK EDUCATION,13/04/2015,53100,Agency Staff  Fulltime,Childrens Services,Connexions PAs,725.00
68,3402153,MARK EDUCATION LTD T/A ITN MARK EDUCATION,23/04/2015,53100,Agency Staff  Fulltime,Childrens Services,Connexions PAs,725.00
68,3407733,MARK EDUCATION LTD T/A ITN MARK EDUCATION,27/04/2015,53100,Agency Staff  Fulltime,Childrens Services,Connexions PAs,725.00
130486,3397448,MARKET PHARMACY#CLAMARY LTD,20/04/2015,52200,Contracted Services,Adult Services,Drugs Pooled Treatment Budget,742.40
130486,3394585,MARKET PHARMACY#CLAMARY LTD,16/04/2015,52200,Contracted Services,Public Health,Tobacco Control,581.26
24530,3407681,Markland Hill CP School,27/04/2015,53102,Agency Staff  Other,Childrens Services,Income – Teaching & Learning CPD,810.00
6470,3389760,MARLEY COURT  NURSING & RESIDENTAIL HOME,07/04/2015,54301,Residential Provision,Adult Services,OA  External Provision Residential,"4,944.00"
874657,3397457,MARSH (BOLTON) LTD T/A COHENS CHEMIST,20/04/2015,52200,Contracted Services,Adult Services,Drugs Pooled Treatment Budget,954.30
874657,3397467,MARSH (BOLTON) LTD T/A COHENS CHEMIST,20/04/2015,52200,Contracted Services,Adult Services,Drugs Pooled Treatment Budget,707.60
6472,3390729,MARWOOD ELECTRICAL COMPANY LTD,09/04/2015,Z1051,Work in Progress Additions,Highways,Stores,"23,344.50"
6472,3390713,MARWOOD ELECTRICAL COMPANY LTD,09/04/2015,Z1051,Work in Progress Additions,Highways,Stores,"28,013.40"
6472,3390731,MARWOOD ELECTRICAL COMPANY LTD,09/04/2015,Z1051,Work in Progress Additions,Highways,Stores,"24,900.80"
6472,3390715,MARWOOD ELECTRICAL COMPANY LTD,09/04/2015,Z1051,Work in Progress Additions,Highways,Stores,"39,751.31"
6472,3408860,MARWOOD ELECTRICAL COMPANY LTD,27/04/2015,Z1051,Work in Progress Additions,Highways,Stores,"46,689.00"
6472,3408863,MARWOOD ELECTRICAL COMPANY LTD,27/04/2015,Z1051,Work in Progress Additions,Highways,Stores,"56,026.80"
6472,3408859,MARWOOD ELECTRICAL COMPANY LTD,27/04/2015,Z1051,Work in Progress Additions,Highways,Stores,"27,390.88"
6472,3400710,MARWOOD ELECTRICAL COMPANY LTD,23/04/2015,Z1051,Work in Progress Additions,Highways,Stores,"1,266.48"
4808,3389745,MARY & JOSEPH HOUSE,07/04/2015,54301,Residential Provision,Adult Services,MH Residential External Provision,"3,898.00"
2852299,3397486,REDACTED - PERSONAL DATA,30/04/2015,53000,Private Contracted Services,Childrens Services,Educational Improvement - Sec,"1,361.00"
2809316,3399964,Mastacab LLP,20/04/2015,33202,Plant Hire,Environmental Services,Activities and Operations,"1,740.00"
2768305,3393829,Matchtech Group (UK) Limited,13/04/2015,53102,Agency Staff  Other,Development & Regeneration,Divisional Development,613.46
2768305,3402723,Matchtech Group (UK) Limited,23/04/2015,53102,Agency Staff  Other,Development & Regeneration,Divisional Development,513.98
2768305,3409408,Matchtech Group (UK) Limited,30/04/2015,53102,Agency Staff  Other,Development & Regeneration,Divisional Development,613.46
2497291,3389862,MAX POTENTIAL UK LTD,07/04/2015,54301,Residential Provision,Adult Services,MH Residential External Provision,"2,000.00"
2497291,3389861,MAX POTENTIAL UK LTD,07/04/2015,54301,Residential Provision,Adult Services,LD Purchaser Residential Care,"6,375.00"
2434291,3389857,MAYBANK HOUSE,07/04/2015,54301,Residential Provision,Adult Services,OA  External Provision Residential,"1,593.40"
130316,3393759,MBE JOINERY#REDACTED - PERSONAL DATA,13/04/2015,40601,General Materials,Environmental Services,Bereavement Services,695.00
38107,3389785,MEADOW BANK NURSING HOME,07/04/2015,54302,Nursing Provision,Adult Services,OA  External Provision Residential,"3,852.24"
4856,3389770,MEADOWBANK HOUSE,07/04/2015,Z6011,Z6011 - CR Bal Hold A/c Exp,Adult Services,Health - Funded Nursing Care,"2,119.39"
4856,3389770,MEADOWBANK HOUSE,07/04/2015,54302,Nursing Provision,Adult Services,MH Residential External Provision,"1,618.08"
4856,3389770,MEADOWBANK HOUSE,07/04/2015,54301,Residential Provision,Adult Services,OA  External Provision Residential,"11,979.84"
4856,3389770,MEADOWBANK HOUSE,07/04/2015,54302,Nursing Provision,Adult Services,OA  External Provision Residential,"7,522.87"
6479,3399995,MEDWAY HEATING (BOLTON)  LTD,20/04/2015,Z6008,Expense AP Accrual,Bolton MBC Balance Sheet,Bolton MBC Balance Sheet,781.91
2794559,3389912,Melling Acres,07/04/2015,54301,Residential Provision,Adult Services,LD Purchaser Residential Care,"17,343.20"
55061,3389954,MELTEMI COMPANY CLOTHING LTD,23/04/2015,42000,Clothing,Adult Services,Reablement,"8,000.91"
55061,3390721,MELTEMI COMPANY CLOTHING LTD,23/04/2015,42000,Clothing,Adult Services,Reablement,716.02
267311,3389935,MERITEC LIMITED,09/04/2015,53102,Agency Staff  Other,Housing GRF,Furnished Tenancies,"5,625.00"
267311,3390740,MERITEC LIMITED,09/04/2015,53102,Agency Staff  Other,Chief Executives,Housing Benefits,"4,691.50"
2746299,3390164,Metaphor#Metaphor Communications Limited,09/04/2015,48509,Other Fees,Development & Regeneration,LMA External Funded Projects,"3,333.00"
385630,3391730,MGB PLASTICS LTD,13/04/2015,Z1051,Work in Progress Additions,Environmental Services,Environmental Services Balance sheet,999.00
4896,3385714,MHIST,13/04/2015,52200,Contracted Services,Adult Services,MH Day Care External Provision,"5,250.00"
4896,3385719,MHIST,13/04/2015,52200,Contracted Services,Adult Services,AD Local Involvement Network,"13,250.00"
39429,3390004,MILLER GOODALL ENVIRONMENTAL SERVICES LTD,09/04/2015,52200,Contracted Services,Environmental Services,Regulatory Services,"5,165.62"
13477,3387911,MILLER METCALFE LTD#3,02/04/2015,52201,Contracted ServicesSLA Charges,Chief Executives,Operational Facilities Management,625.00
10133,3389779,MILLVIEW NURSING HOME,07/04/2015,Z6011,Z6011 - CR Bal Hold A/c Exp,Adult Services,Health - Funded Nursing Care,"1,029.70"
10133,3389779,MILLVIEW NURSING HOME,07/04/2015,54301,Residential Provision,Adult Services,OA  External Provision Residential,671.97
10133,3389779,MILLVIEW NURSING HOME,07/04/2015,54302,Nursing Provision,Adult Services,OA  External Provision Residential,"3,851.57"
10133,3389780,MILLVIEW NURSING HOME,07/04/2015,Z6011,Z6011 - CR Bal Hold A/c Exp,Adult Services,Health - Funded Nursing Care,"13,783.47"
10133,3389780,MILLVIEW NURSING HOME,07/04/2015,54302,Nursing Provision,Adult Services,LD Purchaser Residential Care,"1,596.96"
10133,3389780,MILLVIEW NURSING HOME,07/04/2015,54301,Residential Provision,Adult Services,MH Residential External Provision,"1,596.96"
10133,3389780,MILLVIEW NURSING HOME,07/04/2015,54301,Residential Provision,Adult Services,OA  External Provision Residential,"86,595.31"
10133,3389780,MILLVIEW NURSING HOME,07/04/2015,54302,Nursing Provision,Adult Services,OA  External Provision Residential,"49,783.03"
10133,3389780,MILLVIEW NURSING HOME,07/04/2015,54301,Residential Provision,Adult Services,PD Purchaser Residential Care,"1,596.96"
10133,3389780,MILLVIEW NURSING HOME,07/04/2015,54302,Nursing Provision,Adult Services,PD Purchaser Residential Care,"1,596.96"
1455062,3395322,MINT NORTHWEST LTD,27/04/2015,Z1051,Work in Progress Additions,Adult Services,Adult Services Balance Sheet,"9,427.59"
250404,3392323,MISS JANE WALKER#1,13/04/2015,48502,Legal Fees,Childrens Services,Management Team,780.00
187793,3408674,MISS JAYNE ACTON,27/04/2015,48502,Legal Fees,Childrens Services,Management Team,"1,500.00"
187793,3400005,MISS JAYNE ACTON,20/04/2015,48502,Legal Fees,Childrens Services,Management Team,"1,000.00"
2719359,3400502,Moda Hair and Beauty,23/04/2015,55700,Grant Funded Expenditure,Development & Regeneration,Town Centre Development Fund,"2,166.67"
2620327,3401959,Mojo Trust,23/04/2015,20401,Landscape Work,Environmental Services,Assets,632.53
2620330,3389698,Moorfields Care Home,07/04/2015,54301,Residential Provision,Adult Services,OA  External Provision Residential,"1,641.24"
2626324,3389699,Morgan Care Ltd,07/04/2015,54301,Residential Provision,Adult Services,OA  External Provision Residential,559.99
2626324,3389700,Morgan Care Ltd,07/04/2015,Z6011,Z6011 - CR Bal Hold A/c Exp,Adult Services,3rd Party Social Care Contributions,"4,044.45"
2626324,3389700,Morgan Care Ltd,07/04/2015,54301,Residential Provision,Adult Services,OA  External Provision Residential,"19,365.91"
2147302,3389835,MOSTON GRANGE NURSING HOME,07/04/2015,54302,Nursing Provision,Adult Services,MH Residential External Provision,"3,700.00"
194008,3408697,MR PAUL HART,27/04/2015,48502,Legal Fees,Childrens Services,Management Team,600.00
89825,3408669,MR SIMON CRABTREE,27/04/2015,48509,Other Fees,Childrens Services,Management Team,"2,100.00"
89825,3408673,MR SIMON CRABTREE,27/04/2015,48502,Legal Fees,Childrens Services,Management Team,725.00
1579529,3402326,MRM STREET FURNITURE LTD,23/04/2015,40610,Direct Materials,Environmental Services,Bereavement Services,655.00
1037742,3400070,MRS PRUDENCE BEEVER,23/04/2015,48502,Legal Fees,Childrens Services,Management Team,650.00
16216,3400113,NABMA,23/04/2015,47200,General Subscriptions,Environmental Services,Markets  Rent Account,636.00
16216,3402798,NABMA,23/04/2015,19104,Training Exp  Ext Seminars,Environmental Services,Markets  Rent Account,975.00
61933,3389999,NAL LTD,09/04/2015,Z6007,Z6007 - Inventory AP Accrual,Highways,Stores,"1,215.00"
61933,3395246,NAL LTD,16/04/2015,Z6007,Z6007 - Inventory AP Accrual,Highways,Stores,"1,215.00"
2794565,3389712,Napier Lodge Limited,07/04/2015,54301,Residential Provision,Adult Services,OA  External Provision Residential,"1,613.92"
6504,3400345,NAS SERVICES LTD,23/04/2015,52200,Contracted Services,Adult Services,MH Residential External Provision,586.60
51647,3394586,NASH PHARMACY LTD,16/04/2015,52200,Contracted Services,Public Health,Tobacco Control,773.34
2252290,3390215,NATALIE PACKER EDUCATIONAL CONSULTANCY,09/04/2015,48509,Other Fees,Childrens Services,Income – Teaching & Learning CPD,535.90
9982,3394663,NATIONAL CAR PARKS LTD#NCP,16/04/2015,37100,Car Parking,Chief Executives,Car Parking,"10,245.43"
9982,3394655,NATIONAL CAR PARKS LTD#NCP,16/04/2015,37100,Car Parking,Chief Executives,Car Parking,"31,151.43"
9982,3394886,NATIONAL CAR PARKS LTD#NCP,16/04/2015,37100,Car Parking,Chief Executives,Car Parking,971.04
2285319,3389843,NAZARETH HOUSE MANCHESTER#EPH,07/04/2015,54301,Residential Provision,Adult Services,OA  External Provision Residential,"1,647.52"
2246441,3390596,NB COLOUR PRINT LIMITED,09/04/2015,48203,Marketing,Chief Executives,Marketing - Holding Code,519.75
1905310,3390735,NCER CIC,09/04/2015,47200,General Subscriptions,Childrens Services,Admin Strategy&Performance,"5,253.81"
1237875,3395386,NEW START CHILDCARE,16/04/2015,52000,Vol Assoc Grants  General,Childrens Services,Res Serv Agency Placements,"18,513.00"
1117809,3408864,NEWGATE (NEWARK) LTD,27/04/2015,20100,Day To Day Maintenance,Environmental Services,Depots,"4,350.00"
2809490,3408732,NewsBank Inc,27/04/2015,40753,Book Fund Expenditure,Development & Regeneration,Libraries Info. Services,"3,000.00"
2613325,3392621,Newsquest Media Group,13/04/2015,20501,Engineering Work,Environmental Services,Highway Services,935.60
2613325,3393965,Newsquest Media Group,13/04/2015,48200,Advertising General,Environmental Services,Highway Management,977.90
2535411,3392232,Next Stage 4 Life,13/04/2015,52000,Vol Assoc Grants  General,Childrens Services,Res Serv Agency Placements,"10,414.28"
2535411,3392233,Next Stage 4 Life,13/04/2015,52000,Vol Assoc Grants  General,Childrens Services,Res Serv Agency Placements,"19,000.00"
2265300,3388721,NEXT STAGE A WAY FORWARD LIMITED,09/04/2015,52200,Contracted Services,Adult Services,LD Purchaser Supported Housing,"15,347.20"
2265300,3409367,NEXT STAGE A WAY FORWARD LIMITED,30/04/2015,52000,Vol Assoc Grants  General,Childrens Services,Res Serv Agency Placements,"4,750.00"
2265300,3409368,NEXT STAGE A WAY FORWARD LIMITED,30/04/2015,52000,Vol Assoc Grants  General,Childrens Services,Res Serv Agency Placements,"4,750.00"
2265300,3402282,NEXT STAGE A WAY FORWARD LIMITED,23/04/2015,52000,Vol Assoc Grants  General,Childrens Services,Res Serv Agency Placements,"13,840.56"
2265300,3402279,NEXT STAGE A WAY FORWARD LIMITED,23/04/2015,52000,Vol Assoc Grants  General,Childrens Services,Res Serv Agency Placements,"7,030.00"
192870,3387881,NH ON-SITE LTD,02/04/2015,52200,Contracted Services,Environmental Services,Transport Support Service,700.00
45384,3393914,NORSEMAN DIRECT,13/04/2015,48203,Marketing,Environmental Services,Catering,"10,878.00"
254,3388171,NORTH WEST GRAPHICS,02/04/2015,20100,Day To Day Maintenance,Environmental Services,Depots,860.00
254,3409795,NORTH WEST GRAPHICS,30/04/2015,52200,Contracted Services,Environmental Services,Transport Support Service,550.00
203434,3393770,NORTHERN EDUCATION,13/04/2015,53102,Agency Staff  Other,Childrens Services,Educational Improvement - Sec,"2,897.50"
203434,3390747,NORTHERN EDUCATION,09/04/2015,52200,Contracted Services,Childrens Services,Educational Improvement - Sec,"1,425.00"
203434,3390747,NORTHERN EDUCATION,09/04/2015,53000,Private Contracted Services,Childrens Services,Educational Improvement - Sec,"1,220.00"
203434,3390747,NORTHERN EDUCATION,09/04/2015,53102,Agency Staff  Other,Childrens Services,Educational Improvement - Sec,"1,830.00"
203434,3390747,NORTHERN EDUCATION,09/04/2015,48509,Other Fees,Childrens Services,Lifelong Learning Unit,"1,830.00"
6518,3388782,NORTHERN MUNICIPAL SPARES LTD,09/04/2015,31308,Other Vehicle Running Costs,Environmental Services,Activities and Operations,"1,642.50"
6518,3388786,NORTHERN MUNICIPAL SPARES LTD,09/04/2015,31308,Other Vehicle Running Costs,Environmental Services,Activities and Operations,"3,726.90"
17346,3395967,NORTHGATE INFORMATION SOLUTIONS UK LIMITED,20/04/2015,45432,Computer Software Installation,Chief Executives,Council Tax,"2,250.00"
17346,3393927,NORTHGATE INFORMATION SOLUTIONS UK LIMITED,16/04/2015,43031,Blue Badge Stationery,Chief Executives,C.R.M. Operations,"2,309.20"
1838318,3394684,NORTHGATE VEHICLE HIRE LTD,16/04/2015,33201,Transport Hire,Environmental Services,Transport Support Service,"6,046.19"
10182,3394136,NPOWER LIMITED,16/04/2015,21100,Electricity  General,Environmental Services,Assets,"1,496.55"
10182,3394136,NPOWER LIMITED,16/04/2015,21100,Electricity  General,Housing GRF,Benjamin Court Accommodation,"1,163.93"
10182,3394136,NPOWER LIMITED,16/04/2015,21100,Electricity  General,Environmental Services,Bereavement Services,"3,140.88"
10182,3394136,NPOWER LIMITED,16/04/2015,21100,Electricity  General,Chief Executives,Land and Property Portfolios,662.35
10182,3394136,NPOWER LIMITED,16/04/2015,21100,Electricity  General,Chief Executives,Admin Buildings Portfolio,"38,938.16"
10182,3394136,NPOWER LIMITED,16/04/2015,21100,Electricity  General,Chief Executives,Adult Social Care Portfolio,892.12
10182,3394136,NPOWER LIMITED,16/04/2015,21100,Electricity  General,Chief Executives,Castle Hill,"8,624.04"
10182,3394136,NPOWER LIMITED,16/04/2015,21100,Electricity  General,Chief Executives,Energy Payments Account,"2,379.07"
10182,3394136,NPOWER LIMITED,16/04/2015,21100,Electricity  General,Environmental Services,Depots,"2,824.93"
10182,3394136,NPOWER LIMITED,16/04/2015,21100,Electricity  General,Environmental Services,Markets  Rent Account,"13,381.06"
10182,3394136,NPOWER LIMITED,16/04/2015,Z5211,Z5211 - Debit Bal Holding A/c Exp,Property Services,St Helens Road,"3,290.28"
10182,3394136,NPOWER LIMITED,16/04/2015,21100,Electricity  General,Childrens Services,Technical Innovation Centre,"1,755.83"
10182,3408728,NPOWER LIMITED,27/04/2015,21100,Electricity  General,Housing GRF,Access & Advice Housing Options Centre,963.13
10182,3408728,NPOWER LIMITED,27/04/2015,21100,Electricity  General,Environmental Services,Assets,"4,141.37"
10182,3408728,NPOWER LIMITED,27/04/2015,21100,Electricity  General,Environmental Services,Bereavement Services,934.64
10182,3408728,NPOWER LIMITED,27/04/2015,21100,Electricity  General,Chief Executives,Land and Property Portfolios,713.94
10182,3408728,NPOWER LIMITED,27/04/2015,21100,Electricity  General,Chief Executives,Admin Buildings Portfolio,"3,173.92"
10182,3408728,NPOWER LIMITED,27/04/2015,21100,Electricity  General,Chief Executives,Adult Social Care Portfolio,"6,191.22"
10182,3408728,NPOWER LIMITED,27/04/2015,21100,Electricity  General,Chief Executives,Libraries - Farnworth,"1,498.09"
10182,3408728,NPOWER LIMITED,27/04/2015,21100,Electricity  General,Chief Executives,Libraries - High Street,516.12
10182,3408728,NPOWER LIMITED,27/04/2015,21100,Electricity  General,Development & Regeneration,Smithills Hall Museum,"1,044.25"
10182,3408728,NPOWER LIMITED,27/04/2015,21100,Electricity  General,Childrens Services,Farnworth Youth Centre (Yth Srv),"1,851.08"
10182,3408728,NPOWER LIMITED,27/04/2015,21100,Electricity  General,Childrens Services,Harwood Youth Centre (Yth Srv),"1,622.51"
10182,3408728,NPOWER LIMITED,27/04/2015,21100,Electricity  General,Childrens Services,Heaton & Lostock CC,554.34
10182,3408728,NPOWER LIMITED,27/04/2015,21100,Electricity  General,Environmental Services,Heaton Fold,"1,501.82"
10182,3408728,NPOWER LIMITED,27/04/2015,21100,Electricity  General,Childrens Services,Lord Street and Grosvenor CC,"2,064.02"
266933,3393821,NSL LIMITED#NSL SERVICES GROUP,13/04/2015,44202,Contract UnitNonLEA,Environmental Services,Parking Services  On Street,"3,956.51"
266933,3389953,NSL LIMITED#NSL SERVICES GROUP,09/04/2015,44202,Contract UnitNonLEA,Environmental Services,Parking Services  On Street,"39,675.57"
2545549,3388815,Nu-Phalt Contracting Limited,09/04/2015,Z6008,Expense AP Accrual,Bolton MBC Balance Sheet,Bolton MBC Balance Sheet,"22,080.00"
2694305,3388042,Nusteel Structures Ltd,02/04/2015,Z1051,Work in Progress Additions,Highways,Stores,"20,100.00"
116387,3403726,OCLC (UK) LTD,27/04/2015,40753,Book Fund Expenditure,Development & Regeneration,Libraries Info. Services,"2,324.30"
153319,3407891,OCS GROUP UK LTD T/A CANNON,27/04/2015,26001,Hygiene Requisite,Childrens Services,Alexandra CC,685.62
42754,3395988,OFSTED,20/04/2015,48509,Other Fees,Childrens Services,Disability Serv Trackside Approach,"2,113.00"
1564046,3399917,OJT COMMUNICATIONS LTD,30/04/2015,20101,Programmed Maint. Work,Chief Executives,Accomm Rationalisation Strategy,"3,850.00"
1564046,3390310,OJT COMMUNICATIONS LTD,09/04/2015,Z6008,Expense AP Accrual,Bolton MBC Balance Sheet,Bolton MBC Balance Sheet,695.00
1564046,3409476,OJT COMMUNICATIONS LTD,30/04/2015,Z6008,Expense AP Accrual,Bolton MBC Balance Sheet,Bolton MBC Balance Sheet,"2,100.00"
1564046,3409478,OJT COMMUNICATIONS LTD,30/04/2015,Z6008,Expense AP Accrual,Bolton MBC Balance Sheet,Bolton MBC Balance Sheet,"1,440.00"
1564046,3409474,OJT COMMUNICATIONS LTD,30/04/2015,Z6008,Expense AP Accrual,Bolton MBC Balance Sheet,Bolton MBC Balance Sheet,"1,195.00"
132953,3389795,OLD GATES NURSING HOME,07/04/2015,54302,Nursing Provision,Adult Services,OA  External Provision Residential,"1,726.40"
313,3402290,Oldham Council,23/04/2015,52200,Contracted Services,Childrens Services,Gtr Manchester Music Education Hub,"105,932.00"
6529,3396768,OLM SYSTEMS LIMITED,20/04/2015,45430,Computer Software,Childrens Services,Admin Info Mgemnt Unit,"153,890.22"
413124,3393801,ONSIDE EDUCATION CONSULTANTS,13/04/2015,48509,Other Fees,Childrens Services,CWPD Governors,644.00
413124,3393810,ONSIDE EDUCATION CONSULTANTS,13/04/2015,48509,Other Fees,Childrens Services,CWPD Governors,644.00
6531,3399955,ORANGE PCS LTD#PAY S98  1DX,20/04/2015,Z5211,Z5211 - Debit Bal Holding A/c Exp,Chief Executives,Vodafone Suspense,"1,909.65"
2397427,3389856,ORCHARD COURT,07/04/2015,54301,Residential Provision,Adult Services,OA  External Provision Residential,"1,606.92"
2441353,3400552,OSMIS EDUCATION LIMITED,23/04/2015,53000,Private Contracted Services,Childrens Services,Admin IT (Schools),"5,255.00"
6538,3387795,P J CARNEY & CO LTD,02/04/2015,52200,Contracted Services,Environmental Services,Activities and Operations,"16,865.00"
2667328,3394923,P Stazaker T/A Bolton Tree Services,16/04/2015,52200,Contracted Services,Environmental Services,Assets,"1,180.00"
2667328,3396784,P Stazaker T/A Bolton Tree Services,20/04/2015,52200,Contracted Services,Environmental Services,Assets,600.00
113855,3400577,Pakflatt (UK) Ltd,23/04/2015,79000,Election Expenses,Chief Executives,Elections,"1,984.00"
113855,3395375,Pakflatt (UK) Ltd,16/04/2015,79000,Election Expenses,Chief Executives,Elections,"6,660.00"
388,3393832,PARALLEL PARENTS,13/04/2015,52000,Vol Assoc Grants  General,Childrens Services,Res Serv Agency Placements,"2,987.16"
2310399,3409794,PARITOR LTD,30/04/2015,48509,Other Fees,Childrens Services,Music ServMusic Service general,850.00
2310399,3409793,PARITOR LTD,30/04/2015,48509,Other Fees,Childrens Services,Music ServMusic Service general,"5,600.00"
34703,3401939,PARK HOUSE HEALTHCARE LTD,23/04/2015,44051,Clients Aids & Adaptations,Adult Services,ICES,"1,555.00"
34703,3396897,PARK HOUSE HEALTHCARE LTD,20/04/2015,44051,Clients Aids & Adaptations,Adult Services,ICES,"3,582.40"
34703,3411503,PARK HOUSE HEALTHCARE LTD,30/04/2015,44051,Clients Aids & Adaptations,Adult Services,ICES,975.00
394,3395803,PARK LANE PLANTS LTD,16/04/2015,40609,Horticultural Materials,Environmental Services,Heaton Fold,533.70
7907,3389730,PARKVIEW NURSING & RESIDENTIAL HOME,07/04/2015,54301,Residential Provision,Adult Services,OA  External Provision Residential,728.01
7907,3389731,PARKVIEW NURSING & RESIDENTIAL HOME,07/04/2015,54301,Residential Provision,Adult Services,OA  External Provision Residential,"36,671.45"
7907,3389731,PARKVIEW NURSING & RESIDENTIAL HOME,07/04/2015,54301,Residential Provision,Adult Services,PD Purchaser Residential Care,"3,215.04"
2781367,3403797,Pathway to Prospects Ltd,27/04/2015,52000,Vol Assoc Grants  General,Childrens Services,Res Serv Agency Placements,"3,409.40"
125827,3406636,PAUL DAVIES KITCHENS BOLTON,29/04/2015,40110,Op Equip Furniture Purchase,Housing GRF,Local Welfare Provision Pilot,576.96
125827,3406618,PAUL DAVIES KITCHENS BOLTON,29/04/2015,40110,Op Equip Furniture Purchase,Housing GRF,Local Welfare Provision Pilot,576.96
125827,3406616,PAUL DAVIES KITCHENS BOLTON,29/04/2015,40110,Op Equip Furniture Purchase,Housing GRF,Local Welfare Provision Pilot,576.96
125827,3406619,PAUL DAVIES KITCHENS BOLTON,29/04/2015,40110,Op Equip Furniture Purchase,Housing GRF,Local Welfare Provision Pilot,576.96
125827,3406617,PAUL DAVIES KITCHENS BOLTON,29/04/2015,40110,Op Equip Furniture Purchase,Housing GRF,Local Welfare Provision Pilot,576.96
125827,3406604,PAUL DAVIES KITCHENS BOLTON,29/04/2015,40110,Op Equip Furniture Purchase,Housing GRF,Local Welfare Provision Pilot,576.96
125827,3406632,PAUL DAVIES KITCHENS BOLTON,29/04/2015,40110,Op Equip Furniture Purchase,Housing GRF,Local Welfare Provision Pilot,576.96
6547,3400238,PEAK FABRICATIONS (BOLTON) LTD,30/04/2015,25105,Other Security,Environmental Services,Activities and Operations,650.00
6547,3396064,PEAK FABRICATIONS (BOLTON) LTD,23/04/2015,52200,Contracted Services,Environmental Services,Activities and Operations,"5,420.00"
36501,3403798,Peel Mount Contract Furnishings Ltd,30/04/2015,40107,Kitchen Equipment,Housing GRF,Benjamin Court Accommodation,887.50
144032,3394819,PENKETHS LTD,16/04/2015,45405,Computer Consumables,Chief Executives,Members IT,784.90
22610,3395295,PETER DOUGLASS PLATFORMS,16/04/2015,33201,Transport Hire,Environmental Services,Transport Support Service,"1,320.00"
22610,3395297,PETER DOUGLASS PLATFORMS,16/04/2015,33201,Transport Hire,Environmental Services,Transport Support Service,"1,188.00"
2678366,3390035,Peter Elmes#Elmes Joinery,09/04/2015,20100,Day To Day Maintenance,Environmental Services,Activities and Operations,"1,540.00"
2794400,3402734,Photocast Products Ltd,30/04/2015,20401,Landscape Work,Environmental Services,Assets,"1,930.00"
6558,3410743,PHS GROUP PLC,30/04/2015,Z6008,Expense AP Accrual,Bolton MBC Balance Sheet,Bolton MBC Balance Sheet,"13,590.31"
2428307,3402160,PIKE VIEW MEDICAL CENTRE#P82006#DR S MALHOTRA & PARTNERS,23/04/2015,52200,Contracted Services,Public Health,Sexual Health Improvement,808.00
350350,3393958,PIPS COURIER SERVICES#MR D BROWN,13/04/2015,48509,Other Fees,Childrens Services,Management Team,632.00
2610303,3409796,Pitney Bowes Finance Limited,30/04/2015,40102,Operational Equipment Rental,Environmental Services,Couriers,"3,953.17"
2473336,3390705,PORTABLE CRECHE LTD,13/04/2015,48509,Other Fees,Childrens Services,Lord Street and Grosvenor CC,567.00
6568,3407813,Postage By Phone-Pitney Bowes Ltd,24/04/2015,45002,Postage Charge,Environmental Services,Couriers,"36,000.00"
35473,3389989,PREMIER CARE LTD#BOLTON CARE SERVICES,09/04/2015,52200,Contracted Services,Adult Services,OA  Home Care Services external provision,"8,574.50"
35473,3407956,PREMIER CARE LTD#BOLTON CARE SERVICES,27/04/2015,52200,Contracted Services,Adult Services,OA  Home Care Services external provision,"8,731.00"
2501345,3394643,Primesight Ltd#1,16/04/2015,48203,Marketing,Chief Executives,Marketing - Holding Code,"2,893.81"
739608,3388194,PRISM MEDICAL UK,02/04/2015,44051,Clients Aids & Adaptations,Adult Services,ICES,559.13
739608,3388196,PRISM MEDICAL UK,02/04/2015,44051,Clients Aids & Adaptations,Adult Services,ICES,"3,149.47"
739608,3388189,PRISM MEDICAL UK,02/04/2015,44051,Clients Aids & Adaptations,Adult Services,ICES,582.02
739608,3393970,PRISM MEDICAL UK,13/04/2015,44051,Clients Aids & Adaptations,Adult Services,ICES,"1,205.95"
739608,3396031,PRISM MEDICAL UK,27/04/2015,44051,Clients Aids & Adaptations,Adult Services,ICES,780.15
739608,3408775,PRISM MEDICAL UK,27/04/2015,44051,Clients Aids & Adaptations,Adult Services,ICES,605.92
2729460,3400009,Proactive Personnel Ltd,20/04/2015,53102,Agency Staff  Other,Environmental Services,Transport Support Service,846.19
2729460,3409653,Proactive Personnel Ltd,30/04/2015,53102,Agency Staff  Other,Environmental Services,Transport Support Service,846.19
2729460,3401973,Proactive Personnel Ltd,23/04/2015,53102,Agency Staff  Other,Environmental Services,Transport Support Service,634.65
2856309,3400723,Prof Alex Copello,23/04/2015,52200,Contracted Services,Adult Services,Drugs Pooled Treatment Budget,"1,848.65"
2165294,3408845,PROTEK FENCING LTD,27/04/2015,Z1051,Work in Progress Additions,Highways,Stores,"12,200.00"
1309926,3400148,PRS FOR MUSIC,23/04/2015,48200,Advertising General,Environmental Services,Markets  Rent Account,"3,063.46"
1309926,3399835,PRS FOR MUSIC,20/04/2015,48509,Other Fees,Childrens Services,Castle Hill Youth Club (Yth Srv),724.70
596,3408762,PSI (RESOURCES) LTD,27/04/2015,Z6008,Expense AP Accrual,Bolton MBC Balance Sheet,Bolton MBC Balance Sheet,893.22
596,3388576,PSI (RESOURCES) LTD,02/04/2015,Z6008,Expense AP Accrual,Bolton MBC Balance Sheet,Bolton MBC Balance Sheet,"1,280.00"
596,3399872,PSI (RESOURCES) LTD,27/04/2015,Z6007,Z6007 - Inventory AP Accrual,Property Services,EAM Holding,"15,525.00"
6585,3395337,PUDSEY DIAMOND ENGINEERING LTD,16/04/2015,40610,Direct Materials,Environmental Services,Lighting / Stores Billable Costs,"2,959.00"
44656,3387901,QSTRAINT,02/04/2015,40100,Operational Equipment Purchase,Environmental Services,SNT Other,"9,328.47"
168404,3389800,QUEENS PARK VIEW#INTELLIGENT CARE,07/04/2015,54301,Residential Provision,Adult Services,MH Residential External Provision,"7,879.68"
168404,3389801,QUEENS PARK VIEW#INTELLIGENT CARE,07/04/2015,54301,Residential Provision,Adult Services,MH Residential External Provision,"8,634.64"
2318333,3390889,QUICKSECURE LTD,09/04/2015,52200,Contracted Services,Public Health,Tobacco Control,777.40
2318333,3394575,QUICKSECURE LTD,16/04/2015,52200,Contracted Services,Public Health,Tobacco Control,582.40
2318333,3394594,QUICKSECURE LTD,16/04/2015,52200,Contracted Services,Public Health,Tobacco Control,704.73
2394298,3400034,RACHEL SAWBRIDGE LTD#CHARTERED PSYCHOLOGIST,23/04/2015,48509,Other Fees,Childrens Services,Education Psychology Service,"1,350.00"
125827,3404336,RALPH LIVESEY LTD,29/04/2015,41101,Catering ProvisionsFood,Environmental Services,Catering,515.64
125827,3404514,RALPH LIVESEY LTD,29/04/2015,41101,Catering ProvisionsFood,Environmental Services,Catering,509.95
6595,3389732,RANDOMLIGHT LTD#HEIGHTSIDE HOUSE,07/04/2015,54301,Residential Provision,Adult Services,MH Residential External Provision,"2,270.12"
6595,3389732,RANDOMLIGHT LTD#HEIGHTSIDE HOUSE,07/04/2015,54302,Nursing Provision,Adult Services,MH Residential External Provision,"13,648.52"
1800291,3407901,RAPID PRIVATE HIRE LTD,27/04/2015,34402,Clients  Taxi Fares,Environmental Services,SNT Childrens Servs,673.00
42398,3389791,REDBANK CARE HOME#PAYEE VOYAGE NORTH,07/04/2015,54301,Residential Provision,Adult Services,LD Purchaser Residential Care,"4,692.20"
2678357,3389702,Redbricks Care Home,07/04/2015,54301,Residential Provision,Adult Services,OA  External Provision Residential,"1,548.68"
220467,3409508,REFRESHMENT SYSTEMS LTD,30/04/2015,41102,Catering ProvisionsVending,Environmental Services,Depots,939.25
220467,3403764,REFRESHMENT SYSTEMS LTD,27/04/2015,41101,Catering ProvisionsFood,Environmental Services,EN91014 - Moss Bank Park Pavilion,769.08
7864,3390194,RELPHS FUNERAL SERVICE,09/04/2015,52300,Client Support Costs,Childrens Services,FIAT,"1,400.00"
2341294,3389973,RICARDO AEA LTD,09/04/2015,47200,General Subscriptions,Environmental Services,Regulatory Services,"1,230.00"
2474465,3388033,REDACTED - PERSONAL DATA,02/04/2015,48204,Promoting Events,Childrens Services,Gtr Manchester Music Education Hub,500.00
10146,3409072,RICOH UK LIMITED,30/04/2015,43030,Photocopying Lease/Maintenance,Chief Executives,Text & Reprographics,"2,679.53"
10146,3407884,RICOH UK LIMITED,27/04/2015,43030,Photocopying Lease/Maintenance,Chief Executives,Printing Services,"1,733.10"
6612,3387667,RIGBY TAYLOR LTD,02/04/2015,40609,Horticultural Materials,Environmental Services,Activities and Operations,"1,569.60"
6612,3394971,RIGBY TAYLOR LTD,16/04/2015,40609,Horticultural Materials,Environmental Services,Activities and Operations,"1,036.40"
6612,3400718,RIGBY TAYLOR LTD,23/04/2015,40609,Horticultural Materials,Environmental Services,Activities and Operations,"1,798.40"
2509317,3389863,RIVERVIEW NURSING HOME,07/04/2015,54302,Nursing Provision,Adult Services,OA  External Provision Residential,"1,821.40"
2596318,3389696,Rivington Park Care Home,07/04/2015,54301,Residential Provision,Adult Services,OA  External Provision Residential,"1,790.00"
6617,3389733,RIVINGTON VIEW NURSING HOME,07/04/2015,Z6011,Z6011 - CR Bal Hold A/c Exp,Adult Services,Health - Funded Nursing Care,887.12
6617,3389733,RIVINGTON VIEW NURSING HOME,07/04/2015,54301,Residential Provision,Adult Services,LD Purchaser Residential Care,"1,574.00"
6617,3389733,RIVINGTON VIEW NURSING HOME,07/04/2015,54301,Residential Provision,Adult Services,OA  External Provision Residential,"6,024.48"
6617,3389733,RIVINGTON VIEW NURSING HOME,07/04/2015,54302,Nursing Provision,Adult Services,OA  External Provision Residential,"3,268.00"
6619,3403809,ROBINSON PLANT HIRE,27/04/2015,33202,Plant Hire,Environmental Services,Activities and Operations,661.78
6619,3390222,ROBINSON PLANT HIRE,09/04/2015,33202,Plant Hire,Environmental Services,Activities and Operations,661.78
6619,3392365,ROBINSON PLANT HIRE,13/04/2015,33202,Plant Hire,Environmental Services,Activities and Operations,661.78
6619,3393952,ROBINSON PLANT HIRE,13/04/2015,33202,Plant Hire,Environmental Services,Activities and Operations,528.12
6619,3400494,ROBINSON PLANT HIRE,23/04/2015,48509,Other Fees,Environmental Services,Activities and Operations,529.75
6623,3389734,ROSE COURT NURSING HOME,07/04/2015,Z6011,Z6011 - CR Bal Hold A/c Exp,Adult Services,Health - Funded Nursing Care,911.12
6623,3389734,ROSE COURT NURSING HOME,07/04/2015,54301,Residential Provision,Adult Services,OA  External Provision Residential,"9,801.89"
6623,3389734,ROSE COURT NURSING HOME,07/04/2015,54302,Nursing Provision,Adult Services,OA  External Provision Residential,"13,470.08"
2806437,3389714,Rosemary Care Home Limited,07/04/2015,54301,Residential Provision,Adult Services,OA  External Provision Residential,"3,146.96"
2013332,3389830,ROUNDHAM COURT#EPH,07/04/2015,54301,Residential Provision,Adult Services,OA  External Provision Residential,"1,724.00"
162251,3397443,ROWLANDS PHARMACY,20/04/2015,52200,Contracted Services,Adult Services,Drugs Pooled Treatment Budget,684.40
162251,3397479,ROWLANDS PHARMACY,20/04/2015,52200,Contracted Services,Adult Services,Drugs Pooled Treatment Budget,714.60
162251,3390854,ROWLANDS PHARMACY,09/04/2015,52200,Contracted Services,Public Health,Tobacco Control,644.89
162251,3394590,ROWLANDS PHARMACY,16/04/2015,52200,Contracted Services,Public Health,Tobacco Control,994.62
162251,3394589,ROWLANDS PHARMACY,16/04/2015,52200,Contracted Services,Public Health,Tobacco Control,606.17
6629,3396027,ROYAL MAIL GROUP LTD,20/04/2015,45000,Postages Direct Costs,Chief Executives,Housing Benefits,"1,056.94"
6629,3396027,ROYAL MAIL GROUP LTD,20/04/2015,45000,Postages Direct Costs,Chief Executives,Council Tax,987.84
6629,3392592,ROYAL MAIL GROUP LTD,13/04/2015,45000,Postages Direct Costs,Chief Executives,Housing Benefits,"1,251.16"
6629,3392592,ROYAL MAIL GROUP LTD,13/04/2015,45000,Postages Direct Costs,Chief Executives,Council Tax,"1,411.11"
6629,3388704,ROYAL MAIL GROUP LTD,02/04/2015,45000,Postages Direct Costs,Chief Executives,Housing Benefits,983.92
6629,3388704,ROYAL MAIL GROUP LTD,02/04/2015,45000,Postages Direct Costs,Chief Executives,Council Tax,"1,745.17"
6629,3399921,ROYAL MAIL GROUP LTD,20/04/2015,79001,Survey Fees,Chief Executives,Elections,718.33
6629,3394617,ROYAL MAIL GROUP LTD,16/04/2015,45000,Postages Direct Costs,Chief Executives,Housing Benefits,913.84
6629,3394617,ROYAL MAIL GROUP LTD,16/04/2015,45000,Postages Direct Costs,Chief Executives,Council Tax,"1,188.14"
6629,3394617,ROYAL MAIL GROUP LTD,16/04/2015,45000,Postages Direct Costs,Chief Executives,Accounts Receivable (R & B),"1,117.93"
6629,3407765,ROYAL MAIL GROUP LTD,27/04/2015,45000,Postages Direct Costs,Chief Executives,Housing Benefits,"1,052.15"
6629,3407765,ROYAL MAIL GROUP LTD,27/04/2015,45000,Postages Direct Costs,Chief Executives,Council Tax,"1,608.78"
65880,3400556,ROYAL MENCAP SOCIETY#MENCAP,23/04/2015,52200,Contracted Services,Adult Services,OA  Home Care Services external provision,"1,779.63"
65880,3400555,ROYAL MENCAP SOCIETY#MENCAP,23/04/2015,52200,Contracted Services,Adult Services,OA  Home Care Services external provision,"1,798.40"
65880,3388957,ROYAL MENCAP SOCIETY#MENCAP,09/04/2015,52200,Contracted Services,Adult Services,OA  Home Care Services external provision,"1,212.60"
65880,3400289,ROYAL MENCAP SOCIETY#MENCAP,23/04/2015,52200,Contracted Services,Adult Services,OA  Home Care Services external provision,"1,286.40"
1548466,3395849,S&S DECORATORS,16/04/2015,20100,Day To Day Maintenance,Childrens Services,Res Serv Maintenance,800.00
2205290,3395378,SAFEHANDS CARE LTD#SAFEHANDS GROUP,16/04/2015,52200,Contracted Services,Adult Services,OA  Home Care Services external provision,"58,222.60"
1637,3397440,SAFETY KLEEN UK  LTD,20/04/2015,40601,General Materials,Environmental Services,Transport Support Service,674.67
10259,3402150,Salford City Council,23/04/2015,48510,Consultancy Fees,Chief Executives,Internal Audit,"3,500.00"
10259,3402287,Salford City Council,27/04/2015,48510,Consultancy Fees,Development & Regeneration,D&R Building Control (Trading),898.32
10259,3402218,Salford City Council,23/04/2015,20501,Engineering Work,Environmental Services,Highway Regulation & Inspection,"2,423.72"
10259,3402312,Salford City Council,23/04/2015,20501,Engineering Work,Environmental Services,Highway Regulation & Inspection,"9,135.16"
2539298,3389866,Sandiway Lodge Residential Home,07/04/2015,54301,Residential Provision,Adult Services,OA  External Provision Residential,"1,471.68"
73074,3396033,SARABEC LIMITED,20/04/2015,44051,Clients Aids & Adaptations,Adult Services,ICES,"1,294.49"
73074,3403796,SARABEC LIMITED,27/04/2015,44051,Clients Aids & Adaptations,Adult Services,ICES,582.96
2804367,3402758,Saxon Furniture Ltd,23/04/2015,52300,Client Support Costs,Adult Services,MH Residential Crisis & Short Term Breaks,"2,655.84"
6649,3402301,SEAN JENNINGS BUILDING CONTRACTORS,23/04/2015,Z5211,Z5211 - Debit Bal Holding A/c Exp,Property Services,Bolton at Home Holding Account,875.75
2613299,3390026,Sector Security Services Limited,23/04/2015,53102,Agency Staff  Other,Environmental Services,Security Services,"1,009.08"
2613299,3390050,Sector Security Services Limited,23/04/2015,53102,Agency Staff  Other,Environmental Services,Security Services,"2,659.30"
2613299,3394879,Sector Security Services Limited,16/04/2015,53102,Agency Staff  Other,Environmental Services,Security Services,687.75
2613299,3390022,Sector Security Services Limited,09/04/2015,53102,Agency Staff  Other,Environmental Services,Security Services,527.28
2613299,3390056,Sector Security Services Limited,09/04/2015,53102,Agency Staff  Other,Environmental Services,Security Services,825.30
2613299,3390085,Sector Security Services Limited,09/04/2015,53102,Agency Staff  Other,Environmental Services,Security Services,716.40
2613299,3390083,Sector Security Services Limited,09/04/2015,53102,Agency Staff  Other,Environmental Services,Security Services,596.05
2613299,3394637,Sector Security Services Limited,16/04/2015,53102,Agency Staff  Other,Environmental Services,Security Services,770.28
2613299,3394658,Sector Security Services Limited,16/04/2015,53102,Agency Staff  Other,Environmental Services,Security Services,"1,247.12"
2613299,3394624,Sector Security Services Limited,16/04/2015,53102,Agency Staff  Other,Environmental Services,Security Services,596.05
2613299,3394605,Sector Security Services Limited,16/04/2015,53102,Agency Staff  Other,Environmental Services,Security Services,706.09
2613299,3394630,Sector Security Services Limited,16/04/2015,53102,Agency Staff  Other,Environmental Services,Security Services,623.56
2613299,3394661,Sector Security Services Limited,16/04/2015,53102,Agency Staff  Other,Environmental Services,Security Services,"1,412.18"
2613299,3410841,Sector Security Services Limited,30/04/2015,53102,Agency Staff  Other,Environmental Services,Security Services,"1,403.01"
2613299,3410857,Sector Security Services Limited,30/04/2015,53102,Agency Staff  Other,Environmental Services,Security Services,825.30
2613299,3410842,Sector Security Services Limited,30/04/2015,53102,Agency Staff  Other,Environmental Services,Security Services,513.52
171599,3394938,SECURITY SOLUTIONS (NORTHERN) LTD,23/04/2015,44401,Other Security Expenses,Environmental Services,Depots,515.28
6652,3388550,SEDDONS (PLANT & ENGINEERS) LTD,02/04/2015,40610,Direct Materials,Environmental Services,Lighting / Stores Billable Costs,669.00
2323,3400079,SERCO LEISURE OPERATING LTD#2,23/04/2015,52200,Contracted Services,Development & Regeneration,The Leisure Trust,540.00
2323,3402342,SERCO LEISURE OPERATING LTD#2,23/04/2015,52200,Contracted Services,Development & Regeneration,The Leverhulme Centre,"1,822.04"
2323,3403745,SERCO LEISURE OPERATING LTD#2,27/04/2015,52200,Contracted Services,Development & Regeneration,The Leisure Trust,"1,128.55"
6656,3399998,SEVA LINE,20/04/2015,52200,Contracted Services,Adult Services,OA  Home Care Services external provision,"6,683.82"
1609312,3400437,SEVACARE UK LTD,23/04/2015,52200,Contracted Services,Adult Services,OA  Home Care Services external provision,"31,764.48"
6659,3389735,SHANNON COURT NURSING HOME,07/04/2015,54301,Residential Provision,Adult Services,OA  External Provision Residential,"1,322.55"
6659,3389736,SHANNON COURT NURSING HOME,07/04/2015,Z6011,Z6011 - CR Bal Hold A/c Exp,Adult Services,Health - Funded Nursing Care,"7,066.22"
6659,3389736,SHANNON COURT NURSING HOME,07/04/2015,54302,Nursing Provision,Adult Services,MH Residential External Provision,"1,618.08"
6659,3389736,SHANNON COURT NURSING HOME,07/04/2015,54301,Residential Provision,Adult Services,OA  External Provision Residential,"26,892.66"
6659,3389736,SHANNON COURT NURSING HOME,07/04/2015,54302,Nursing Provision,Adult Services,OA  External Provision Residential,"29,097.94"
183989,3394593,SHANTI MEDI-CARE LTD,16/04/2015,52200,Contracted Services,Public Health,Tobacco Control,616.80
152595,3395387,SHARED CARE#MAPLE LEAF CARE LIMITED,16/04/2015,52000,Vol Assoc Grants  General,Childrens Services,Res Serv Agency Placements,"9,455.00"
8353,3390337,SHAW & SONS LIMITED,09/04/2015,79000,Election Expenses,Chief Executives,Elections,"1,910.70"
142271,3389797,SHAWCROSS CARE HOME#TAMENG CARE LTD,07/04/2015,54301,Residential Provision,Adult Services,OA  External Provision Residential,"1,496.00"
125827,3406784,SHOPIFY.COM,29/04/2015,47200,General Subscriptions,Development & Regeneration,LMA External Funded Projects,542.13
1822,3395741,SIDHIL LIMITED,16/04/2015,44051,Clients Aids & Adaptations,Adult Services,ICES,"1,767.00"
1822,3393999,SIDHIL LIMITED,13/04/2015,44051,Clients Aids & Adaptations,Adult Services,ICES,"3,246.00"
1822,3394611,SIDHIL LIMITED,16/04/2015,44051,Clients Aids & Adaptations,Adult Services,ICES,"1,820.00"
1822,3408934,SIDHIL LIMITED,30/04/2015,44051,Clients Aids & Adaptations,Adult Services,ICES,"3,246.00"
225401,3390492,Signet Signs Limited,09/04/2015,79000,Election Expenses,Chief Executives,Elections,586.00
203373,3400282,SIGNHEALTH,23/04/2015,52200,Contracted Services,Adult Services,MH Residential External Provision,"1,317.44"
203373,3400279,SIGNHEALTH,23/04/2015,52200,Contracted Services,Adult Services,MH Residential External Provision,997.94
203373,3402163,SIGNHEALTH,23/04/2015,52200,Contracted Services,Adult Services,Independent,"1,074.48"
203373,3402161,SIGNHEALTH,23/04/2015,52200,Contracted Services,Adult Services,Independent,857.27
203373,3400286,SIGNHEALTH,23/04/2015,52200,Contracted Services,Adult Services,MH Residential External Provision,553.14
1827,3406674,SIGNPOST SOLUTIONS LTD T/A SIGNFIX,27/04/2015,Z6007,Z6007 - Inventory AP Accrual,Highways,Stores,774.25
1827,3405810,SIGNPOST SOLUTIONS LTD T/A SIGNFIX,27/04/2015,Z6007,Z6007 - Inventory AP Accrual,Highways,Stores,"2,927.50"
1097786,3388964,SIMPLYMED LTD,09/04/2015,44051,Clients Aids & Adaptations,Adult Services,ICES,"2,012.50"
1097786,3393980,SIMPLYMED LTD,13/04/2015,44051,Clients Aids & Adaptations,Adult Services,ICES,"1,019.00"
1097786,3403737,SIMPLYMED LTD,27/04/2015,44051,Clients Aids & Adaptations,Adult Services,ICES,"1,155.00"
58344,3399962,SITEIMPROVE LTD,23/04/2015,45430,Computer Software,Chief Executives,Web Team,"5,078.60"
2825310,3388516,SK Associates,02/04/2015,52200,Contracted Services,Adult Services,Drugs Pooled Treatment Budget,"2,300.00"
2789320,3388511,Skyline Ltd,09/04/2015,Z6008,Expense AP Accrual,Bolton MBC Balance Sheet,Bolton MBC Balance Sheet,500.00
1556141,3397381,SOCIAL CARE SERVICES GROUP,20/04/2015,52000,Vol Assoc Grants  General,Childrens Services,Res Serv Agency Placements,"8,250.00"
1556141,3397382,SOCIAL CARE SERVICES GROUP,20/04/2015,52000,Vol Assoc Grants  General,Childrens Services,Res Serv Agency Placements,"8,250.00"
6673,3389762,SOUTHLANDS RESIDENTIAL HOME#SOUTHLANDS,07/04/2015,Z6011,Z6011 - CR Bal Hold A/c Exp,Adult Services,3rd Party Social Care Contributions,"1,680.00"
6673,3389762,SOUTHLANDS RESIDENTIAL HOME#SOUTHLANDS,07/04/2015,Z5211,Z5211 - Debit Bal Holding A/c Exp,Adult Services,Client Property Top Ups,"1,023.00"
6673,3389762,SOUTHLANDS RESIDENTIAL HOME#SOUTHLANDS,07/04/2015,54301,Residential Provision,Adult Services,OA  External Provision Residential,"12,399.03"
6673,3390665,SOUTHLANDS RESIDENTIAL HOME#SOUTHLANDS,09/04/2015,54301,Residential Provision,Adult Services,OA  External Provision Residential,"5,209.75"
10140,3389782,SOUTHLEA RESIDENTIAL CARE HOME,07/04/2015,54301,Residential Provision,Adult Services,MH Residential External Provision,"1,683.76"
991723,3389815,SOUTHVIEW LODGE RESIDENTIAL CARE HOME,07/04/2015,54301,Residential Provision,Adult Services,OA  External Provision Residential,"1,444.00"
2595303,3388726,Specialised Homes and Lodgings Ltd,09/04/2015,52200,Contracted Services,Adult Services,LD Purchaser Supported Housing,"3,857.14"
2595303,3388724,Specialised Homes and Lodgings Ltd,09/04/2015,52200,Contracted Services,Adult Services,LD Purchaser Supported Housing,"3,857.14"
88183,3409543,SPECIALIST TRANSPORT CONSULTANTS,30/04/2015,46004,Staff Training Courses,Environmental Services,SNT Other,650.00
2338384,3389845,SPECIALITY CARE (REIT HOMES) LTD T/A HOUNDSWOOD HOUSE CARE HOME,07/04/2015,54301,Residential Provision,Adult Services,OA  External Provision Residential,"3,996.44"
6675,3393820,SPECTRA SECURITY LTD,13/04/2015,Z6008,Expense AP Accrual,Bolton MBC Balance Sheet,Bolton MBC Balance Sheet,"1,066.66"
6675,3396028,SPECTRA SECURITY LTD,20/04/2015,20100,Day To Day Maintenance,Environmental Services,Depots,925.00
6675,3397321,SPECTRA SECURITY LTD,20/04/2015,Z6008,Expense AP Accrual,Bolton MBC Balance Sheet,Bolton MBC Balance Sheet,612.00
6675,3401963,SPECTRA SECURITY LTD,30/04/2015,20101,Programmed Maint. Work,Chief Executives,Accomm Rationalisation Strategy,937.00
113123,3389793,SPENNYMOOR CARE HOME LTD,07/04/2015,54301,Residential Provision,Adult Services,OA  External Provision Residential,"2,380.26"
113123,3389794,SPENNYMOOR CARE HOME LTD,07/04/2015,Z6011,Z6011 - CR Bal Hold A/c Exp,Adult Services,3rd Party Social Care Contributions,"1,521.80"
113123,3389794,SPENNYMOOR CARE HOME LTD,07/04/2015,54301,Residential Provision,Adult Services,OA  External Provision Residential,"12,017.35"
2103296,3387676,SPORTING NRG LTD,02/04/2015,44056,Clients Training Courses,Environmental Services,Highway Management,"3,800.00"
2703311,3392403,SSR General & Management Limited,13/04/2015,48509,Other Fees,Childrens Services,Education Psychology Service,500.00
6679,3389738,ST CATHERINES CARE HOME,07/04/2015,Z6011,Z6011 - CR Bal Hold A/c Exp,Adult Services,Health - Funded Nursing Care,"8,920.63"
6679,3389738,ST CATHERINES CARE HOME,07/04/2015,54301,Residential Provision,Adult Services,OA  External Provision Residential,"3,148.00"
6679,3389738,ST CATHERINES CARE HOME,07/04/2015,54302,Nursing Provision,Adult Services,OA  External Provision Residential,"31,327.86"
6679,3389738,ST CATHERINES CARE HOME,07/04/2015,54302,Nursing Provision,Adult Services,PD Purchaser Residential Care,"1,545.00"
6679,3389737,ST CATHERINES CARE HOME,07/04/2015,54302,Nursing Provision,Adult Services,OA  External Provision Residential,606.96
20867,3407688,St George C of E School,27/04/2015,53102,Agency Staff  Other,Childrens Services,Income – Teaching & Learning CPD,810.00
1960,3407689,St Stephen's (Kearsley Moor) School,27/04/2015,53102,Agency Staff  Other,Childrens Services,Income – Teaching & Learning CPD,810.00
2397424,3389854,STANLEY GRANGE,07/04/2015,54301,Residential Provision,Adult Services,LD Purchaser Residential Care,"4,867.96"
2301448,3400225,STANROSE,23/04/2015,52300,Client Support Costs,Adult Services,MH Residential External Provision,"1,080.00"
6686,3389739,STARMOUNT VILLA RESIDENTIAL CARE HOME,07/04/2015,54301,Residential Provision,Adult Services,OA  External Provision Residential,"5,427.52"
798,3403763,Stockport MBC,27/04/2015,48509,Other Fees,Childrens Services,Regional Activities,"1,500.00"
798,3395984,Stockport MBC,20/04/2015,48509,Other Fees,Childrens Services,Regional Activities,"3,650.25"
798,3402293,Stockport MBC,23/04/2015,52200,Contracted Services,Childrens Services,Gtr Manchester Music Education Hub,"97,409.00"
22970,3408670,STOCKPORT PSYCHOLOGY SERVICES,27/04/2015,48509,Other Fees,Childrens Services,Management Team,849.13
2814301,3397364,Storm Environmental Ltd,20/04/2015,Z1051,Work in Progress Additions,Environmental Services,Environmental Services Balance sheet,"4,980.00"
6691,3389764,STRATHMORE NURSING HOME#WHITEHILL HOMES LTD,07/04/2015,Z6011,Z6011 - CR Bal Hold A/c Exp,Adult Services,Health - Funded Nursing Care,"1,798.24"
6691,3389764,STRATHMORE NURSING HOME#WHITEHILL HOMES LTD,07/04/2015,54301,Residential Provision,Adult Services,OA  External Provision Residential,"4,581.28"
6691,3389764,STRATHMORE NURSING HOME#WHITEHILL HOMES LTD,07/04/2015,54302,Nursing Provision,Adult Services,OA  External Provision Residential,"6,387.84"
6691,3389763,STRATHMORE NURSING HOME#WHITEHILL HOMES LTD,07/04/2015,54301,Residential Provision,Adult Services,OA  External Provision Residential,783.98
6691,3389763,STRATHMORE NURSING HOME#WHITEHILL HOMES LTD,07/04/2015,54302,Nursing Provision,Adult Services,OA  External Provision Residential,"1,119.97"
7857,3389765,SUNNYSIDE RESIDENTIAL HOME,07/04/2015,54301,Residential Provision,Adult Services,OA  External Provision Residential,950.86
7857,3389766,SUNNYSIDE RESIDENTIAL HOME,07/04/2015,54301,Residential Provision,Adult Services,MH Residential External Provision,"1,545.00"
7857,3389766,SUNNYSIDE RESIDENTIAL HOME,07/04/2015,54301,Residential Provision,Adult Services,OA  External Provision Residential,"37,232.40"
6692,3395447,SUPPLIES TEAM LIMITED,16/04/2015,43032,Office Stationery,Chief Executives,Operational Facilities Management,"2,456.73"
6692,3387746,SUPPLIES TEAM LIMITED,02/04/2015,48203,Marketing,Environmental Services,Catering,"1,825.04"
6692,3394549,SUPPLIES TEAM LIMITED,16/04/2015,40150,Office Furniture Purchase,Chief Executives,Operational Facilities Management,560.40
6692,3395449,SUPPLIES TEAM LIMITED,16/04/2015,40150,Office Furniture Purchase,Chief Executives,Operational Facilities Management,"1,681.20"
6692,3396266,SUPPLIES TEAM LIMITED,20/04/2015,43032,Office Stationery,Chief Executives,MFD,514.90
6692,3400201,SUPPLIES TEAM LIMITED,23/04/2015,48203,Marketing,Environmental Services,Catering,512.32
1966295,3392181,SUPPORTED HOUSING FOR REDACTED - PERSONAL DATA LIFEWAYS,13/04/2015,52200,Contracted Services,Adult Services,LD Purchaser Supported Housing,"13,695.10"
1966296,3392182,SUPPORTED HOUSING FOR REDACTED - PERSONAL DATA LIFEWAYS,13/04/2015,52200,Contracted Services,Adult Services,LD Purchaser Supported Housing,"21,987.60"
1967295,3392214,SUPPORTED HOUSING FOR REDACTED - PERSONAL DATA LIFEWAYS,13/04/2015,52200,Contracted Services,Adult Services,LD Purchaser Supported Housing,"12,252.00"
1966292,3392205,SUPPORTED HOUSING FOR REDACTED - PERSONAL DATA LIFEWAYS,13/04/2015,52200,Contracted Services,Adult Services,LD Purchaser Supported Housing,"10,300.33"
1967301,3392215,SUPPORTED HOUSING FOR REDACTED - PERSONAL DATA LIFEWAYS,13/04/2015,52200,Contracted Services,Adult Services,LD Purchaser Supported Housing,"7,192.00"
1847290,3392187,SUPPORTED HOUSING FOR REDACTED - PERSONAL DATA LIFEWAYS,13/04/2015,52200,Contracted Services,Adult Services,LD Purchaser Supported Housing,"6,742.40"
2335296,3392216,SUPPORTED HOUSING FOR REDACTED - PERSONAL DATA LIFEWAYS,13/04/2015,52200,Contracted Services,Adult Services,LD Purchaser Supported Housing,"12,277.30"
2335290,3392183,SUPPORTED HOUSING FOR REDACTED - PERSONAL DATA LIFEWAYS,13/04/2015,52200,Contracted Services,Adult Services,LD Purchaser Supported Housing,"17,770.80"
1967300,3392217,SUPPORTED HOUSING FOR REDACTED - PERSONAL DATA LIFEWAYS,13/04/2015,52200,Contracted Services,Adult Services,LD Purchaser Supported Housing,"18,469.00"
1967296,3392218,SUPPORTED HOUSING FOR REDACTED - PERSONAL DATA LIFEWAYS,13/04/2015,52200,Contracted Services,Adult Services,LD Purchaser Supported Housing,"11,227.35"
1967299,3392219,SUPPORTED HOUSING FOR REDACTED - PERSONAL DATA LIFEWAYS,13/04/2015,52200,Contracted Services,Adult Services,LD Purchaser Supported Housing,"11,796.60"
1967291,3392220,SUPPORTED HOUSING FOR REDACTED - PERSONAL DATA LIFEWAYS,13/04/2015,52200,Contracted Services,Adult Services,LD Purchaser Supported Housing,"6,433.00"
1967293,3392221,SUPPORTED HOUSING FOR REDACTED - PERSONAL DATA LIFEWAYS,13/04/2015,52200,Contracted Services,Adult Services,LD Purchaser Supported Housing,"11,746.00"
1967292,3392222,SUPPORTED HOUSING FOR REDACTED - PERSONAL DATA LIFEWAYS,13/04/2015,52200,Contracted Services,Adult Services,LD Purchaser Supported Housing,"6,433.00"
2335291,3392184,SUPPORTED HOUSING FOR REDACTED - PERSONAL DATA LIFEWAYS,13/04/2015,52200,Contracted Services,Adult Services,LD Purchaser Supported Housing,"11,310.60"
1966294,3392185,SUPPORTED HOUSING FOR REDACTED - PERSONAL DATA LIFEWAYS,13/04/2015,52200,Contracted Services,Adult Services,PD Purchaser Supported Housing,"17,686.00"
2335292,3392206,SUPPORTED HOUSING FOR REDACTED - PERSONAL DATA LIFEWAYS,13/04/2015,52200,Contracted Services,Adult Services,LD Purchaser Supported Housing,"11,291.78"
2335297,3392223,SUPPORTED HOUSING FOR REDACTED - PERSONAL DATA LIFEWAYS,13/04/2015,52200,Contracted Services,Adult Services,LD Purchaser Supported Housing,"12,859.20"
2335298,3392224,SUPPORTED HOUSING FOR REDACTED - PERSONAL DATA LIFEWAYS,13/04/2015,52200,Contracted Services,Adult Services,LD Purchaser Supported Housing,"14,124.20"
1967290,3392186,SUPPORTED HOUSING FOR REDACTED - PERSONAL DATA LIFEWAYS,13/04/2015,52200,Contracted Services,Adult Services,LD Purchaser Supported Housing,"6,039.60"
1967298,3392225,SUPPORTED HOUSING FOR REDACTED - PERSONAL DATA LIFEWAYS,13/04/2015,52200,Contracted Services,Adult Services,LD Purchaser Supported Housing,"6,894.73"
2335299,3392226,SUPPORTED HOUSING FOR REDACTED - PERSONAL DATA LIFEWAYS,13/04/2015,52200,Contracted Services,Adult Services,LD Purchaser Supported Housing,"13,264.00"
2335300,3392227,SUPPORTED HOUSING FOR REDACTED - PERSONAL DATA LIFEWAYS,13/04/2015,52200,Contracted Services,Adult Services,LD Purchaser Supported Housing,"9,241.30"
2335294,3392188,SUPPORTED HOUSING FOR REDACTED - PERSONAL DATA LIFEWAYS,13/04/2015,52200,Contracted Services,Adult Services,LD Purchaser Supported Housing,"14,056.00"
1966293,3392207,SUPPORTED HOUSING FOR REDACTED - PERSONAL DATA LIFEWAYS,13/04/2015,52200,Contracted Services,Adult Services,LD Purchaser Supported Housing,"8,668.83"
1966291,3392190,SUPPORTED HOUSING FOR REDACTED - PERSONAL DATA LIFEWAYS,13/04/2015,52200,Contracted Services,Adult Services,LD Purchaser Supported Housing,"13,353.20"
2335295,3392191,SUPPORTED HOUSING FOR REDACTED - PERSONAL DATA LIFEWAYS,13/04/2015,52200,Contracted Services,Adult Services,LD Purchaser Supported Housing,"8,951.20"
